Workbook

Sheet Main
B10: 2022-03-14
B12: Sheet No. | C12: Template Name | D12: Summary
B13: 1 | C13: Future Intra | D13: For Intraday trading in F&O segment
B14: 2 | C14: Cash Intra | D14: For Intraday trading in cash market segment
B15: 3 | C15: Mid-cap Intra | D15: For Intraday trading in Mid-cap stocks
B16: 4 | C16: Bulk Deals | D16: Reveals Bulk Deals carried on NSE & BSE
B17: 5 | C17: Call Tracker
K27: `

Sheet Future Intra
M5: Back to Main Page
A6: FOR INTRA DAY TRADING | L6: =Main!B10 -> 2022-03-14
A9: Sr.no | B9: Sector | C9: Scrip | D9: Expiry Date | E9: CLOSE RATE | F9: Pivot Point | G9: Supports | J9: Resistances
E10: Point | F10: Point | G10: S1 | H10: S2 | I10: S3 | J10: R1 | K10: R2 | L10: R3 | M10: HIGH | N10: LOW | O10: OI | P10: % Change in OI
A11: 1 | B11: Index | C11: NIFTY | D11: 2022-03-31 | E11: 16647.75 | F11: 16610.20 | G11: 16512.60 | H11: 16377.45 | I11: 16279.85 | J11: 16745.35 | K11: 16842.95 | L11: 16978.10 | M11: 16707.8 | N11: 16475.05 | O11: 17252600 | P11: 3.92%
A12: 2 | B12: Index | C12: BANKNIFTY | D12: 2022-03-31 | E12: 34595.75 | F12: 34561.67 | G12: 34187.33 | H12: 33778.92 | I12: 33404.58 | J12: 34970.08 | K12: 35344.42 | L12: 35752.83 | M12: 34936 | N12: 34153.25 | O12: 6256675 | P12: 8.06%
A13: 3 | B13: Index | C13: FINNIFTY | D13: 2022-03-29 | E13: 16177.80 | F13: 16182.05 | G13: 16023.60 | H13: 15869.40 | I13: 15710.95 | J13: 16336.25 | K13: 16494.70 | L13: 16648.90 | M13: 16340.5 | N13: 16027.85 | O13: 4840 | P13: 34.44%
A14: 4 | B14: Index | C14: MIDCPNIFTY | D14: 2022-03-29 | E14: 6900.00 | F14: 6883.37 | G14: 6866.73 | H14: 6833.47 | I14: 6816.83 | J14: 6916.63 | K14: 6933.27 | L14: 6966.53 | M14: 6900 | N14: 6850.1 | O14: 2325 | P14: 29.17%
A15: 5 | B15: Chemical | C15: AARTIIND | D15: 2022-03-31 | E15: 849.55 | F15: 839.62 | G15: 827.33 | H15: 805.12 | I15: 792.83 | J15: 861.83 | K15: 874.12 | L15: 896.33 | M15: 851.9 | N15: 817.4 | O15: 2876400 | P15: 1.96%
A16: 6 | B16: Capital_Goods | C16: ABB | D16: 2022-03-31 | E16: 2129.10 | F16: 2136.97 | G16: 2103.68 | H16: 2078.27 | I16: 2044.98 | J16: 2162.38 | K16: 2195.67 | L16: 2221.08 | M16: 2170.25 | N16: 2111.55 | O16: 217000 | P16: -8.82%
A17: 7 | B17: Pharma | C17: ABBOTINDIA | D17: 2022-03-31 | E17: 17311.30 | F17: 17386.57 | G17: 17129.73 | H17: 16948.17 | I17: 16691.33 | J17: 17568.13 | K17: 17824.97 | L17: 18006.53 | M17: 17643.4 | N17: 17205 | O17: 35275 | P17: 6.01%
A18: 8 | B18: Others | C18: ABCAPITAL | D18: 2022-03-31 | E18: 103.80 | F18: 103.95 | G18: 103.05 | H18: 102.30 | I18: 101.40 | J18: 104.70 | K18: 105.60 | L18: 106.35 | M18: 104.85 | N18: 103.2 | O18: 16429600 | P18: 0.67%
A19: 9 | B19: Textile | C19: ABFRL | D19: 2022-03-31 | E19: 280.25 | F19: 279.47 | G19: 275.78 | H19: 271.32 | I19: 267.63 | J19: 283.93 | K19: 287.62 | L19: 292.08 | M19: 283.15 | N19: 275 | O19: 12617800 | P19: 2.82%
A20: 10 | B20: Cement | C20: ACC | D20: 2022-03-31 | E20: 2051.45 | F20: 2048.12 | G20: 2028.38 | H20: 2005.32 | I20: 1985.58 | J20: 2071.18 | K20: 2090.92 | L20: 2113.98 | M20: 2067.85 | N20: 2025.05 | O20: 2335250 | P20: 0.61%
A21: 11 | B21: Others | C21: ADANIENT | D21: 2022-03-31 | E21: 1739.35 | F21: 1741.52 | G21: 1722.23 | H21: 1705.12 | I21: 1685.83 | J21: 1758.63 | K21: 1777.92 | L21: 1795.03 | M21: 1760.8 | N21: 1724.4 | O21: 20356500 | P21: -0.93%
A22: 12 | B22: Others | C22: ADANIPORTS | D22: 2022-03-31 | E22: 731.50 | F22: 729.42 | G22: 725.33 | H22: 719.17 | I22: 715.08 | J22: 735.58 | K22: 739.67 | L22: 745.83 | M22: 733.5 | N22: 723.25 | O22: 82706250 | P22: -0.46%
A23: 13 | B23: Pharma | C23: ALKEM | D23: 2022-03-31 | E23: 3394.30 | F23: 3361.97 | G23: 3324.18 | H23: 3254.07 | I23: 3216.28 | J23: 3432.08 | K23: 3469.87 | L23: 3539.98 | M23: 3399.75 | N23: 3291.85 | O23: 188000 | P23: 0.21%
A24: 14 | B24: Automobile | C24: AMARAJABAT | D24: 2022-03-31 | E24: 578.10 | F24: 578.05 | G24: 574.00 | H24: 569.90 | I24: 565.85 | J24: 582.15 | K24: 586.20 | L24: 590.30 | M24: 582.1 | N24: 573.95 | O24: 6809000 | P24: -0.39%
A25: 15 | B25: Cement | C25: AMBUJACEM | D25: 2022-03-31 | E25: 288.60 | F25: 288.22 | G25: 285.48 | H25: 282.37 | I25: 279.63 | J25: 291.33 | K25: 294.07 | L25: 297.18 | M25: 290.95 | N25: 285.1 | O25: 28132500 | P25: 0.12%
A26: 16 | B26: Pharma | C26: APLLTD | D26: 2022-03-31 | E26: 736.40 | F26: 730.65 | G26: 723.50 | H26: 710.60 | I26: 703.45 | J26: 743.55 | K26: 750.70 | L26: 763.60 | M26: 737.8 | N26: 717.75 | O26: 1765400 | P26: -4.51%
A27: 17 | B27: Others | C27: APOLLOHOSP | D27: 2022-03-31 | E27: 4873.30 | F27: 4835.15 | G27: 4788.20 | H27: 4703.10 | I27: 4656.15 | J27: 4920.25 | K27: 4967.20 | L27: 5052.30 | M27: 4882.1 | N27: 4750.05 | O27: 2140250 | P27: 0.95%
A28: 18 | B28: Automobile | C28: APOLLOTYRE | D28: 2022-03-31 | E28: 185.15 | F28: 184.35 | G28: 182.50 | H28: 179.85 | I28: 178.00 | J28: 187.00 | K28: 188.85 | L28: 191.50 | M28: 186.2 | N28: 181.7 | O28: 14307500 | P28: -0.49%
A29: 19 | B29: Automobile | C29: ASHOKLEY | D29: 2022-03-31 | E29: 106.10 | F29: 105.83 | G29: 104.27 | H29: 102.43 | I29: 100.87 | J29: 107.67 | K29: 109.23 | L29: 111.07 | M29: 107.4 | N29: 104 | O29: 46944000 | P29: -0.23%
A30: 20 | B30: FMCG | C30: ASIANPAINT | D30: 2022-03-31 | E30: 2936.05 | F30: 2924.32 | G30: 2902.73 | H30: 2869.42 | I30: 2847.83 | J30: 2957.63 | K30: 2979.22 | L30: 3012.53 | M30: 2945.9 | N30: 2891 | O30: 5627700 | P30: -1.60%
A31: 21 | B31: Others | C31: ASTRAL | D31: 2022-03-31 | E31: 1961.95 | F31: 1945.33 | G31: 1915.67 | H31: 1869.38 | I31: 1839.72 | J31: 1991.62 | K31: 2021.28 | L31: 2067.57 | M31: 1975 | N31: 1899.05 | O31: 1055725 | P31: -2.56%
A32: 22 | B32: Others | C32: ATUL | D32: 2022-03-31 | E32: 9555.15 | F32: 9358.12 | G32: 9086.28 | H32: 8617.42 | I32: 8345.58 | J32: 9826.98 | K32: 10098.82 | L32: 10567.68 | M32: 9629.95 | N32: 8889.25 | O32: 116550 | P32: -2.45%
A33: 23 | B33: Banking | C33: AUBANK | D33: 2022-03-31 | E33: 1197.75 | F33: 1182.40 | G33: 1164.00 | H33: 1130.25 | I33: 1111.85 | J33: 1216.15 | K33: 1234.55 | L33: 1268.30 | M33: 1200.8 | N33: 1148.65 | O33: 2336500 | P33: -8.48%
A34: 24 | B34: Pharma | C34: AUROPHARMA | D34: 2022-03-31 | E34: 645.45 | F34: 639.55 | G34: 630.90 | H34: 616.35 | I34: 607.70 | J34: 654.10 | K34: 662.75 | L34: 677.30 | M34: 648.2 | N34: 625 | O34: 15375750 | P34: 3.36%
A35: 25 | B35: Banking | C35: AXISBANK | D35: 2022-03-31 | E35: 693.90 | F35: 696.72 | G35: 686.08 | H35: 678.27 | I35: 667.63 | J35: 704.53 | K35: 715.17 | L35: 722.98 | M35: 707.35 | N35: 688.9 | O35: 51622800 | P35: 0.49%
A36: 26 | B36: Automobile | C36: BAJAJ-AUTO | D36: 2022-03-31 | E36: 3381.90 | F36: 3373.12 | G36: 3347.23 | H36: 3312.57 | I36: 3286.68 | J36: 3407.78 | K36: 3433.67 | L36: 3468.33 | M36: 3399 | N36: 3338.45 | O36: 2201250 | P36: -0.32%
A37: 27 | B37: Finance | C37: BAJAJFINSV | D37: 2022-03-31 | E37: 15616.45 | F37: 15556.68 | G37: 15334.77 | H37: 15053.08 | I37: 14831.17 | J37: 15838.37 | K37: 16060.28 | L37: 16341.97 | M37: 15778.6 | N37: 15275 | O37: 663850 | P37: -0.88%
A38: 28 | B38: Finance | C38: BAJFINANCE | D38: 2022-03-31 | E38: 6637.15 | F38: 6614.62 | G38: 6534.53 | H38: 6431.92 | I38: 6351.83 | J38: 6717.23 | K38: 6797.32 | L38: 6899.93 | M38: 6694.7 | N38: 6512 | O38: 4181875 | P38: -0.59%
A39: 29 | B39: Automobile | C39: BALKRISIND | D39: 2022-03-31 | E39: 1974.25 | F39: 1963.50 | G39: 1943.00 | H39: 1911.75 | I39: 1891.25 | J39: 1994.75 | K39: 2015.25 | L39: 2046.50 | M39: 1984 | N39: 1932.25 | O39: 1340800 | P39: 0.28%
A40: 30 | B40: Others | C40: BALRAMCHIN | D40: 2022-03-31 | E40: 489.70 | F40: 477.20 | G40: 461.50 | H40: 433.30 | I40: 417.60 | J40: 505.40 | K40: 521.10 | L40: 549.30 | M40: 492.9 | N40: 449 | O40: 9198400 | P40: 20.60%
A41: 31 | B41: Banking | C41: BANDHANBNK | D41: 2022-03-31 | E41: 263.30 | F41: 263.73 | G41: 259.22 | H41: 255.13 | I41: 250.62 | J41: 267.82 | K41: 272.33 | L41: 276.42 | M41: 268.25 | N41: 259.65 | O41: 29763000 | P41: 2.76%
A42: 32 | B42: Banking | C42: BANKBARODA | D42: 2022-03-31 | E42: 104.50 | F42: 103.63 | G42: 102.27 | H42: 100.03 | I42: 98.67 | J42: 105.87 | K42: 107.23 | L42: 109.47 | M42: 105 | N42: 101.4 | O42: 116145900 | P42: -0.55%
A43: 33 | B43: FMCG | C43: BATAINDIA | D43: 2022-03-31 | E43: 1817.40 | F43: 1819.17 | G43: 1799.73 | H43: 1782.07 | I43: 1762.63 | J43: 1836.83 | K43: 1856.27 | L43: 1873.93 | M43: 1838.6 | N43: 1801.5 | O43: 1430000 | P43: 3.05%
A44: 34 | B44: Capital_Goods | C44: BEL | D44: 2022-03-31 | E44: 214.20 | F44: 215.43 | G44: 212.17 | H44: 210.13 | I44: 206.87 | J44: 217.47 | K44: 220.73 | L44: 222.77 | M44: 218.7 | N44: 213.4 | O44: 26231400 | P44: 4.78%
A45: 35 | B45: FMCG | C45: BERGEPAINT | D45: 2022-03-31 | E45: 681.10 | F45: 679.60 | G45: 673.30 | H45: 665.50 | I45: 659.20 | J45: 687.40 | K45: 693.70 | L45: 701.50 | M45: 685.9 | N45: 671.8 | O45: 4666200 | P45: -0.40%
A46: 36 | B46: Automobile | C46: BHARATFORG | D46: 2022-03-31 | E46: 635.30 | F46: 636.47 | G46: 629.93 | H46: 624.57 | I46: 618.03 | J46: 641.83 | K46: 648.37 | L46: 653.73 | M46: 643 | N46: 631.1 | O46: 6414000 | P46: 2.38%
A47: 37 | B47: Telecom | C47: BHARTIARTL | D47: 2022-03-31 | E47: 697.15 | F47: 697.60 | G47: 692.60 | H47: 688.05 | I47: 683.05 | J47: 702.15 | K47: 707.15 | L47: 711.70 | M47: 702.6 | N47: 693.05 | O47: 53268400 | P47: -0.28%
A48: 38 | B48: Capital_Goods | C48: BHEL | D48: 2022-03-31 | E48: 52.15 | F48: 51.87 | G48: 51.28 | H48: 50.42 | I48: 49.83 | J48: 52.73 | K48: 53.32 | L48: 54.18 | M48: 52.45 | N48: 51 | O48: 106617000 | P48: -0.14%
A49: 39 | B49: Pharma | C49: BIOCON | D49: 2022-03-31 | E49: 333.60 | F49: 333.38 | G49: 330.37 | H49: 327.13 | I49: 324.12 | J49: 336.62 | K49: 339.63 | L49: 342.87 | M49: 336.4 | N49: 330.15 | O49: 20166400 | P49: 4.82%
A50: 40 | B50: Automobile | C50: BOSCHLTD | D50: 2022-03-31 | E50: 14274.85 | F50: 14242.72 | G50: 14155.43 | H50: 14036.02 | I50: 13948.73 | J50: 14362.13 | K50: 14449.42 | L50: 14568.83 | M50: 14330 | N50: 14123.3 | O50: 160750 | P50: 3.88%
A51: 41 | B51: Oil_Gas | C51: BPCL | D51: 2022-03-31 | E51: 361.80 | F51: 358.20 | G51: 353.40 | H51: 345.00 | I51: 340.20 | J51: 366.60 | K51: 371.40 | L51: 379.80 | M51: 363 | N51: 349.8 | O51: 26069400 | P51: 0.18%
A52: 42 | B52: FMCG | C52: BRITANNIA | D52: 2022-03-31 | E52: 3213.55 | F52: 3225.63 | G52: 3191.32 | H52: 3169.08 | I52: 3134.77 | J52: 3247.87 | K52: 3282.18 | L52: 3304.42 | M52: 3259.95 | N52: 3203.4 | O52: 1854800 | P52: 0.90%
A53: 43 | B53: Technology | C53: BSOFT | D53: 2022-03-31 | E53: 455.40 | F53: 452.83 | G53: 446.67 | H53: 437.93 | I53: 431.77 | J53: 461.57 | K53: 467.73 | L53: 476.47 | M53: 459 | N53: 444.1 | O53: 3313700 | P53: 4.72%
A54: 44 | B54: Banking | C54: CANBK | D54: 2022-03-31 | E54: 218.85 | F54: 217.42 | G54: 214.33 | H54: 209.82 | I54: 206.73 | J54: 221.93 | K54: 225.02 | L54: 229.53 | M54: 220.5 | N54: 212.9 | O54: 43966800 | P54: 0.11%
A55: 45 | B55: Finance | C55: CANFINHOME | D55: 2022-03-31 | E55: 588.35 | F55: 589.57 | G55: 579.43 | H55: 570.52 | I55: 560.38 | J55: 598.48 | K55: 608.62 | L55: 617.53 | M55: 599.7 | N55: 580.65 | O55: 3150225 | P55: -0.92%
A56: 46 | B56: Others | C56: CHAMBLFERT | D56: 2022-03-31 | E56: 425.00 | F56: 423.78 | G56: 415.22 | H56: 405.43 | I56: 396.87 | J56: 433.57 | K56: 442.13 | L56: 451.92 | M56: 432.35 | N56: 414 | O56: 2472000 | P56: 41.58%
A57: 47 | B57: Finance | C57: CHOLAFIN | D57: 2022-03-31 | E57: 674.40 | F57: 671.88 | G57: 666.27 | H57: 658.13 | I57: 652.52 | J57: 680.02 | K57: 685.63 | L57: 693.77 | M57: 677.5 | N57: 663.75 | O57: 9016250 | P57: -0.76%
A58: 48 | B58: Pharma | C58: CIPLA | D58: 2022-03-31 | E58: 1046.80 | F58: 1028.13 | G58: 1001.87 | H58: 956.93 | I58: 930.67 | J58: 1073.07 | K58: 1099.33 | L58: 1144.27 | M58: 1054.4 | N58: 983.2 | O58: 10569000 | P58: 16.95%
A59: 49 | B59: Others | C59: COALINDIA | D59: 2022-03-31 | E59: 181.10 | F59: 180.73 | G59: 179.32 | H59: 177.53 | I59: 176.12 | J59: 182.52 | K59: 183.93 | L59: 185.72 | M59: 182.15 | N59: 178.95 | O59: 36292200 | P59: -0.25%
A60: 50 | B60: Technology | C60: COFORGE | D60: 2022-03-31 | E60: 4312.85 | F60: 4291.62 | G60: 4241.23 | H60: 4169.62 | I60: 4119.23 | J60: 4363.23 | K60: 4413.62 | L60: 4485.23 | M60: 4342 | N60: 4220 | O60: 1764800 | P60: 0.83%
A61: 51 | B61: FMCG | C61: COLPAL | D61: 2022-03-31 | E61: 1492.30 | F61: 1497.62 | G61: 1476.23 | H61: 1460.17 | I61: 1438.78 | J61: 1513.68 | K61: 1535.07 | L61: 1551.13 | M61: 1519 | N61: 1481.55 | O61: 2411850 | P61: -3.09%
A62: 52 | B62: Others | C62: CONCOR | D62: 2022-03-31 | E62: 600.25 | F62: 595.92 | G62: 587.83 | H62: 575.42 | I62: 567.33 | J62: 608.33 | K62: 616.42 | L62: 628.83 | M62: 604 | N62: 583.5 | O62: 6018400 | P62: 1.16%
A63: 53 | B63: Others | C63: COROMANDEL | D63: 2022-03-31 | E63: 782.10 | F63: 778.63 | G63: 767.32 | H63: 752.53 | I63: 741.22 | J63: 793.42 | K63: 804.73 | L63: 819.52 | M63: 789.95 | N63: 763.85 | O63: 996250 | P63: 20.76%
A64: 54 | B64: Capital_Goods | C64: CROMPTON | D64: 2022-03-31 | E64: 404.20 | F64: 401.58 | G64: 398.22 | H64: 392.23 | I64: 388.87 | J64: 407.57 | K64: 410.93 | L64: 416.92 | M64: 404.95 | N64: 395.6 | O64: 4247100 | P64: 0.65%
A65: 55 | B65: Banking | C65: CUB | D65: 2022-03-31 | E65: 123.80 | F65: 123.45 | G65: 121.95 | H65: 120.10 | I65: 118.60 | J65: 125.30 | K65: 126.80 | L65: 128.65 | M65: 124.95 | N65: 121.6 | O65: 9700200 | P65: -1.21%
A66: 56 | B66: Capital_Goods | C66: CUMMINSIND | D66: 2022-03-31 | E66: 999.10 | F66: 997.73 | G66: 986.42 | H66: 973.73 | I66: 962.42 | J66: 1010.42 | K66: 1021.73 | L66: 1034.42 | M66: 1009.05 | N66: 985.05 | O66: 1563600 | P66: 5.46%
A67: 57 | B67: FMCG | C67: DABUR | D67: 2022-03-31 | E67: 548.75 | F67: 546.92 | G67: 543.83 | H67: 538.92 | I67: 535.83 | J67: 551.83 | K67: 554.92 | L67: 559.83 | M67: 550 | N67: 542 | O67: 12956250 | P67: -1.19%
A68: 58 | B68: Cement | C68: DALBHARAT | D68: 2022-03-31 | E68: 1434.75 | F68: 1443.08 | G68: 1400.17 | H68: 1365.58 | I68: 1322.67 | J68: 1477.67 | K68: 1520.58 | L68: 1555.17 | M68: 1486 | N68: 1408.5 | O68: 610500 | P68: 8.34%
A69: 59 | B69: Chemical | C69: DEEPAKNTR | D69: 2022-03-31 | E69: 2059.35 | F69: 2040.93 | G69: 2012.97 | H69: 1966.58 | I69: 1938.62 | J69: 2087.32 | K69: 2115.28 | L69: 2161.67 | M69: 2068.9 | N69: 1994.55 | O69: 1702000 | P69: -1.49%
A70: 60 | B70: Others | C70: DELTACORP | D70: 2022-03-31 | E70: 282.70 | F70: 280.82 | G70: 274.28 | H70: 265.87 | I70: 259.33 | J70: 289.23 | K70: 295.77 | L70: 304.18 | M70: 287.35 | N70: 272.4 | O70: 14897100 | P70: 1.27%
A71: 61 | B71: Pharma | C71: DIVISLAB | D71: 2022-03-31 | E71: 4343.90 | F71: 4319.28 | G71: 4279.62 | H71: 4215.33 | I71: 4175.67 | J71: 4383.57 | K71: 4423.23 | L71: 4487.52 | M71: 4358.95 | N71: 4255 | O71: 2456600 | P71: -0.94%
A72: 62 | B72: Others | C72: DIXON | D72: 2022-03-31 | E72: 4162.10 | F72: 4141.58 | G72: 4101.52 | H72: 4040.93 | I72: 4000.87 | J72: 4202.17 | K72: 4242.23 | L72: 4302.82 | M72: 4181.65 | N72: 4081 | O72: 548500 | P72: -4.30%
A73: 63 | B73: Realty | C73: DLF | D73: 2022-03-31 | E73: 355.10 | F73: 354.40 | G73: 350.85 | H73: 346.60 | I73: 343.05 | J73: 358.65 | K73: 362.20 | L73: 366.45 | M73: 357.95 | N73: 350.15 | O73: 37356000 | P73: -0.69%
A74: 64 | B74: Pharma | C74: DRREDDY | D74: 2022-03-31 | E74: 3981.80 | F74: 3957.18 | G74: 3903.37 | H74: 3824.93 | I74: 3771.12 | J74: 4035.62 | K74: 4089.43 | L74: 4167.87 | M74: 4011 | N74: 3878.75 | O74: 3148125 | P74: -0.84%
A75: 65 | B75: Automobile | C75: EICHERMOT | D75: 2022-03-31 | E75: 2301.10 | F75: 2297.95 | G75: 2271.30 | H75: 2241.50 | I75: 2214.85 | J75: 2327.75 | K75: 2354.40 | L75: 2384.20 | M75: 2324.6 | N75: 2268.15 | O75: 3512950 | P75: 3.37%
A76: 66 | B76: Automobile | C76: ESCORTS | D76: 2022-03-31 | E76: 1686.85 | F76: 1677.15 | G76: 1664.70 | H76: 1642.55 | I76: 1630.10 | J76: 1699.30 | K76: 1711.75 | L76: 1733.90 | M76: 1689.6 | N76: 1655 | O76: 6266150 | P76: -0.39%
A77: 67 | B77: Automobile | C77: EXIDEIND | D77: 2022-03-31 | E77: 154.25 | F77: 154.35 | G77: 152.35 | H77: 150.45 | I77: 148.45 | J77: 156.25 | K77: 158.25 | L77: 160.15 | M77: 156.35 | N77: 152.45 | O77: 22305600 | P77: 1.82%
A78: 68 | B78: Banking | C78: FEDERALBNK | D78: 2022-03-31 | E78: 95.65 | F78: 95.30 | G78: 94.55 | H78: 93.45 | I78: 92.70 | J78: 96.40 | K78: 97.15 | L78: 98.25 | M78: 96.05 | N78: 94.2 | O78: 63390000 | P78: -0.44%
A79: 69 | B79: Technology | C79: FSL | D79: 2022-03-31 | E79: 124.80 | F79: 126.10 | G79: 122.95 | H79: 121.10 | I79: 117.95 | J79: 127.95 | K79: 131.10 | L79: 132.95 | M79: 129.25 | N79: 124.25 | O79: 15256800 | P79: 3.60%
A80: 70 | B80: Oil_Gas | C80: GAIL | D80: 2022-03-31 | E80: 149.10 | F80: 148.13 | G80: 145.87 | H80: 142.63 | I80: 140.37 | J80: 151.37 | K80: 153.63 | L80: 156.87 | M80: 150.4 | N80: 144.9 | O80: 30774500 | P80: -5.91%
A81: 71 | B81: Pharma | C81: GLENMARK | D81: 2022-03-31 | E81: 455.45 | F81: 451.58 | G81: 444.47 | H81: 433.48 | I81: 426.37 | J81: 462.57 | K81: 469.68 | L81: 480.67 | M81: 458.7 | N81: 440.6 | O81: 7569300 | P81: 1.20%
A82: 72 | B82: Infrastructure | C82: GMRINFRA | D82: 2022-03-31 | E82: 39.50 | F82: 39.37 | G82: 38.98 | H82: 38.47 | I82: 38.08 | J82: 39.88 | K82: 40.27 | L82: 40.78 | M82: 39.75 | N82: 38.85 | O82: 98842500 | P82: -0.79%
A83: 73 | B83: Others | C83: GNFC | D83: 2022-03-31 | E83: 708.85 | F83: 684.38 | G83: 654.47 | H83: 600.08 | I83: 570.17 | J83: 738.77 | K83: 768.68 | L83: 823.07 | M83: 714.3 | N83: 630 | O83: 3646500 | P83: 54.72%
A84: 74 | B84: FMCG | C84: GODREJCP | D84: 2022-03-31 | E84: 712.95 | F84: 709.82 | G84: 704.23 | H84: 695.52 | I84: 689.93 | J84: 718.53 | K84: 724.12 | L84: 732.83 | M84: 715.4 | N84: 701.1 | O84: 9420000 | P84: 2.61%
A85: 75 | B85: Realty | C85: GODREJPROP | D85: 2022-03-31 | E85: 1499.45 | F85: 1494.62 | G85: 1480.38 | H85: 1461.32 | I85: 1447.08 | J85: 1513.68 | K85: 1527.92 | L85: 1546.98 | M85: 1508.85 | N85: 1475.55 | O85: 4917900 | P85: -0.25%
A86: 76 | B86: Pharma | C86: GRANULES | D86: 2022-03-31 | E86: 309.00 | F86: 304.20 | G86: 298.60 | H86: 288.20 | I86: 282.60 | J86: 314.60 | K86: 320.20 | L86: 330.60 | M86: 309.8 | N86: 293.8 | O86: 11139850 | P86: -0.66%
A87: 77 | B87: Cement | C87: GRASIM | D87: 2022-03-31 | E87: 1568.25 | F87: 1562.43 | G87: 1550.02 | H87: 1531.78 | I87: 1519.37 | J87: 1580.67 | K87: 1593.08 | L87: 1611.32 | M87: 1574.85 | N87: 1544.2 | O87: 10678000 | P87: -0.31%
A88: 78 | B88: Oil_Gas | C88: GSPL | D88: 2022-03-31 | E88: 268.35 | F88: 268.13 | G88: 266.52 | H88: 264.68 | I88: 263.07 | J88: 269.97 | K88: 271.58 | L88: 273.42 | M88: 269.75 | N88: 266.3 | O88: 2138600 | P88: 0.96%
A89: 79 | B89: Oil_Gas | C89: GUJGASLTD | D89: 2022-03-31 | E89: 512.35 | F89: 512.43 | G89: 504.47 | H89: 496.58 | I89: 488.62 | J89: 520.32 | K89: 528.28 | L89: 536.17 | M89: 520.4 | N89: 504.55 | O89: 3098750 | P89: 5.53%
A90: 80 | B90: Others | C90: HAL | D90: 2022-03-31 | E90: 1391.50 | F90: 1389.70 | G90: 1368.40 | H90: 1345.30 | I90: 1324.00 | J90: 1412.80 | K90: 1434.10 | L90: 1457.20 | M90: 1411 | N90: 1366.6 | O90: 1861525 | P90: 2.24%
A91: 81 | B91: Capital_Goods | C91: HAVELLS | D91: 2022-03-31 | E91: 1097.05 | F91: 1104.77 | G91: 1085.38 | H91: 1073.72 | I91: 1054.33 | J91: 1116.43 | K91: 1135.82 | L91: 1147.48 | M91: 1124.15 | N91: 1093.1 | O91: 5128000 | P91: 2.97%
A92: 82 | B92: Technology | C92: HCLTECH | D92: 2022-03-31 | E92: 1195.50 | F92: 1194.07 | G92: 1179.43 | H92: 1163.37 | I92: 1148.73 | J92: 1210.13 | K92: 1224.77 | L92: 1240.83 | M92: 1208.7 | N92: 1178 | O92: 20433000 | P92: -0.28%
A93: 83 | B93: Finance | C93: HDFC | D93: 2022-03-31 | E93: 2237.25 | F93: 2232.02 | G93: 2201.03 | H93: 2164.82 | I93: 2133.83 | J93: 2268.23 | K93: 2299.22 | L93: 2335.43 | M93: 2263 | N93: 2195.8 | O93: 26470500 | P93: 0.13%
A94: 84 | B94: Finance | C94: HDFCAMC | D94: 2022-03-31 | E94: 2167.15 | F94: 2161.78 | G94: 2148.87 | H94: 2130.58 | I94: 2117.67 | J94: 2180.07 | K94: 2192.98 | L94: 2211.27 | M94: 2174.7 | N94: 2143.5 | O94: 2473000 | P94: -0.09%
A95: 85 | B95: Banking | C95: HDFCBANK | D95: 2022-03-31 | E95: 1391.20 | F95: 1387.65 | G95: 1371.50 | H95: 1351.80 | I95: 1335.65 | J95: 1407.35 | K95: 1423.50 | L95: 1443.20 | M95: 1403.8 | N95: 1367.95 | O95: 42307100 | P95: 3.21%
A96: 86 | B96: Finance | C96: HDFCLIFE | D96: 2022-03-31 | E96: 520.90 | F96: 521.05 | G96: 515.95 | H96: 511.00 | I96: 505.90 | J96: 526.00 | K96: 531.10 | L96: 536.05 | M96: 526.15 | N96: 516.1 | O96: 32268500 | P96: 0.36%
A97: 87 | B97: Automobile | C97: HEROMOTOCO | D97: 2022-03-31 | E97: 2340.00 | F97: 2329.07 | G97: 2307.43 | H97: 2274.87 | I97: 2253.23 | J97: 2361.63 | K97: 2383.27 | L97: 2415.83 | M97: 2350.7 | N97: 2296.5 | O97: 3379200 | P97: -1.56%
A98: 88 | B98: Metals | C98: HINDALCO | D98: 2022-03-31 | E98: 590.95 | F98: 593.83 | G98: 583.42 | H98: 575.88 | I98: 565.47 | J98: 601.37 | K98: 611.78 | L98: 619.32 | M98: 604.25 | N98: 586.3 | O98: 33910875 | P98: -2.97%
A99: 89 | B99: Metals | C99: HINDCOPPER | D99: 2022-03-31 | E99: 124.30 | F99: 124.62 | G99: 122.73 | H99: 121.17 | I99: 119.28 | J99: 126.18 | K99: 128.07 | L99: 129.63 | M99: 126.5 | N99: 123.05 | O99: 16370100 | P99: 3.37%
A100: 90 | B100: Oil_Gas | C100: HINDPETRO | D100: 2022-03-31 | E100: 295.45 | F100: 290.85 | G100: 284.70 | H100: 273.95 | I100: 267.80 | J100: 301.60 | K100: 307.75 | L100: 318.50 | M100: 297 | N100: 280.1 | O100: 14642100 | P100: 0.95%
A101: 91 | B101: FMCG | C101: HINDUNILVR | D101: 2022-03-31 | E101: 2097.30 | F101: 2095.27 | G101: 2075.38 | H101: 2053.47 | I101: 2033.58 | J101: 2117.18 | K101: 2137.07 | L101: 2158.98 | M101: 2115.15 | N101: 2073.35 | O101: 12060000 | P101: -2.02%
A102: 92 | B102: Others | C102: HONAUT | D102: 2022-03-31 | E102: 39992.75 | F102: 40051.48 | G102: 39652.97 | H102: 39313.18 | I102: 38914.67 | J102: 40391.27 | K102: 40789.78 | L102: 41129.57 | M102: 40450 | N102: 39711.7 | O102: 8460 | P102: 1.81%
A103: 93 | B103: Finance | C103: IBULHSGFIN | D103: 2022-03-31 | E103: 151.70 | F103: 151.23 | G103: 148.47 | H103: 145.23 | I103: 142.47 | J103: 154.47 | K103: 157.23 | L103: 160.47 | M103: 154 | N103: 148 | O103: 38588800 | P103: -1.01%
A104: 94 | B104: Banking | C104: ICICIBANK | D104: 2022-03-31 | E104: 679.70 | F104: 679.40 | G104: 672.30 | H104: 664.90 | I104: 657.80 | J104: 686.80 | K104: 693.90 | L104: 701.30 | M104: 686.5 | N104: 672 | O104: 135931125 | P104: 0.93%
A105: 95 | B105: Finance | C105: ICICIGI | D105: 2022-03-31 | E105: 1261.85 | F105: 1260.82 | G105: 1252.53 | H105: 1243.22 | I105: 1234.93 | J105: 1270.13 | K105: 1278.42 | L105: 1287.73 | M105: 1269.1 | N105: 1251.5 | O105: 3702600 | P105: 2.63%
A106: 96 | B106: Finance | C106: ICICIPRULI | D106: 2022-03-31 | E106: 464.90 | F106: 461.98 | G106: 457.27 | H106: 449.63 | I106: 444.92 | J106: 469.62 | K106: 474.33 | L106: 481.97 | M106: 466.7 | N106: 454.35 | O106: 8821500 | P106: -0.41%
A107: 97 | B107: Telecom | C107: IDEA | D107: 2022-03-31 | E107: 10.50 | F107: 10.47 | G107: 10.28 | H107: 10.07 | I107: 9.88 | J107: 10.68 | K107: 10.87 | L107: 11.08 | M107: 10.65 | N107: 10.25 | O107: 812560000 | P107: -0.03%
A108: 98 | B108: Finance | C108: IDFC | D108: 2022-03-31 | E108: 56.90 | F108: 56.83 | G108: 56.27 | H108: 55.63 | I108: 55.07 | J108: 57.47 | K108: 58.03 | L108: 58.67 | M108: 57.4 | N108: 56.2 | O108: 88990000 | P108: -0.37%
A109: 99 | B109: Banking | C109: IDFCFIRSTB | D109: 2022-03-31 | E109: 42.65 | F109: 42.42 | G109: 41.93 | H109: 41.22 | I109: 40.73 | J109: 43.13 | K109: 43.62 | L109: 44.33 | M109: 42.9 | N109: 41.7 | O109: 155011500 | P109: -0.42%
A110: 100 | B110: Others | C110: IEX | D110: 2022-03-31 | E110: 226.25 | F110: 226.00 | G110: 222.50 | H110: 218.75 | I110: 215.25 | J110: 229.75 | K110: 233.25 | L110: 237.00 | M110: 229.5 | N110: 222.25 | O110: 39465000 | P110: -1.64%
A111: 101 | B111: Oil_Gas | C111: IGL | D111: 2022-03-31 | E111: 379.50 | F111: 381.92 | G111: 374.38 | H111: 369.27 | I111: 361.73 | J111: 387.03 | K111: 394.57 | L111: 399.68 | M111: 389.45 | N111: 376.8 | O111: 15785000 | P111: 1.31%
A112: 102 | B112: Infrastructure | C112: INDHOTEL | D112: 2022-03-31 | E112: 204.05 | F112: 203.03 | G112: 201.02 | H112: 197.98 | I112: 195.97 | J112: 206.07 | K112: 208.08 | L112: 211.12 | M112: 205.05 | N112: 200 | O112: 18770674 | P112: -0.30%
A113: 103 | B113: Cement | C113: INDIACEM | D113: 2022-03-31 | E113: 205.85 | F113: 204.08 | G113: 200.67 | H113: 195.48 | I113: 192.07 | J113: 209.27 | K113: 212.68 | L113: 217.87 | M113: 207.5 | N113: 198.9 | O113: 13099300 | P113: 1.53%
A114: 104 | B114: Others | C114: INDIAMART | D114: 2022-03-31 | E114: 4468.90 | F114: 4489.07 | G114: 4401.28 | H114: 4333.67 | I114: 4245.88 | J114: 4556.68 | K114: 4644.47 | L114: 4712.08 | M114: 4576.85 | N114: 4421.45 | O114: 361650 | P114: -0.50%
A115: 105 | B115: Others | C115: INDIGO | D115: 2022-03-31 | E115: 1828.60 | F115: 1812.42 | G115: 1779.88 | H115: 1731.17 | I115: 1698.63 | J115: 1861.13 | K115: 1893.67 | L115: 1942.38 | M115: 1844.95 | N115: 1763.7 | O115: 3310000 | P115: 3.42%
A116: 106 | B116: Banking | C116: INDUSINDBK | D116: 2022-03-31 | E116: 905.45 | F116: 907.02 | G116: 895.13 | H116: 884.82 | I116: 872.93 | J116: 917.33 | K116: 929.22 | L116: 939.53 | M116: 918.9 | N116: 896.7 | O116: 26387100 | P116: 0.08%
A117: 107 | B117: Telecom | C117: INDUSTOWER | D117: 2022-03-31 | E117: 215.15 | F117: 214.43 | G117: 213.12 | H117: 211.08 | I117: 209.77 | J117: 216.47 | K117: 217.78 | L117: 219.82 | M117: 215.75 | N117: 212.4 | O117: 21845600 | P117: -0.65%
A118: 108 | B118: Technology | C118: INFY | D118: 2022-03-31 | E118: 1830.40 | F118: 1829.00 | G118: 1819.10 | H118: 1807.80 | I118: 1797.90 | J118: 1840.30 | K118: 1850.20 | L118: 1861.50 | M118: 1838.9 | N118: 1817.7 | O118: 34112700 | P118: -1.04%
A119: 109 | B119: Technology | C119: INTELLECT | D119: 2022-03-31 | E119: 740.65 | F119: 733.67 | G119: 719.33 | H119: 698.02 | I119: 683.68 | J119: 754.98 | K119: 769.32 | L119: 790.63 | M119: 748 | N119: 712.35 | O119: 622500 | P119: 10.81%
A120: 110 | B120: Oil_Gas | C120: IOC | D120: 2022-03-31 | E120: 123.00 | F120: 122.05 | G120: 120.00 | H120: 117.00 | I120: 114.95 | J120: 125.05 | K120: 127.10 | L120: 130.10 | M120: 124.1 | N120: 119.05 | O120: 37726000 | P120: 6.95%
A121: 111 | B121: Pharma | C121: IPCALAB | D121: 2022-03-31 | E121: 1021.35 | F121: 1013.60 | G121: 999.20 | H121: 977.05 | I121: 962.65 | J121: 1035.75 | K121: 1050.15 | L121: 1072.30 | M121: 1028 | N121: 991.45 | O121: 950850 | P121: 5.91%
A122: 112 | B122: Others | C122: IRCTC | D122: 2022-03-31 | E122: 755.10 | F122: 753.90 | G122: 746.30 | H122: 737.50 | I122: 729.90 | J122: 762.70 | K122: 770.30 | L122: 779.10 | M122: 761.5 | N122: 745.1 | O122: 13181875 | P122: -0.31%
A123: 113 | B123: FMCG | C123: ITC | D123: 2022-03-31 | E123: 236.50 | F123: 234.82 | G123: 232.38 | H123: 228.27 | I123: 225.83 | J123: 238.93 | K123: 241.37 | L123: 245.48 | M123: 237.25 | N123: 230.7 | O123: 119452800 | P123: -1.33%
A124: 114 | B124: Metals | C124: JINDALSTEL | D124: 2022-03-31 | E124: 480.35 | F124: 476.03 | G124: 468.97 | H124: 457.58 | I124: 450.52 | J124: 487.42 | K124: 494.48 | L124: 505.87 | M124: 483.1 | N124: 464.65 | O124: 39387500 | P124: 2.79%
A125: 115 | B125: Cement | C125: JKCEMENT | D125: 2022-03-31 | E125: 2306.35 | F125: 2309.65 | G125: 2272.35 | H125: 2238.35 | I125: 2201.05 | J125: 2343.65 | K125: 2380.95 | L125: 2414.95 | M125: 2346.95 | N125: 2275.65 | O125: 496825 | P125: 1.90%
A126: 116 | B126: Metals | C126: JSWSTEEL | D126: 2022-03-31 | E126: 670.15 | F126: 664.18 | G126: 653.72 | H126: 637.28 | I126: 626.82 | J126: 680.62 | K126: 691.08 | L126: 707.52 | M126: 674.65 | N126: 647.75 | O126: 34408800 | P126: -0.44%
A127: 117 | B127: Others | C127: JUBLFOOD | D127: 2022-03-31 | E127: 2871.20 | F127: 2833.07 | G127: 2778.13 | H127: 2685.07 | I127: 2630.13 | J127: 2926.13 | K127: 2981.07 | L127: 3074.13 | M127: 2888 | N127: 2740 | O127: 2783875 | P127: -3.72%
A128: 118 | B128: Banking | C128: KOTAKBANK | D128: 2022-03-31 | E128: 1763.80 | F128: 1761.75 | G128: 1741.90 | H128: 1720.00 | I128: 1700.15 | J128: 1783.65 | K128: 1803.50 | L128: 1825.40 | M128: 1781.6 | N128: 1739.85 | O128: 14929200 | P128: -0.57%
A129: 119 | B129: Finance | C129: L&TFH | D129: 2022-03-31 | E129: 67.25 | F129: 66.62 | G129: 65.78 | H129: 64.32 | I129: 63.48 | J129: 68.08 | K129: 68.92 | L129: 70.38 | M129: 67.45 | N129: 65.15 | O129: 62334140 | P129: -2.29%
A130: 120 | B130: Others | C130: LALPATHLAB | D130: 2022-03-31 | E130: 2624.45 | F130: 2600.77 | G130: 2557.33 | H130: 2490.22 | I130: 2446.78 | J130: 2667.88 | K130: 2711.32 | L130: 2778.43 | M130: 2644.2 | N130: 2533.65 | O130: 730875 | P130: -2.57%
A131: 121 | B131: Pharma | C131: LAURUSLABS | D131: 2022-03-31 | E131: 580.80 | F131: 574.48 | G131: 559.37 | H131: 537.93 | I131: 522.82 | J131: 595.92 | K131: 611.03 | L131: 632.47 | M131: 589.6 | N131: 553.05 | O131: 5685300 | P131: 6.36%
A132: 122 | B132: Finance | C132: LICHSGFIN | D132: 2022-03-31 | E132: 356.90 | F132: 353.93 | G132: 348.47 | H132: 340.03 | I132: 334.57 | J132: 362.37 | K132: 367.83 | L132: 376.27 | M132: 359.4 | N132: 345.5 | O132: 19384000 | P132: -1.48%
A133: 123 | B133: Capital_Goods | C133: LT | D133: 2022-03-31 | E133: 1730.60 | F133: 1726.73 | G133: 1716.02 | H133: 1701.43 | I133: 1690.72 | J133: 1741.32 | K133: 1752.03 | L133: 1766.62 | M133: 1737.45 | N133: 1712.15 | O133: 14766000 | P133: -2.71%
A134: 124 | B134: Technology | C134: LTI | D134: 2022-03-31 | E134: 6252.60 | F134: 6234.57 | G134: 6189.58 | H134: 6126.57 | I134: 6081.58 | J134: 6297.58 | K134: 6342.57 | L134: 6405.58 | M134: 6279.55 | N134: 6171.55 | O134: 1001250 | P134: 3.01%
A135: 125 | B135: Technology | C135: LTTS | D135: 2022-03-31 | E135: 4962.75 | F135: 4942.40 | G135: 4885.85 | H135: 4808.95 | I135: 4752.40 | J135: 5019.30 | K135: 5075.85 | L135: 5152.75 | M135: 4998.95 | N135: 4865.5 | O135: 514200 | P135: -2.35%
A136: 126 | B136: Pharma | C136: LUPIN | D136: 2022-03-31 | E136: 751.10 | F136: 749.50 | G136: 741.60 | H136: 732.10 | I136: 724.20 | J136: 759.00 | K136: 766.90 | L136: 776.40 | M136: 757.4 | N136: 740 | O136: 9300700 | P136: 1.29%
A137: 127 | B137: Automobile | C137: M&M | D137: 2022-03-31 | E137: 737.10 | F137: 736.88 | G137: 730.87 | H137: 724.63 | I137: 718.62 | J137: 743.12 | K137: 749.13 | L137: 755.37 | M137: 742.9 | N137: 730.65 | O137: 15456000 | P137: -0.51%
A138: 128 | B138: Finance | C138: M&MFIN | D138: 2022-03-31 | E138: 145.75 | F138: 144.90 | G138: 142.80 | H138: 139.85 | I138: 137.75 | J138: 147.85 | K138: 149.95 | L138: 152.90 | M138: 147 | N138: 141.95 | O138: 34044000 | P138: -0.56%
A139: 129 | B139: Finance | C139: MANAPPURAM | D139: 2022-03-31 | E139: 117.45 | F139: 119.37 | G139: 114.73 | H139: 112.02 | I139: 107.38 | J139: 122.08 | K139: 126.72 | L139: 129.43 | M139: 124 | N139: 116.65 | O139: 27207000 | P139: 5.33%
A140: 130 | B140: FMCG | C140: MARICO | D140: 2022-03-31 | E140: 508.40 | F140: 506.92 | G140: 503.83 | H140: 499.27 | I140: 496.18 | J140: 511.48 | K140: 514.57 | L140: 519.13 | M140: 510 | N140: 502.35 | O140: 8837000 | P140: 0.30%
A141: 131 | B141: Automobile | C141: MARUTI | D141: 2022-03-31 | E141: 7130.35 | F141: 7148.45 | G141: 7079.95 | H141: 7029.55 | I141: 6961.05 | J141: 7198.85 | K141: 7267.35 | L141: 7317.75 | M141: 7216.95 | N141: 7098.05 | O141: 3027200 | P141: 1.38%
A142: 132 | B142: FMCG | C142: MCDOWELL-N | D142: 2022-03-31 | E142: 853.10 | F142: 850.80 | G142: 844.40 | H142: 835.70 | I142: 829.30 | J142: 859.50 | K142: 865.90 | L142: 874.60 | M142: 857.2 | N142: 842.1 | O142: 12637500 | P142: 0.12%
A143: 133 | B143: Others | C143: MCX | D143: 2022-03-31 | E143: 1391.65 | F143: 1378.68 | G143: 1333.17 | H143: 1274.68 | I143: 1229.17 | J143: 1437.17 | K143: 1482.68 | L143: 1541.17 | M143: 1424.2 | N143: 1320.2 | O143: 2111550 | P143: -7.38%
A144: 134 | B144: Pharma | C144: METROPOLIS | D144: 2022-03-31 | E144: 1902.00 | F144: 1914.78 | G144: 1885.32 | H144: 1868.63 | I144: 1839.17 | J144: 1931.47 | K144: 1960.93 | L144: 1977.62 | M144: 1944.25 | N144: 1898.1 | O144: 832400 | P144: -2.57%
A145: 135 | B145: Finance | C145: MFSL | D145: 2022-03-31 | E145: 785.15 | F145: 781.48 | G145: 773.82 | H145: 762.48 | I145: 754.82 | J145: 792.82 | K145: 800.48 | L145: 811.82 | M145: 789.15 | N145: 770.15 | O145: 1716650 | P145: 0.65%
A146: 136 | B146: Oil_Gas | C146: MGL | D146: 2022-03-31 | E146: 754.85 | F146: 755.08 | G146: 747.77 | H146: 740.68 | I146: 733.37 | J146: 762.17 | K146: 769.48 | L146: 776.57 | M146: 762.4 | N146: 748 | O146: 3599400 | P146: 3.25%
A147: 137 | B147: Technology | C147: MINDTREE | D147: 2022-03-31 | E147: 4104.50 | F147: 4075.80 | G147: 4036.85 | H147: 3969.20 | I147: 3930.25 | J147: 4143.45 | K147: 4182.40 | L147: 4250.05 | M147: 4114.75 | N147: 4008.15 | O147: 2715600 | P147: 0.75%
A148: 138 | B148: Automobile | C148: MOTHERSUMI | D148: 2022-03-31 | E148: 131.85 | F148: 130.97 | G148: 129.18 | H148: 126.52 | I148: 124.73 | J148: 133.63 | K148: 135.42 | L148: 138.08 | M148: 132.75 | N148: 128.3 | O148: 35346500 | P148: 7.92%
A149: 139 | B149: Technology | C149: MPHASIS | D149: 2022-03-31 | E149: 3287.85 | F149: 3255.30 | G149: 3212.65 | H149: 3137.45 | I149: 3094.80 | J149: 3330.50 | K149: 3373.15 | L149: 3448.35 | M149: 3297.95 | N149: 3180.1 | O149: 1656200 | P149: -1.46%
A150: 140 | B150: Automobile | C150: MRF | D150: 2022-03-31 | E150: 67753.15 | F150: 67374.82 | G150: 66878.33 | H150: 66003.52 | I150: 65507.03 | J150: 68249.63 | K150: 68746.12 | L150: 69620.93 | M150: 67871.3 | N150: 66500 | O150: 82800 | P150: -1.46%
A151: 141 | B151: Finance | C151: MUTHOOTFIN | D151: 2022-03-31 | E151: 1389.25 | F151: 1391.23 | G151: 1376.22 | H151: 1363.18 | I151: 1348.17 | J151: 1404.27 | K151: 1419.28 | L151: 1432.32 | M151: 1406.25 | N151: 1378.2 | O151: 3074250 | P151: -1.96%
A152: 142 | B152: Others | C152: NAM-INDIA | D152: 2022-03-31 | E152: 312.70 | F152: 313.38 | G152: 308.82 | H152: 304.93 | I152: 300.37 | J152: 317.27 | K152: 321.83 | L152: 325.72 | M152: 317.95 | N152: 309.5 | O152: 2396800 | P152: -3.42%
A153: 143 | B153: Metals | C153: NATIONALUM | D153: 2022-03-31 | E153: 122.30 | F153: 123.20 | G153: 120.70 | H153: 119.10 | I153: 116.60 | J153: 124.80 | K153: 127.30 | L153: 128.90 | M153: 125.7 | N153: 121.6 | O153: 92964500 | P153: 2.71%
A154: 144 | B154: Others | C154: NAUKRI | D154: 2022-03-31 | E154: 4623.55 | F154: 4586.13 | G154: 4536.67 | H154: 4449.78 | I154: 4400.32 | J154: 4673.02 | K154: 4722.48 | L154: 4809.37 | M154: 4635.6 | N154: 4499.25 | O154: 1572250 | P154: 1.09%
A155: 145 | B155: Chemical | C155: NAVINFLUOR | D155: 2022-03-31 | E155: 3867.20 | F155: 3820.90 | G155: 3751.85 | H155: 3636.50 | I155: 3567.45 | J155: 3936.25 | K155: 4005.30 | L155: 4120.65 | M155: 3889.95 | N155: 3705.55 | O155: 358425 | P155: -4.95%
A156: 146 | B156: Others | C156: NBCC | D156: 2022-03-31 | E156: 39.75 | F156: 39.43 | G156: 39.07 | H156: 38.38 | I156: 38.02 | J156: 40.12 | K156: 40.48 | L156: 41.17 | M156: 39.8 | N156: 38.75 | O156: 22632000 | P156: 0.59%
A157: 147 | B157: FMCG | C157: NESTLEIND | D157: 2022-03-31 | E157: 17354.20 | F157: 17415.42 | G157: 17189.43 | H157: 17024.67 | I157: 16798.68 | J157: 17580.18 | K157: 17806.17 | L157: 17970.93 | M157: 17641.4 | N157: 17250.65 | O157: 385775 | P157: 1.24%
A158: 148 | B158: Metals | C158: NMDC | D158: 2022-03-31 | E158: 158.05 | F158: 156.77 | G158: 154.73 | H158: 151.42 | I158: 149.38 | J158: 160.08 | K158: 162.12 | L158: 165.43 | M158: 158.8 | N158: 153.45 | O158: 71254500 | P158: 2.86%
A159: 149 | B159: Power | C159: NTPC | D159: 2022-03-31 | E159: 132.20 | F159: 132.30 | G159: 131.60 | H159: 131.00 | I159: 130.30 | J159: 132.90 | K159: 133.60 | L159: 134.20 | M159: 133 | N159: 131.7 | O159: 51545100 | P159: 3.31%
A160: 150 | B160: Realty | C160: OBEROIRLTY | D160: 2022-03-31 | E160: 918.20 | F160: 915.03 | G160: 907.07 | H160: 895.93 | I160: 887.97 | J160: 926.17 | K160: 934.13 | L160: 945.27 | M160: 923 | N160: 903.9 | O160: 1731100 | P160: -1.55%
A161: 151 | B161: Technology | C161: OFSS | D161: 2022-03-31 | E161: 3483.25 | F161: 3484.92 | G161: 3441.83 | H161: 3400.42 | I161: 3357.33 | J161: 3526.33 | K161: 3569.42 | L161: 3610.83 | M161: 3528 | N161: 3443.5 | O161: 593500 | P161: 0.83%
A162: 152 | B162: Oil_Gas | C162: ONGC | D162: 2022-03-31 | E162: 175.20 | F162: 174.15 | G162: 172.60 | H162: 170.00 | I162: 168.45 | J162: 176.75 | K162: 178.30 | L162: 180.90 | M162: 175.7 | N162: 171.55 | O162: 46107600 | P162: 2.82%
A163: 153 | B163: Textile | C163: PAGEIND | D163: 2022-03-31 | E163: 41673.80 | F163: 41441.90 | G163: 41102.85 | H163: 40531.90 | I163: 40192.85 | J163: 42012.85 | K163: 42351.90 | L163: 42922.85 | M163: 41780.95 | N163: 40870.95 | O163: 100590 | P163: 0.63%
A164: 154 | B164: Pharma | C164: PEL | D164: 2022-03-31 | E164: 2033.20 | F164: 2024.20 | G164: 2003.40 | H164: 1973.60 | I164: 1952.80 | J164: 2054.00 | K164: 2074.80 | L164: 2104.60 | M164: 2045 | N164: 1994.4 | O164: 4872725 | P164: -0.43%
A165: 155 | B165: Technology | C165: PERSISTENT | D165: 2022-03-31 | E165: 4368.35 | F165: 4329.77 | G165: 4280.28 | H165: 4192.22 | I165: 4142.73 | J165: 4417.83 | K165: 4467.32 | L165: 4555.38 | M165: 4379.25 | N165: 4241.7 | O165: 420450 | P165: 0.14%
A166: 156 | B166: Oil_Gas | C166: PETRONET | D166: 2022-03-31 | E166: 210.40 | F166: 209.62 | G166: 207.73 | H166: 205.07 | I166: 203.18 | J166: 212.28 | K166: 214.17 | L166: 216.83 | M166: 211.5 | N166: 206.95 | O166: 18105000 | P166: 2.76%
A167: 157 | B167: Finance | C167: PFC | D167: 2022-03-31 | E167: 113.00 | F167: 112.75 | G167: 111.90 | H167: 110.80 | I167: 109.95 | J167: 113.85 | K167: 114.70 | L167: 115.80 | M167: 113.6 | N167: 111.65 | O167: 37751800 | P167: -0.86%
A168: 158 | B168: Pharma | C168: PFIZER | D168: 2022-03-31 | E168: 4495.55 | F168: 4468.60 | G168: 4427.20 | H168: 4358.85 | I168: 4317.45 | J168: 4536.95 | K168: 4578.35 | L168: 4646.70 | M168: 4510 | N168: 4400.25 | O168: 102625 | P168: 2.88%
A169: 159 | B169: FMCG | C169: PIDILITIND | D169: 2022-03-31 | E169: 2341.75 | F169: 2334.32 | G169: 2315.33 | H169: 2288.92 | I169: 2269.93 | J169: 2360.73 | K169: 2379.72 | L169: 2406.13 | M169: 2353.3 | N169: 2307.9 | O169: 3023000 | P169: 0.82%
A170: 160 | B170: Chemical | C170: PIIND | D170: 2022-03-31 | E170: 2584.05 | F170: 2574.13 | G170: 2556.67 | H170: 2529.28 | I170: 2511.82 | J170: 2601.52 | K170: 2618.98 | L170: 2646.37 | M170: 2591.6 | N170: 2546.75 | O170: 1823250 | P170: -1.92%
A171: 161 | B171: Banking | C171: PNB | D171: 2022-03-31 | E171: 36.45 | F171: 36.23 | G171: 35.87 | H171: 35.28 | I171: 34.92 | J171: 36.82 | K171: 37.18 | L171: 37.77 | M171: 36.6 | N171: 35.65 | O171: 181856000 | P171: -0.53%
A172: 162 | B172: Others | C172: POLYCAB | D172: 2022-03-31 | E172: 2354.55 | F172: 2340.32 | G172: 2315.83 | H172: 2277.12 | I172: 2252.63 | J172: 2379.03 | K172: 2403.52 | L172: 2442.23 | M172: 2364.8 | N172: 2301.6 | O172: 624600 | P172: -4.67%
A173: 163 | B173: Power | C173: POWERGRID | D173: 2022-03-31 | E173: 213.20 | F173: 211.87 | G173: 209.98 | H173: 206.77 | I173: 204.88 | J173: 215.08 | K173: 216.97 | L173: 220.18 | M173: 213.75 | N173: 208.65 | O173: 32104660 | P173: 3.47%
A174: 164 | B174: Media | C174: PVR | D174: 2022-03-31 | E174: 1690.05 | F174: 1692.08 | G174: 1660.27 | H174: 1630.48 | I174: 1598.67 | J174: 1721.87 | K174: 1753.68 | L174: 1783.47 | M174: 1723.9 | N174: 1662.3 | O174: 2783880 | P174: -2.30%
A175: 165 | B175: Others | C175: RAIN | D175: 2022-03-31 | E175: 181.75 | F175: 180.35 | G175: 177.40 | H175: 173.05 | I175: 170.10 | J175: 184.70 | K175: 187.65 | L175: 192.00 | M175: 183.3 | N175: 176 | O175: 7165000 | P175: 0.56%
A176: 166 | B176: Cement | C176: RAMCOCEM | D176: 2022-03-31 | E176: 739.45 | F176: 735.85 | G176: 727.70 | H176: 715.95 | I176: 707.80 | J176: 747.60 | K176: 755.75 | L176: 767.50 | M176: 744 | N176: 724.1 | O176: 2414000 | P176: -0.80%
A177: 167 | B177: Banking | C177: RBLBANK | D177: 2022-03-31 | E177: 134.35 | F177: 134.08 | G177: 132.87 | H177: 131.38 | I177: 130.17 | J177: 135.57 | K177: 136.78 | L177: 138.27 | M177: 135.3 | N177: 132.6 | O177: 39425500 | P177: 0.35%
A178: 168 | B178: Power | C178: RECLTD | D178: 2022-03-31 | E178: 126.30 | F178: 124.87 | G178: 123.23 | H178: 120.17 | I178: 118.53 | J178: 127.93 | K178: 129.57 | L178: 132.63 | M178: 126.5 | N178: 121.8 | O178: 26856000 | P178: 0.92%
A179: 169 | B179: Oil_Gas | C179: RELIANCE | D179: 2022-03-31 | E179: 2401.60 | F179: 2399.38 | G179: 2383.52 | H179: 2365.43 | I179: 2349.57 | J179: 2417.47 | K179: 2433.33 | L179: 2451.42 | M179: 2415.25 | N179: 2381.3 | O179: 34811750 | P179: 0.11%
A180: 170 | B180: Metals | C180: SAIL | D180: 2022-03-31 | E180: 99.30 | F180: 99.78 | G180: 97.82 | H180: 96.33 | I180: 94.37 | J180: 101.27 | K180: 103.23 | L180: 104.72 | M180: 101.75 | N180: 98.3 | O180: 166088500 | P180: 1.74%
A181: 171 | B181: Banking | C181: SBICARD | D181: 2022-03-31 | E181: 809.40 | F181: 805.18 | G181: 799.37 | H181: 789.33 | I181: 783.52 | J181: 815.22 | K181: 821.03 | L181: 831.07 | M181: 811 | N181: 795.15 | O181: 4718500 | P181: -0.21%
A182: 172 | B182: Finance | C182: SBILIFE | D182: 2022-03-31 | E182: 1061.05 | F182: 1058.38 | G182: 1048.92 | H182: 1036.78 | I182: 1027.32 | J182: 1070.52 | K182: 1079.98 | L182: 1092.12 | M182: 1067.85 | N182: 1046.25 | O182: 8091000 | P182: -1.05%
A183: 173 | B183: Banking | C183: SBIN | D183: 2022-03-31 | E183: 471.10 | F183: 469.63 | G183: 463.97 | H183: 456.83 | I183: 451.17 | J183: 476.77 | K183: 482.43 | L183: 489.57 | M183: 475.3 | N183: 462.5 | O183: 77580000 | P183: -0.87%
A184: 174 | B184: Cement | C184: SHREECEM | D184: 2022-03-31 | E184: 22438.25 | F184: 22323.35 | G184: 22176.70 | H184: 21915.15 | I184: 21768.50 | J184: 22584.90 | K184: 22731.55 | L184: 22993.10 | M184: 22470 | N184: 22061.8 | O184: 303375 | P184: -2.86%
A185: 175 | B185: Capital_Goods | C185: SIEMENS | D185: 2022-03-31 | E185: 2363.55 | F185: 2350.22 | G185: 2329.33 | H185: 2295.12 | I185: 2274.23 | J185: 2384.43 | K185: 2405.32 | L185: 2439.53 | M185: 2371.1 | N185: 2316 | O185: 1587025 | P185: -1.15%
A186: 176 | B186: Textile | C186: SRF | D186: 2022-03-31 | E186: 2261.65 | F186: 2264.78 | G186: 2241.87 | H186: 2222.08 | I186: 2199.17 | J186: 2284.57 | K186: 2307.48 | L186: 2327.27 | M186: 2287.7 | N186: 2245 | O186: 3337500 | P186: 4.09%
A187: 177 | B187: Finance | C187: SRTRANSFIN | D187: 2022-03-31 | E187: 1091.00 | F187: 1080.35 | G187: 1065.30 | H187: 1039.60 | I187: 1024.55 | J187: 1106.05 | K187: 1121.10 | L187: 1146.80 | M187: 1095.4 | N187: 1054.65 | O187: 4188800 | P187: -1.56%
A188: 178 | B188: Pharma | C188: STAR | D188: 2022-03-31 | E188: 330.40 | F188: 329.78 | G188: 324.57 | H188: 318.73 | I188: 313.52 | J188: 335.62 | K188: 340.83 | L188: 346.67 | M188: 335 | N188: 323.95 | O188: 4785300 | P188: 10.13%
A189: 179 | B189: Pharma | C189: SUNPHARMA | D189: 2022-03-31 | E189: 903.25 | F189: 894.08 | G189: 879.67 | H189: 856.08 | I189: 841.67 | J189: 917.67 | K189: 932.08 | L189: 955.67 | M189: 908.5 | N189: 870.5 | O189: 20713700 | P189: 2.07%
A190: 180 | B190: Media | C190: SUNTV | D190: 2022-03-31 | E190: 452.40 | F190: 452.98 | G190: 449.17 | H190: 445.93 | I190: 442.12 | J190: 456.22 | K190: 460.03 | L190: 463.27 | M190: 456.8 | N190: 449.75 | O190: 13335000 | P190: 0.23%
A191: 181 | B191: Pharma | C191: SYNGENE | D191: 2022-03-31 | E191: 579.80 | F191: 574.62 | G191: 567.23 | H191: 554.67 | I191: 547.28 | J191: 587.18 | K191: 594.57 | L191: 607.13 | M191: 582 | N191: 562.05 | O191: 906950 | P191: 5.85%
A192: 182 | B192: Chemical | C192: TATACHEM | D192: 2022-03-31 | E192: 930.30 | F192: 924.30 | G192: 915.00 | H192: 899.70 | I192: 890.40 | J192: 939.60 | K192: 948.90 | L192: 964.20 | M192: 933.6 | N192: 909 | O192: 5264000 | P192: -2.37%
A193: 183 | B193: Telecom | C193: TATACOMM | D193: 2022-03-31 | E193: 1151.80 | F193: 1155.93 | G193: 1140.87 | H193: 1129.93 | I193: 1114.87 | J193: 1166.87 | K193: 1181.93 | L193: 1192.87 | M193: 1171 | N193: 1145 | O193: 2788800 | P193: 0.40%
A194: 184 | B194: FMCG | C194: TATACONSUM | D194: 2022-03-31 | E194: 717.80 | F194: 717.02 | G194: 711.03 | H194: 704.27 | I194: 698.28 | J194: 723.78 | K194: 729.77 | L194: 736.53 | M194: 723 | N194: 710.25 | O194: 10616400 | P194: 0.40%
A195: 185 | B195: Automobile | C195: TATAMOTORS | D195: 2022-03-31 | E195: 419.95 | F195: 416.97 | G195: 411.23 | H195: 402.52 | I195: 396.78 | J195: 425.68 | K195: 431.42 | L195: 440.13 | M195: 422.7 | N195: 408.25 | O195: 81883350 | P195: 3.32%
A196: 186 | B196: Power | C196: TATAPOWER | D196: 2022-03-31 | E196: 234.35 | F196: 233.48 | G196: 231.82 | H196: 229.28 | I196: 227.62 | J196: 236.02 | K196: 237.68 | L196: 240.22 | M196: 235.15 | N196: 230.95 | O196: 95033250 | P196: -0.09%
A197: 187 | B197: Metals | C197: TATASTEEL | D197: 2022-03-31 | E197: 1305.75 | F197: 1316.08 | G197: 1289.67 | H197: 1273.58 | I197: 1247.17 | J197: 1332.17 | K197: 1358.58 | L197: 1374.67 | M197: 1342.5 | N197: 1300 | O197: 38949125 | P197: 0.56%
A198: 188 | B198: Technology | C198: TCS | D198: 2022-03-31 | E198: 3614.10 | F198: 3622.53 | G198: 3597.32 | H198: 3580.53 | I198: 3555.32 | J198: 3639.32 | K198: 3664.53 | L198: 3681.32 | M198: 3647.75 | N198: 3605.75 | O198: 13178100 | P198: 0.99%
A199: 189 | B199: Technology | C199: TECHM | D199: 2022-03-31 | E199: 1491.50 | F199: 1487.77 | G199: 1480.23 | H199: 1468.97 | I199: 1461.43 | J199: 1499.03 | K199: 1506.57 | L199: 1517.83 | M199: 1495.3 | N199: 1476.5 | O199: 14336400 | P199: 0.16%
A200: 190 | B200: FMCG | C200: TITAN | D200: 2022-03-31 | E200: 2502.75 | F200: 2487.27 | G200: 2465.53 | H200: 2428.32 | I200: 2406.58 | J200: 2524.48 | K200: 2546.22 | L200: 2583.43 | M200: 2509 | N200: 2450.05 | O200: 5070000 | P200: -3.46%
A201: 191 | B201: Pharma | C201: TORNTPHARM | D201: 2022-03-31 | E201: 2835.25 | F201: 2821.65 | G201: 2790.30 | H201: 2745.35 | I201: 2714.00 | J201: 2866.60 | K201: 2897.95 | L201: 2942.90 | M201: 2853 | N201: 2776.7 | O201: 814500 | P201: 1.05%
A202: 192 | B202: Power | C202: TORNTPOWER | D202: 2022-03-31 | E202: 482.85 | F202: 484.67 | G202: 479.53 | H202: 476.22 | I202: 471.08 | J202: 487.98 | K202: 493.12 | L202: 496.43 | M202: 489.8 | N202: 481.35 | O202: 3340500 | P202: -1.20%
A203: 193 | B203: Others | C203: TRENT | D203: 2022-03-31 | E203: 1170.25 | F203: 1163.30 | G203: 1143.05 | H203: 1115.85 | I203: 1095.60 | J203: 1190.50 | K203: 1210.75 | L203: 1237.95 | M203: 1183.55 | N203: 1136.1 | O203: 2695550 | P203: -4.86%
A204: 194 | B204: Automobile | C204: TVSMOTOR | D204: 2022-03-31 | E204: 574.65 | F204: 568.50 | G204: 560.45 | H204: 546.25 | I204: 538.20 | J204: 582.70 | K204: 590.75 | L204: 604.95 | M204: 576.55 | N204: 554.3 | O204: 7756000 | P204: -3.38%
A205: 195 | B205: FMCG | C205: UBL | D205: 2022-03-31 | E205: 1433.55 | F205: 1425.82 | G205: 1414.33 | H205: 1395.12 | I205: 1383.63 | J205: 1445.03 | K205: 1456.52 | L205: 1475.73 | M205: 1437.3 | N205: 1406.6 | O205: 1037050 | P205: -4.08%
A206: 196 | B206: Cement | C206: ULTRACEMCO | D206: 2022-03-31 | E206: 6033.95 | F206: 6055.58 | G206: 5978.37 | H206: 5922.78 | I206: 5845.57 | J206: 6111.17 | K206: 6188.38 | L206: 6243.97 | M206: 6132.8 | N206: 6000 | O206: 3171500 | P206: -2.17%
... 22 more rows

Sheet Cash Intra
M5: Back to Main Page
A6: FOR INTRA DAY TRADING | K6: =Main!B10 -> 2022-03-14
A8: Sr.no | C8: CLOSE RATE | D8: Pivot Point | E8: Supports | H8: Resistances
E9: S1 | F9: S2 | G9: S3 | H9: R1 | I9: R2 | J9: R3 | K9: HIGH | L9: LOW | M9: Total Trade Quanity in Lakhs
A10: 1 | B10: Nifty 50 | C10: 16630.45 | D10: 16598.58 | E10: 16502.77 | F10: 16375.08 | G10: 16279.27 | H10: 16726.27 | I10: 16822.08 | J10: 16949.77 | K10: 16694.4 | L10: 16470.9
A11: 2 | B11: Nifty Bank | C11: 34546.25 | D11: 34506.87 | E11: 34133.68 | F11: 33721.12 | G11: 33347.93 | H11: 34919.43 | I11: 35292.62 | J11: 35705.18 | K11: 34880.05 | L11: 34094.3
A12: 3 | B12: Nifty CPSE | C12: 2520.3 | D12: 2512.00 | E12: 2500.40 | F12: 2480.50 | G12: 2468.90 | H12: 2531.90 | I12: 2543.50 | J12: 2563.40 | K12: 2523.6 | L12: 2492.1
A13: 4 | B13: Nifty Infra | C13: 4797.45 | D13: 4782.00 | E13: 4763.30 | F13: 4729.15 | G13: 4710.45 | H13: 4816.15 | I13: 4834.85 | J13: 4869.00 | K13: 4800.7 | L13: 4747.85
A14: 5 | B14: Nifty IT | C14: 35348.7 | D14: 35325.05 | E14: 35171.75 | F14: 34994.80 | G14: 34841.50 | H14: 35502.00 | I14: 35655.30 | J14: 35832.25 | K14: 35478.35 | L14: 35148.1
A15: 6 | B15: Nifty PSE | C15: 4093.3 | D15: 4076.57 | E15: 4054.18 | F15: 4015.07 | G15: 3992.68 | H15: 4115.68 | I15: 4138.07 | J15: 4177.18 | K15: 4098.95 | L15: 4037.45
A16: 7 | B16: Nifty Midcap 50 | C16: 7778.25 | D16: 7744.75 | E16: 7701.35 | F16: 7624.45 | G16: 7581.05 | H16: 7821.65 | I16: 7865.05 | J16: 7941.95 | K16: 7788.15 | L16: 7667.85
A17: 8 | B17: ACC | C17: 2041.9 | D17: 2039.92 | E17: 2017.98 | F17: 1994.07 | G17: 1972.13 | H17: 2063.83 | I17: 2085.77 | J17: 2109.68 | K17: 2061.85 | L17: 2016 | M17: 3.7213
A18: 9 | B18: AUBANK | C18: 1193.05 | D18: 1178.37 | E18: 1160.73 | F18: 1128.42 | G18: 1110.78 | H18: 1210.68 | I18: 1228.32 | J18: 1260.63 | K18: 1196 | L18: 1146.05 | M18: 12.65589
A19: 10 | B19: AARTIIND | C19: 845.2 | D19: 837.07 | E19: 826.13 | F19: 807.07 | G19: 796.13 | H19: 856.13 | I19: 867.07 | J19: 886.13 | K19: 848 | L19: 818 | M19: 9.51265
A20: 11 | B20: ADANIENT | C20: 1734.1 | D20: 1737.43 | E20: 1717.87 | F20: 1701.63 | G20: 1682.07 | H20: 1753.67 | I20: 1773.23 | J20: 1789.47 | K20: 1757 | L20: 1721.2 | M20: 13.54129
A21: 12 | B21: ADANIGREEN | C21: 1860.05 | D21: 1869.40 | E21: 1840.90 | F21: 1821.75 | G21: 1793.25 | H21: 1888.55 | I21: 1917.05 | J21: 1936.20 | K21: 1897.9 | L21: 1850.25 | M21: 3.82512
A22: 13 | B22: ADANIPORTS | C22: 729.45 | D22: 727.83 | E22: 723.92 | F22: 718.38 | G22: 714.47 | H22: 733.37 | I22: 737.28 | J22: 742.82 | K22: 731.75 | L22: 722.3 | M22: 28.64685
A23: 14 | B23: ATGL | C23: 1661.85 | D23: 1675.03 | E23: 1636.07 | F23: 1610.28 | G23: 1571.32 | H23: 1700.82 | I23: 1739.78 | J23: 1765.57 | K23: 1714 | L23: 1649.25 | M23: 1.35449
A24: 15 | B24: ADANITRANS | C24: 2307.25 | D24: 2280.67 | E24: 2237.63 | F24: 2168.02 | G24: 2124.98 | H24: 2350.28 | I24: 2393.32 | J24: 2462.93 | K24: 2323.7 | L24: 2211.05 | M24: 1.63758
A25: 16 | B25: ABCAPITAL | C25: 103.45 | D25: 103.63 | E25: 102.82 | F25: 102.18 | G25: 101.37 | H25: 104.27 | I25: 105.08 | J25: 105.72 | K25: 104.45 | L25: 103 | M25: 20.84612
A26: 17 | B26: ABFRL | C26: 279.35 | D26: 276.67 | E26: 271.38 | F26: 263.42 | G26: 258.13 | H26: 284.63 | I26: 289.92 | J26: 297.88 | K26: 281.95 | L26: 268.7 | M26: 12.20006
A27: 18 | B27: AJANTPHARM | C27: 1731.4 | D27: 1745.22 | E27: 1702.43 | F27: 1673.47 | G27: 1630.68 | H27: 1774.18 | I27: 1816.97 | J27: 1845.93 | K27: 1788 | L27: 1716.25 | M27: 0.90996
A28: 19 | B28: APLLTD | C28: 733.8 | D28: 729.05 | E28: 722.30 | F28: 710.80 | G28: 704.05 | H28: 740.55 | I28: 747.30 | J28: 758.80 | K28: 735.8 | L28: 717.55 | M28: 2.02266
A29: 20 | B29: ALKEM | C29: 3381 | D29: 3353.62 | E29: 3317.43 | F29: 3253.87 | G29: 3217.68 | H29: 3417.18 | I29: 3453.37 | J29: 3516.93 | K29: 3389.8 | L29: 3290.05 | M29: 0.76836
A30: 21 | B30: AMARAJABAT | C30: 575.25 | D30: 575.73 | E30: 569.57 | F30: 563.88 | G30: 557.72 | H30: 581.42 | I30: 587.58 | J30: 593.27 | K30: 581.9 | L30: 570.05 | M30: 3.80271
A31: 22 | B31: AMBUJACEM | C31: 293.45 | D31: 293.25 | E31: 290.50 | F31: 287.55 | G31: 284.80 | H31: 296.20 | I31: 298.95 | J31: 301.90 | K31: 296 | L31: 290.3 | M31: 43.57253
A32: 23 | B32: APOLLOHOSP | C32: 4854.1 | D32: 4817.45 | E32: 4771.90 | F32: 4689.70 | G32: 4644.15 | H32: 4899.65 | I32: 4945.20 | J32: 5027.40 | K32: 4863 | L32: 4735.25 | M32: 4.36703
A33: 24 | B33: APOLLOTYRE | C33: 184.25 | D33: 183.78 | E33: 181.77 | F33: 179.28 | G33: 177.27 | H33: 186.27 | I33: 188.28 | J33: 190.77 | K33: 185.8 | L33: 181.3 | M33: 24.4388
A34: 25 | B34: ASHOKLEY | C34: 105.9 | D34: 105.55 | E34: 104.10 | F34: 102.30 | G34: 100.85 | H34: 107.35 | I34: 108.80 | J34: 110.60 | K34: 107 | L34: 103.75 | M34: 225.92586
A35: 26 | B35: ASIANPAINT | C35: 2932 | D35: 2918.10 | E35: 2896.25 | F35: 2860.50 | G35: 2838.65 | H35: 2953.85 | I35: 2975.70 | J35: 3011.45 | K35: 2939.95 | L35: 2882.35 | M35: 12.65493
A36: 27 | B36: ASTRAL | C36: 1955.7 | D36: 1940.68 | E36: 1912.37 | F36: 1869.03 | G36: 1840.72 | H36: 1984.02 | I36: 2012.33 | J36: 2055.67 | K36: 1969 | L36: 1897.35 | M36: 3.32671
A37: 28 | B37: AUROPHARMA | C37: 642.25 | D37: 636.48 | E37: 627.97 | F37: 613.68 | G37: 605.17 | H37: 650.77 | I37: 659.28 | J37: 673.57 | K37: 645 | L37: 622.2 | M37: 23.10876
A38: 29 | B38: DMART | C38: 4198.95 | D38: 4172.73 | E38: 4135.47 | F38: 4071.98 | G38: 4034.72 | H38: 4236.22 | I38: 4273.48 | J38: 4336.97 | K38: 4210 | L38: 4109.25 | M38: 3.87534
A39: 30 | B39: AXISBANK | C39: 690.85 | D39: 694.98 | E39: 683.32 | F39: 675.78 | G39: 664.12 | H39: 702.52 | I39: 714.18 | J39: 721.72 | K39: 706.65 | L39: 687.45 | M39: 142.24356
A40: 31 | B40: BAJAJ-AUTO | C40: 3423 | D40: 3418.32 | E40: 3391.13 | F40: 3359.27 | G40: 3332.08 | H40: 3450.18 | I40: 3477.37 | J40: 3509.23 | K40: 3445.5 | L40: 3386.45 | M40: 1.56038
A41: 32 | B41: BAJFINANCE | C41: 6628 | D41: 6601.02 | E41: 6517.03 | F41: 6406.07 | G41: 6322.08 | H41: 6711.98 | I41: 6795.97 | J41: 6906.93 | K41: 6685 | L41: 6490.05 | M41: 12.64771
A42: 33 | B42: BAJAJFINSV | C42: 15569 | D42: 15533.00 | E42: 15316.00 | F42: 15063.00 | G42: 14846.00 | H42: 15786.00 | I42: 16003.00 | J42: 16256.00 | K42: 15750 | L42: 15280 | M42: 3.29632
A43: 34 | B43: BAJAJHLDNG | C43: 4916.55 | D43: 4948.82 | E43: 4846.83 | F43: 4777.12 | G43: 4675.13 | H43: 5018.53 | I43: 5120.52 | J43: 5190.23 | K43: 5050.8 | L43: 4879.1 | M43: 0.8803
A44: 35 | B44: BALKRISIND | C44: 1970.25 | D44: 1958.33 | E44: 1938.67 | F44: 1907.08 | G44: 1887.42 | H44: 1989.92 | I44: 2009.58 | J44: 2041.17 | K44: 1978 | L44: 1926.75 | M44: 1.65045
A45: 36 | B45: BANDHANBNK | C45: 262.9 | D45: 263.15 | E45: 258.95 | F45: 255.00 | G45: 250.80 | H45: 267.10 | I45: 271.30 | J45: 275.25 | K45: 267.35 | L45: 259.2 | M45: 94.29721
A46: 37 | B46: BANKBARODA | C46: 104.4 | D46: 103.35 | E46: 102.00 | F46: 99.60 | G46: 98.25 | H46: 105.75 | I46: 107.10 | J46: 109.50 | K46: 104.7 | L46: 100.95 | M46: 407.67554
A47: 38 | B47: BANKINDIA | C47: 48.7 | D47: 48.70 | E47: 48.30 | F47: 47.90 | G47: 47.50 | H47: 49.10 | I47: 49.50 | J47: 49.90 | K47: 49.1 | L47: 48.3 | M47: 28.35461
A48: 39 | B48: BATAINDIA | C48: 1807.8 | D48: 1811.28 | E48: 1792.57 | F48: 1777.33 | G48: 1758.62 | H48: 1826.52 | I48: 1845.23 | J48: 1860.47 | K48: 1830 | L48: 1796.05 | M48: 4.35213
A49: 40 | B49: BERGEPAINT | C49: 679.25 | D49: 678.48 | E49: 670.77 | F49: 662.28 | G49: 654.57 | H49: 686.97 | I49: 694.68 | J49: 703.17 | K49: 686.2 | L49: 670 | M49: 4.77733
A50: 41 | B50: BEL | C50: 214.8 | D50: 215.90 | E50: 213.00 | F50: 211.20 | G50: 208.30 | H50: 217.70 | I50: 220.60 | J50: 222.40 | K50: 218.8 | L50: 214.1 | M50: 97.82797
A51: 42 | B51: BHARATFORG | C51: 632.35 | D51: 634.13 | E51: 627.37 | F51: 622.38 | G51: 615.62 | H51: 639.12 | I51: 645.88 | J51: 650.87 | K51: 640.9 | L51: 629.15 | M51: 13.94422
A52: 43 | B52: BHEL | C52: 51.9 | D52: 51.63 | E52: 51.12 | F52: 50.33 | G52: 49.82 | H52: 52.42 | I52: 52.93 | J52: 53.72 | K52: 52.15 | L52: 50.85 | M52: 233.8687
A53: 44 | B53: BPCL | C53: 362 | D53: 358.65 | E53: 353.60 | F53: 345.20 | G53: 340.15 | H53: 367.05 | I53: 372.10 | J53: 380.50 | K53: 363.7 | L53: 350.25 | M53: 82.78802
A54: 45 | B54: BHARTIARTL | C54: 694.85 | D54: 696.25 | E54: 690.10 | F54: 685.35 | G54: 679.20 | H54: 701.00 | I54: 707.15 | J54: 711.90 | K54: 702.4 | L54: 691.5 | M54: 33.5388
A55: 46 | B55: BIOCON | C55: 331.95 | D55: 331.73 | E55: 328.22 | F55: 324.48 | G55: 320.97 | H55: 335.47 | I55: 338.98 | J55: 342.72 | K55: 335.25 | L55: 328 | M55: 49.55659
A56: 47 | B56: BOSCHLTD | C56: 14213.9 | D56: 14230.02 | E56: 14136.03 | F56: 14058.17 | G56: 13964.18 | H56: 14307.88 | I56: 14401.87 | J56: 14479.73 | K56: 14324 | L56: 14152.15 | M56: 0.28496
A57: 48 | B57: BRITANNIA | C57: 3199.9 | D57: 3216.43 | E57: 3176.27 | F57: 3152.63 | G57: 3112.47 | H57: 3240.07 | I57: 3280.23 | J57: 3303.87 | K57: 3256.6 | L57: 3192.8 | M57: 3.62091
A58: 49 | B58: INTELLECT | C58: 737.85 | D58: 730.25 | E58: 713.25 | F58: 688.65 | G58: 671.65 | H58: 754.85 | I58: 771.85 | J58: 796.45 | K58: 747.25 | L58: 705.65 | M58: 3.95348
A59: 50 | B59: CANBK | C59: 217.95 | D59: 216.62 | E59: 213.83 | F59: 209.72 | G59: 206.93 | H59: 220.73 | I59: 223.52 | J59: 227.63 | K59: 219.4 | L59: 212.5 | M59: 109.60139
A60: 51 | B60: CASTROLIND | C60: 109.05 | D60: 109.08 | E60: 108.62 | F60: 108.18 | G60: 107.72 | H60: 109.52 | I60: 109.98 | J60: 110.42 | K60: 109.55 | L60: 108.65 | M60: 6.53703
A61: 52 | B61: CHOLAFIN | C61: 671.45 | D61: 669.17 | E61: 663.33 | F61: 655.22 | G61: 649.38 | H61: 677.28 | I61: 683.12 | J61: 691.23 | K61: 675 | L61: 661.05 | M61: 14.52682
A62: 53 | B62: CIPLA | C62: 1043.95 | D62: 1026.35 | E62: 998.95 | F62: 953.95 | G62: 926.55 | H62: 1071.35 | I62: 1098.75 | J62: 1143.75 | K62: 1053.75 | L62: 981.35 | M62: 111.06725
A63: 54 | B63: CUB | C63: 123.1 | D63: 123.22 | E63: 121.73 | F63: 120.37 | G63: 118.88 | H63: 124.58 | I63: 126.07 | J63: 127.43 | K63: 124.7 | L63: 121.85 | M63: 21.67812
A64: 55 | B64: COALINDIA | C64: 181.75 | D64: 181.17 | E64: 179.83 | F64: 177.92 | G64: 176.58 | H64: 183.08 | I64: 184.42 | J64: 186.33 | K64: 182.5 | L64: 179.25 | M64: 146.63558
A65: 56 | B65: COFORGE | C65: 4298.3 | D65: 4287.67 | E65: 4245.83 | F65: 4193.37 | G65: 4151.53 | H65: 4340.13 | I65: 4381.97 | J65: 4434.43 | K65: 4329.5 | L65: 4235.2 | M65: 7.71438
A66: 57 | B66: COLPAL | C66: 1498.5 | D66: 1503.42 | E66: 1481.83 | F66: 1465.17 | G66: 1443.58 | H66: 1520.08 | I66: 1541.67 | J66: 1558.33 | K66: 1525 | L66: 1486.75 | M66: 7.85111
A67: 58 | B67: CONCOR | C67: 596.4 | D67: 593.07 | E67: 584.28 | F67: 572.17 | G67: 563.38 | H67: 605.18 | I67: 613.97 | J67: 626.08 | K67: 601.85 | L67: 580.95 | M67: 11.35613
A68: 59 | B68: COROMANDEL | C68: 778.15 | D68: 774.48 | E68: 762.97 | F68: 747.78 | G68: 736.27 | H68: 789.67 | I68: 801.18 | J68: 816.37 | K68: 786 | L68: 759.3 | M68: 6.50333
A69: 60 | B69: CROMPTON | C69: 403.7 | D69: 400.70 | E69: 396.75 | F69: 389.80 | G69: 385.85 | H69: 407.65 | I69: 411.60 | J69: 418.55 | K69: 404.65 | L69: 393.75 | M69: 16.64103
A70: 61 | B70: CUMMINSIND | C70: 995.65 | D70: 994.98 | E70: 981.97 | F70: 968.28 | G70: 955.27 | H70: 1008.67 | I70: 1021.68 | J70: 1035.37 | K70: 1008 | L70: 981.3 | M70: 4.24501
A71: 62 | B71: DLF | C71: 353.75 | D71: 353.27 | E71: 349.63 | F71: 345.52 | G71: 341.88 | H71: 357.38 | I71: 361.02 | J71: 365.13 | K71: 356.9 | L71: 349.15 | M71: 38.91664
A72: 63 | B72: DABUR | C72: 547.55 | D72: 545.98 | E72: 542.42 | F72: 537.28 | G72: 533.72 | H72: 551.12 | I72: 554.68 | J72: 559.82 | K72: 549.55 | L72: 540.85 | M72: 12.38386
A73: 64 | B73: DALBHARAT | C73: 1429.85 | D73: 1437.28 | E73: 1394.57 | F73: 1359.28 | G73: 1316.57 | H73: 1472.57 | I73: 1515.28 | J73: 1550.57 | K73: 1480 | L73: 1402 | M73: 4.49351
A74: 65 | B74: DEEPAKNTR | C74: 2050.65 | D74: 2033.52 | E74: 2007.03 | F74: 1963.42 | G74: 1936.93 | H74: 2077.13 | I74: 2103.62 | J74: 2147.23 | K74: 2060 | L74: 1989.9 | M74: 5.76754
A75: 66 | B75: DHANI | C75: 78.8 | D75: 77.73 | E75: 74.47 | F75: 70.13 | G75: 66.87 | H75: 82.07 | I75: 85.33 | J75: 89.67 | K75: 81 | L75: 73.4 | M75: 54.23438
A76: 67 | B76: DIVISLAB | C76: 4339.4 | D76: 4314.13 | E76: 4275.27 | F76: 4211.13 | G76: 4172.27 | H76: 4378.27 | I76: 4417.13 | J76: 4481.27 | K76: 4353 | L76: 4250 | M76: 3.52915
A77: 68 | B77: DIXON | C77: 4153.95 | D77: 4147.97 | E77: 4100.98 | F77: 4048.02 | G77: 4001.03 | H77: 4200.93 | I77: 4247.92 | J77: 4300.88 | K77: 4194.95 | L77: 4095 | M77: 1.84965
A78: 69 | B78: LALPATHLAB | C78: 2637.55 | D78: 2609.85 | E78: 2567.70 | F78: 2497.85 | G78: 2455.70 | H78: 2679.70 | I78: 2721.85 | J78: 2791.70 | K78: 2652 | L78: 2540 | M78: 2.58148
A79: 70 | B79: DRREDDY | C79: 3975.6 | D79: 3948.20 | E79: 3900.40 | F79: 3825.20 | G79: 3777.40 | H79: 4023.40 | I79: 4071.20 | J79: 4146.40 | K79: 3996 | L79: 3873 | M79: 11.13263
A80: 71 | B80: EICHERMOT | C80: 2290.75 | D80: 2286.97 | E80: 2258.93 | F80: 2227.12 | G80: 2199.08 | H80: 2318.78 | I80: 2346.82 | J80: 2378.63 | K80: 2315 | L80: 2255.15 | M80: 6.2107
A81: 72 | B81: EMAMILTD | C81: 483.95 | D81: 482.00 | E81: 477.50 | F81: 471.05 | G81: 466.55 | H81: 488.45 | I81: 492.95 | J81: 499.40 | K81: 486.5 | L81: 475.55 | M81: 11.48489
A82: 73 | B82: ENDURANCE | C82: 1175.6 | D82: 1177.03 | E82: 1154.32 | F82: 1133.03 | G82: 1110.32 | H82: 1198.32 | I82: 1221.03 | J82: 1242.32 | K82: 1199.75 | L82: 1155.75 | M82: 0.71011
A83: 74 | B83: ESCORTS | C83: 1818.2 | D83: 1813.43 | E83: 1806.87 | F83: 1795.53 | G83: 1788.97 | H83: 1824.77 | I83: 1831.33 | J83: 1842.67 | K83: 1820 | L83: 1802.1 | M83: 5.53138
A84: 75 | B84: EXIDEIND | C84: 153.65 | D84: 154.08 | E84: 151.82 | F84: 149.98 | G84: 147.72 | H84: 155.92 | I84: 158.18 | J84: 160.02 | K84: 156.35 | L84: 152.25 | M84: 42.55136
A85: 76 | B85: FEDERALBNK | C85: 95.3 | D85: 94.95 | E85: 94.15 | F85: 93.00 | G85: 92.20 | H85: 96.10 | I85: 96.90 | J85: 98.05 | K85: 95.75 | L85: 93.8 | M85: 150.23756
A86: 77 | B86: FORTIS | C86: 262.4 | D86: 261.67 | E86: 257.33 | F86: 252.27 | G86: 247.93 | H86: 266.73 | I86: 271.07 | J86: 276.13 | K86: 266 | L86: 256.6 | M86: 8.85731
A87: 78 | B87: GAIL | C87: 152.4 | D87: 151.50 | E87: 148.90 | F87: 145.40 | G87: 142.80 | H87: 155.00 | I87: 157.60 | J87: 161.10 | K87: 154.1 | L87: 148 | M87: 179.45413
A88: 79 | B88: GMRINFRA | C88: 39.35 | D88: 39.22 | E88: 38.83 | F88: 38.32 | G88: 37.93 | H88: 39.73 | I88: 40.12 | J88: 40.63 | K88: 39.6 | L88: 38.7 | M88: 350.53659
A89: 80 | B89: GLAND | C89: 3329.4 | D89: 3333.95 | E89: 3302.90 | F89: 3276.40 | G89: 3245.35 | H89: 3360.45 | I89: 3391.50 | J89: 3418.00 | K89: 3365 | L89: 3307.45 | M89: 0.93725
A90: 81 | B90: GLENMARK | C90: 453.3 | D90: 449.68 | E90: 442.62 | F90: 431.93 | G90: 424.87 | H90: 460.37 | I90: 467.43 | J90: 478.12 | K90: 456.75 | L90: 439 | M90: 10.97206
A91: 82 | B91: GODREJCP | C91: 709.45 | D91: 706.83 | E91: 701.62 | F91: 693.78 | G91: 688.57 | H91: 714.67 | I91: 719.88 | J91: 727.72 | K91: 712.05 | L91: 699 | M91: 16.91259
A92: 83 | B92: GODREJIND | C92: 500.15 | D92: 503.68 | E92: 491.37 | F92: 482.58 | G92: 470.27 | H92: 512.47 | I92: 524.78 | J92: 533.57 | K92: 516 | L92: 494.9 | M92: 2.65226
A93: 84 | B93: GODREJPROP | C93: 1492.8 | D93: 1488.58 | E93: 1475.22 | F93: 1457.63 | G93: 1444.27 | H93: 1506.17 | I93: 1519.53 | J93: 1537.12 | K93: 1501.95 | L93: 1471 | M93: 5.70819
A94: 85 | B94: GRASIM | C94: 1566.25 | D94: 1561.05 | E94: 1546.20 | F94: 1526.15 | G94: 1511.30 | H94: 1581.10 | I94: 1595.95 | J94: 1616.00 | K94: 1575.9 | L94: 1541 | M94: 12.02172
A95: 86 | B95: GUJGASLTD | C95: 510.7 | D95: 511.92 | E95: 504.03 | F95: 497.37 | G95: 489.48 | H95: 518.58 | I95: 526.47 | J95: 533.13 | K95: 519.8 | L95: 505.25 | M95: 19.22581
A96: 87 | B96: GSPL | C96: 267.55 | D96: 267.23 | E96: 265.47 | F96: 263.38 | G96: 261.62 | H96: 269.32 | I96: 271.08 | J96: 273.17 | K96: 269 | L96: 265.15 | M96: 6.20728
A97: 88 | B97: HCLTECH | C97: 1193.45 | D97: 1192.30 | E97: 1177.45 | F97: 1161.45 | G97: 1146.60 | H97: 1208.30 | I97: 1223.15 | J97: 1239.15 | K97: 1207.15 | L97: 1176.3 | M97: 27.70879
A98: 89 | B98: HDFCAMC | C98: 2167.8 | D98: 2162.27 | E98: 2145.53 | F98: 2123.27 | G98: 2106.53 | H98: 2184.53 | I98: 2201.27 | J98: 2223.53 | K98: 2179 | L98: 2140 | M98: 2.84426
A99: 90 | B99: HDFCBANK | C99: 1396.8 | D99: 1392.82 | E99: 1376.68 | F99: 1356.57 | G99: 1340.43 | H99: 1412.93 | I99: 1429.07 | J99: 1449.18 | K99: 1408.95 | L99: 1372.7 | M99: 75.7539
A100: 91 | B100: HDFCLIFE | C100: 518.8 | D100: 519.25 | E100: 514.30 | F100: 509.80 | G100: 504.85 | H100: 523.75 | I100: 528.70 | J100: 533.20 | K100: 524.2 | L100: 514.75 | M100: 29.24919
A101: 92 | B101: HAVELLS | C101: 1092.6 | D101: 1101.23 | E101: 1079.67 | F101: 1066.73 | G101: 1045.17 | H101: 1114.17 | I101: 1135.73 | J101: 1148.67 | K101: 1122.8 | L101: 1088.3 | M101: 13.9542
A102: 93 | B102: HEROMOTOCO | C102: 2331.2 | D102: 2321.10 | E102: 2297.20 | F102: 2263.20 | G102: 2239.30 | H102: 2355.10 | I102: 2379.00 | J102: 2413.00 | K102: 2345 | L102: 2287.1 | M102: 4.67988
A103: 94 | B103: HINDALCO | C103: 589.1 | D103: 592.62 | E103: 582.23 | F103: 575.37 | G103: 564.98 | H103: 599.48 | I103: 609.87 | J103: 616.73 | K103: 603 | L103: 585.75 | M103: 76.35725
A104: 95 | B104: HAL | C104: 1385.1 | D104: 1386.05 | E104: 1366.10 | F104: 1347.10 | G104: 1327.15 | H104: 1405.05 | I104: 1425.00 | J104: 1444.00 | K104: 1406 | L104: 1367.05 | M104: 5.9012
A105: 96 | B105: HINDCOPPER | C105: 123.7 | D105: 124.07 | E105: 122.13 | F105: 120.57 | G105: 118.63 | H105: 125.63 | I105: 127.57 | J105: 129.13 | K105: 126 | L105: 122.5 | M105: 48.42464
A106: 97 | B106: HINDPETRO | C106: 294.3 | D106: 289.53 | E106: 283.17 | F106: 272.03 | G106: 265.67 | H106: 300.67 | I106: 307.03 | J106: 318.17 | K106: 295.9 | L106: 278.4 | M106: 92.99318
A107: 98 | B107: HINDUNILVR | C107: 2094.4 | D107: 2091.53 | E107: 2072.87 | F107: 2051.33 | G107: 2032.67 | H107: 2113.07 | I107: 2131.73 | J107: 2153.27 | K107: 2110.2 | L107: 2070 | M107: 24.81643
A108: 99 | B108: HINDZINC | C108: 313.15 | D108: 312.52 | E108: 309.93 | F108: 306.72 | G108: 304.13 | H108: 315.73 | I108: 318.32 | J108: 321.53 | K108: 315.1 | L108: 309.3 | M108: 13.73085
A109: 100 | B109: HDFC | C109: 2230 | D109: 2226.58 | E109: 2193.32 | F109: 2156.63 | G109: 2123.37 | H109: 2263.27 | I109: 2296.53 | J109: 2333.22 | K109: 2259.85 | L109: 2189.9 | M109: 25.32517
A110: 101 | B110: ICICIBANK | C110: 677.9 | D110: 677.73 | E110: 670.77 | F110: 663.63 | G110: 656.67 | H110: 684.87 | I110: 691.83 | J110: 698.97 | K110: 684.7 | L110: 670.6 | M110: 205.46724
A111: 102 | B111: ICICIGI | C111: 1256 | D111: 1256.52 | E111: 1248.03 | F111: 1240.07 | G111: 1231.58 | H111: 1264.48 | I111: 1272.97 | J111: 1280.93 | K111: 1265 | L111: 1248.55 | M111: 6.70143
A112: 103 | B112: ICICIPRULI | C112: 463.05 | D112: 460.47 | E112: 455.93 | F112: 448.82 | G112: 444.28 | H112: 467.58 | I112: 472.12 | J112: 479.23 | K112: 465 | L112: 453.35 | M112: 5.65846
A113: 104 | B113: ISEC | C113: 608.8 | D113: 609.60 | E113: 605.20 | F113: 601.60 | G113: 597.20 | H113: 613.20 | I113: 617.60 | J113: 621.20 | K113: 614 | L113: 606 | M113: 2.52062
A114: 105 | B114: IDFCFIRSTB | C114: 42.4 | D114: 42.25 | E114: 41.80 | F114: 41.20 | G114: 40.75 | H114: 42.85 | I114: 43.30 | J114: 43.90 | K114: 42.7 | L114: 41.65 | M114: 200.37602
A115: 106 | B115: ITC | C115: 236.35 | D115: 234.53 | E115: 231.97 | F115: 227.58 | G115: 225.02 | H115: 238.92 | I115: 241.48 | J115: 245.87 | K115: 237.1 | L115: 230.15 | M115: 416.99184
A116: 107 | B116: INDIAMART | C116: 4477.4 | D116: 4505.37 | E116: 4422.03 | F116: 4366.67 | G116: 4283.33 | H116: 4560.73 | I116: 4644.07 | J116: 4699.43 | K116: 4588.7 | L116: 4450 | M116: 1.50349
A117: 108 | B117: INDIANB | C117: 148.45 | D117: 148.45 | E117: 146.55 | F117: 144.65 | G117: 142.75 | H117: 150.35 | I117: 152.25 | J117: 154.15 | K117: 150.35 | L117: 146.55 | M117: 12.58594
A118: 109 | B118: INDHOTEL | C118: 203 | D118: 202.50 | E118: 200.50 | F118: 198.00 | G118: 196.00 | H118: 205.00 | I118: 207.00 | J118: 209.50 | K118: 204.5 | L118: 200 | M118: 40.25498
A119: 110 | B119: IOC | C119: 123.7 | D119: 122.83 | E119: 121.27 | F119: 118.83 | G119: 117.27 | H119: 125.27 | I119: 126.83 | J119: 129.27 | K119: 124.4 | L119: 120.4 | M119: 123.98829
A120: 111 | B120: IRCTC | C120: 757.75 | D120: 756.92 | E120: 748.83 | F120: 739.92 | G120: 731.83 | H120: 765.83 | I120: 773.92 | J120: 782.83 | K120: 765 | L120: 748 | M120: 24.61743
A121: 112 | B121: IRFC | C121: 21.65 | D121: 21.75 | E121: 21.50 | F121: 21.35 | G121: 21.10 | H121: 21.90 | I121: 22.15 | J121: 22.30 | K121: 22 | L121: 21.6 | M121: 106.41873
A122: 113 | B122: IGL | C122: 378.15 | D122: 381.43 | E122: 373.22 | F122: 368.28 | G122: 360.07 | H122: 386.37 | I122: 394.58 | J122: 399.52 | K122: 389.65 | L122: 376.5 | M122: 41.67687
A123: 114 | B123: INDUSTOWER | C123: 214.2 | D123: 213.57 | E123: 212.23 | F123: 210.27 | G123: 208.93 | H123: 215.53 | I123: 216.87 | J123: 218.83 | K123: 214.9 | L123: 211.6 | M123: 17.49413
A124: 115 | B124: INDUSINDBK | C124: 901.75 | D124: 903.40 | E124: 891.30 | F124: 880.85 | G124: 868.75 | H124: 913.85 | I124: 925.95 | J124: 936.40 | K124: 915.5 | L124: 892.95 | M124: 34.51877
A125: 116 | B125: NAUKRI | C125: 4615 | D125: 4581.67 | E125: 4534.33 | F125: 4453.67 | G125: 4406.33 | H125: 4662.33 | I125: 4709.67 | J125: 4790.33 | K125: 4629 | L125: 4501 | M125: 2.28294
A126: 117 | B126: INFY | C126: 1822 | D126: 1821.47 | E126: 1811.53 | F126: 1801.07 | G126: 1791.13 | H126: 1831.93 | I126: 1841.87 | J126: 1852.33 | K126: 1831.4 | L126: 1811 | M126: 47.58657
A127: 118 | B127: INDIGO | C127: 1820.8 | D127: 1807.17 | E127: 1775.33 | F127: 1729.87 | G127: 1698.03 | H127: 1852.63 | I127: 1884.47 | J127: 1929.93 | K127: 1839 | L127: 1761.7 | M127: 16.19561
A128: 119 | B128: IPCALAB | C128: 1018.85 | D128: 1007.92 | E128: 990.93 | F128: 963.02 | G128: 946.03 | H128: 1035.83 | I128: 1052.82 | J128: 1080.73 | K128: 1024.9 | L128: 980 | M128: 3.8847
A129: 120 | B129: JSWENERGY | C129: 313.5 | D129: 313.23 | E129: 308.47 | F129: 303.43 | G129: 298.67 | H129: 318.27 | I129: 323.03 | J129: 328.07 | K129: 318 | L129: 308.2 | M129: 4.67934
A130: 121 | B130: JSWSTEEL | C130: 669.75 | D130: 663.32 | E130: 653.63 | F130: 637.52 | G130: 627.83 | H130: 679.43 | I130: 689.12 | J130: 705.23 | K130: 673 | L130: 647.2 | M130: 81.7229
A131: 122 | B131: JINDALSTEL | C131: 479.25 | D131: 475.28 | E131: 468.97 | F131: 458.68 | G131: 452.37 | H131: 485.57 | I131: 491.88 | J131: 502.17 | K131: 481.6 | L131: 465 | M131: 118.70331
A132: 123 | B132: JUBLFOOD | C132: 2864.6 | D132: 2823.92 | E132: 2768.43 | F132: 2672.27 | G132: 2616.78 | H132: 2920.08 | I132: 2975.57 | J132: 3071.73 | K132: 2879.4 | L132: 2727.75 | M132: 9.47064
A133: 124 | B133: KOTAKBANK | C133: 1763 | D133: 1759.63 | E133: 1739.37 | F133: 1715.73 | G133: 1695.47 | H133: 1783.27 | I133: 1803.53 | J133: 1827.17 | K133: 1779.9 | L133: 1736 | M133: 25.0634
A134: 125 | B134: L&TFH | C134: 66.9 | D134: 66.33 | E134: 65.57 | F134: 64.23 | G134: 63.47 | H134: 67.67 | I134: 68.43 | J134: 69.77 | K134: 67.1 | L134: 65 | M134: 48.19973
A135: 126 | B135: LTTS | C135: 4938.9 | D135: 4925.08 | E135: 4870.87 | F135: 4802.83 | G135: 4748.62 | H135: 4993.12 | I135: 5047.33 | J135: 5115.37 | K135: 4979.3 | L135: 4857.05 | M135: 1.74829
A136: 127 | B136: LICHSGFIN | C136: 355.2 | D136: 354.23 | E136: 350.37 | F136: 345.53 | G136: 341.67 | H136: 359.07 | I136: 362.93 | J136: 367.77 | K136: 358.1 | L136: 349.4 | M136: 16.1906
A137: 128 | B137: LTI | C137: 6224.2 | D137: 6198.73 | E137: 6130.47 | F137: 6036.73 | G137: 5968.47 | H137: 6292.47 | I137: 6360.73 | J137: 6454.47 | K137: 6267 | L137: 6105 | M137: 2.81687
A138: 129 | B138: LT | C138: 1728.65 | D138: 1723.30 | E138: 1711.15 | F138: 1693.65 | G138: 1681.50 | H138: 1740.80 | I138: 1752.95 | J138: 1770.45 | K138: 1735.45 | L138: 1705.8 | M138: 15.77597
A139: 130 | B139: LAURUSLABS | C139: 578 | D139: 571.82 | E139: 556.48 | F139: 534.97 | G139: 519.63 | H139: 593.33 | I139: 608.67 | J139: 630.18 | K139: 587.15 | L139: 550.3 | M139: 48.15381
A140: 131 | B140: LUPIN | C140: 747.9 | D140: 746.65 | E140: 738.80 | F140: 729.70 | G140: 721.85 | H140: 755.75 | I140: 763.60 | J140: 772.70 | K140: 754.5 | L140: 737.55 | M140: 13.75395
A141: 132 | B141: MRF | C141: 67898.3 | D141: 67452.45 | E141: 66810.85 | F141: 65723.40 | G141: 65081.80 | H141: 68539.90 | I141: 69181.50 | J141: 70268.95 | K141: 68094.05 | L141: 66365 | M141: 0.07705
A142: 133 | B142: MGL | C142: 750 | D142: 752.05 | E142: 742.05 | F142: 734.10 | G142: 724.10 | H142: 760.00 | I142: 770.00 | J142: 777.95 | K142: 762.05 | L142: 744.1 | M142: 6.97058
A143: 134 | B143: M&MFIN | C143: 145.15 | D143: 144.43 | E143: 142.47 | F143: 139.78 | G143: 137.82 | H143: 147.12 | I143: 149.08 | J143: 151.77 | K143: 146.4 | L143: 141.75 | M143: 49.53121
A144: 135 | B144: M&M | C144: 734.8 | D144: 735.10 | E144: 728.40 | F144: 722.00 | G144: 715.30 | H144: 741.50 | I144: 748.20 | J144: 754.60 | K144: 741.8 | L144: 728.7 | M144: 23.64792
A145: 136 | B145: MANAPPURAM | C145: 116.85 | D145: 117.82 | E145: 115.33 | F145: 113.82 | G145: 111.33 | H145: 119.33 | I145: 121.82 | J145: 123.33 | K145: 120.3 | L145: 116.3 | M145: 115.74523
A146: 137 | B146: MARICO | C146: 507.55 | D146: 506.25 | E146: 503.50 | F146: 499.45 | G146: 496.70 | H146: 510.30 | I146: 513.05 | J146: 517.10 | K146: 509 | L146: 502.2 | M146: 15.75214
A147: 138 | B147: MARUTI | C147: 7102.55 | D147: 7127.52 | E147: 7055.03 | F147: 7007.52 | G147: 6935.03 | H147: 7175.03 | I147: 7247.52 | J147: 7295.03 | K147: 7200 | L147: 7080 | M147: 10.24452
A148: 139 | B148: MFSL | C148: 787.6 | D148: 782.23 | E148: 773.22 | F148: 758.83 | G148: 749.82 | H148: 796.62 | I148: 805.63 | J148: 820.02 | K148: 791.25 | L148: 767.85 | M148: 4.12172
A149: 140 | B149: MINDTREE | C149: 4088 | D149: 4061.03 | E149: 4022.07 | F149: 3956.13 | G149: 3917.17 | H149: 4126.97 | I149: 4165.93 | J149: 4231.87 | K149: 4100 | L149: 3995.1 | M149: 6.26688
A150: 141 | B150: MPHASIS | C150: 3285.9 | D150: 3252.37 | E150: 3204.73 | F150: 3123.57 | G150: 3075.93 | H150: 3333.53 | I150: 3381.17 | J150: 3462.33 | K150: 3300 | L150: 3171.2 | M150: 3.26673
A151: 142 | B151: MUTHOOTFIN | C151: 1382 | D151: 1385.55 | E151: 1369.75 | F151: 1357.50 | G151: 1341.70 | H151: 1397.80 | I151: 1413.60 | J151: 1425.85 | K151: 1401.35 | L151: 1373.3 | M151: 7.24301
A152: 143 | B152: NATCOPHARM | C152: 838.6 | D152: 841.55 | E152: 832.05 | F152: 825.50 | G152: 816.00 | H152: 848.10 | I152: 857.60 | J152: 864.15 | K152: 851.05 | L152: 835 | M152: 2.09863
A153: 144 | B153: NMDC | C153: 157.3 | D153: 156.05 | E153: 154.10 | F153: 150.90 | G153: 148.95 | H153: 159.25 | I153: 161.20 | J153: 164.40 | K153: 158 | L153: 152.85 | M153: 164.91139
A154: 145 | B154: NTPC | C154: 131.95 | D154: 132.28 | E154: 131.17 | F154: 130.38 | G154: 129.27 | H154: 133.07 | I154: 134.18 | J154: 134.97 | K154: 133.4 | L154: 131.5 | M154: 86.69803
A155: 146 | B155: NATIONALUM | C155: 121.9 | D155: 122.88 | E155: 120.37 | F155: 118.83 | G155: 116.32 | H155: 124.42 | I155: 126.93 | J155: 128.47 | K155: 125.4 | L155: 121.35 | M155: 214.91624
A156: 147 | B156: NAVINFLUOR | C156: 3856.4 | D156: 3817.43 | E156: 3740.97 | F156: 3625.53 | G156: 3549.07 | H156: 3932.87 | I156: 4009.33 | J156: 4124.77 | K156: 3893.9 | L156: 3702 | M156: 1.94841
A157: 148 | B157: NESTLEIND | C157: 17327.45 | D157: 17391.83 | E157: 17165.62 | F157: 17003.78 | G157: 16777.57 | H157: 17553.67 | I157: 17779.88 | J157: 17941.72 | K157: 17618.05 | L157: 17230 | M157: 0.73279
A158: 149 | B158: NAM-INDIA | C158: 311.95 | D158: 312.48 | E158: 307.97 | F158: 303.98 | G158: 299.47 | H158: 316.47 | I158: 320.98 | J158: 324.97 | K158: 317 | L158: 308.5 | M158: 6.61661
A159: 150 | B159: OBEROIRLTY | C159: 916.45 | D159: 913.32 | E159: 903.63 | F159: 890.82 | G159: 881.13 | H159: 926.13 | I159: 935.82 | J159: 948.63 | K159: 923 | L159: 900.5 | M159: 6.58386
A160: 151 | B160: ONGC | C160: 175.7 | D160: 174.60 | E160: 172.80 | F160: 169.90 | G160: 168.10 | H160: 177.50 | I160: 179.30 | J160: 182.20 | K160: 176.4 | L160: 171.7 | M160: 261.87452
A161: 152 | B161: OIL | C161: 235.8 | D161: 236.10 | E161: 233.95 | F161: 232.10 | G161: 229.95 | H161: 237.95 | I161: 240.10 | J161: 241.95 | K161: 238.25 | L161: 234.25 | M161: 12.93487
A162: 153 | B162: PIIND | C162: 2580.7 | D162: 2565.88 | E162: 2543.02 | F162: 2505.33 | G162: 2482.47 | H162: 2603.57 | I162: 2626.43 | J162: 2664.12 | K162: 2588.75 | L162: 2528.2 | M162: 2.03962
A163: 154 | B163: PAGEIND | C163: 41488.85 | D163: 41242.62 | E163: 40885.23 | F163: 40281.62 | G163: 39924.23 | H163: 41846.23 | I163: 42203.62 | J163: 42807.23 | K163: 41600 | L163: 40639 | M163: 0.10969
A164: 155 | B164: PETRONET | C164: 209.6 | D164: 208.73 | E164: 206.92 | F164: 204.23 | G164: 202.42 | H164: 211.42 | I164: 213.23 | J164: 215.92 | K164: 210.55 | L164: 206.05 | M164: 34.60394
A165: 156 | B165: PFIZER | C165: 4473.5 | D165: 4442.17 | E165: 4396.33 | F165: 4319.17 | G165: 4273.33 | H165: 4519.33 | I165: 4565.17 | J165: 4642.33 | K165: 4488 | L165: 4365 | M165: 0.57508
A166: 157 | B166: PIDILITIND | C166: 2338.15 | D166: 2324.57 | E166: 2300.13 | F166: 2262.12 | G166: 2237.68 | H166: 2362.58 | I166: 2387.02 | J166: 2425.03 | K166: 2349 | L166: 2286.55 | M166: 2.64071
A167: 158 | B167: PEL | C167: 2026.65 | D167: 2016.07 | E167: 1994.13 | F167: 1961.62 | G167: 1939.68 | H167: 2048.58 | I167: 2070.52 | J167: 2103.03 | K167: 2038 | L167: 1983.55 | M167: 6.40727
A168: 159 | B168: POLYCAB | C168: 2344.8 | D168: 2333.55 | E168: 2312.25 | F168: 2279.70 | G168: 2258.40 | H168: 2366.10 | I168: 2387.40 | J168: 2419.95 | K168: 2354.85 | L168: 2301 | M168: 1.81223
A169: 160 | B169: PFC | C169: 112.45 | D169: 112.12 | E169: 110.98 | F169: 109.52 | G169: 108.38 | H169: 113.58 | I169: 114.72 | J169: 116.18 | K169: 113.25 | L169: 110.65 | M169: 50.74291
A170: 161 | B170: POWERGRID | C170: 212.45 | D170: 211.07 | E170: 209.13 | F170: 205.82 | G170: 203.88 | H170: 214.38 | I170: 216.32 | J170: 219.63 | K170: 213 | L170: 207.75 | M170: 97.44638
A171: 162 | B171: PRESTIGE | C171: 430.85 | D171: 430.68 | E171: 424.92 | F171: 418.98 | G171: 413.22 | H171: 436.62 | I171: 442.38 | J171: 448.32 | K171: 436.45 | L171: 424.75 | M171: 3.46453
A172: 163 | B172: PGHH | C172: 15419.5 | D172: 15330.25 | E172: 15140.50 | F172: 14861.50 | G172: 14671.75 | H172: 15609.25 | I172: 15799.00 | J172: 16078.00 | K172: 15520 | L172: 15051.25 | M172: 0.09301
A173: 164 | B173: PNB | C173: 36.25 | D173: 36.10 | E173: 35.75 | F173: 35.25 | G173: 34.90 | H173: 36.60 | I173: 36.95 | J173: 37.45 | K173: 36.45 | L173: 35.6 | M173: 423.40369
A174: 165 | B174: RBLBANK | C174: 133.85 | D174: 133.57 | E174: 132.28 | F174: 130.72 | G174: 129.43 | H174: 135.13 | I174: 136.42 | J174: 137.98 | K174: 134.85 | L174: 132 | M174: 110.39087
A175: 166 | B175: RECLTD | C175: 125.7 | D175: 124.90 | E175: 123.80 | F175: 121.90 | G175: 120.80 | H175: 126.80 | I175: 127.90 | J175: 129.80 | K175: 126 | L175: 123 | M175: 32.14125
A176: 167 | B176: RELIANCE | C176: 2399.15 | D176: 2395.40 | E176: 2379.80 | F176: 2360.45 | G176: 2344.85 | H176: 2414.75 | I176: 2430.35 | J176: 2449.70 | K176: 2411 | L176: 2376.05 | M176: 56.56799
A177: 168 | B177: SBICARD | C177: 806.3 | D177: 796.07 | E177: 782.68 | F177: 759.07 | G177: 745.68 | H177: 819.68 | I177: 833.07 | J177: 856.68 | K177: 809.45 | L177: 772.45 | M177: 6.74047
A178: 169 | B178: SBILIFE | C178: 1058.5 | D178: 1055.42 | E178: 1044.73 | F178: 1030.97 | G178: 1020.28 | H178: 1069.18 | I178: 1079.87 | J178: 1093.63 | K178: 1066.1 | L178: 1041.65 | M178: 6.98477
A179: 170 | B179: SRF | C179: 2250.75 | D179: 2254.70 | E179: 2230.40 | F179: 2210.05 | G179: 2185.75 | H179: 2275.05 | I179: 2299.35 | J179: 2319.70 | K179: 2279 | L179: 2234.35 | M179: 8.02073
A180: 171 | B180: SANOFI | C180: 7298.4 | D180: 7274.78 | E180: 7239.67 | F180: 7180.93 | G180: 7145.82 | H180: 7333.52 | I180: 7368.63 | J180: 7427.37 | K180: 7309.9 | L180: 7216.05 | M180: 0.10338
A181: 172 | B181: SHREECEM | C181: 22394.6 | D181: 22249.43 | E181: 22064.47 | F181: 21734.33 | G181: 21549.37 | H181: 22579.57 | I181: 22764.53 | J181: 23094.67 | K181: 22434.4 | L181: 21919.3 | M181: 0.45123
A182: 173 | B182: SRTRANSFIN | C182: 1090.95 | D182: 1080.67 | E182: 1066.78 | F182: 1042.62 | G182: 1028.73 | H182: 1104.83 | I182: 1118.72 | J182: 1142.88 | K182: 1094.55 | L182: 1056.5 | M182: 11.78097
A183: 174 | B183: SIEMENS | C183: 2360.1 | D183: 2342.53 | E183: 2319.52 | F183: 2278.93 | G183: 2255.92 | H183: 2383.12 | I183: 2406.13 | J183: 2446.72 | K183: 2365.55 | L183: 2301.95 | M183: 1.71084
A184: 175 | B184: SBIN | C184: 470.35 | D184: 469.05 | E184: 463.30 | F184: 456.25 | G184: 450.50 | H184: 476.10 | I184: 481.85 | J184: 488.90 | K184: 474.8 | L184: 462 | M184: 220.91309
A185: 176 | B185: SAIL | C185: 99.65 | D185: 100.18 | E185: 98.52 | F185: 97.38 | G185: 95.72 | H185: 101.32 | I185: 102.98 | J185: 104.12 | K185: 101.85 | L185: 99.05 | M185: 445.12874
A186: 177 | B186: SUNPHARMA | C186: 902 | D186: 892.68 | E186: 878.37 | F186: 854.73 | G186: 840.42 | H186: 916.32 | I186: 930.63 | J186: 954.27 | K186: 907 | L186: 869.05 | M186: 71.94497
A187: 178 | B187: SUNTV | C187: 455 | D187: 455.90 | E187: 451.55 | F187: 448.10 | G187: 443.75 | H187: 459.35 | I187: 463.70 | J187: 467.15 | K187: 460.25 | L187: 452.45 | M187: 6.77385
A188: 179 | B188: SYNGENE | C188: 578.8 | D188: 572.42 | E188: 563.83 | F188: 548.87 | G188: 540.28 | H188: 587.38 | I188: 595.97 | J188: 610.93 | K188: 581 | L188: 557.45 | M188: 4.33478
A189: 180 | B189: TVSMOTOR | C189: 581.6 | D189: 574.42 | E189: 564.73 | F189: 547.87 | G189: 538.18 | H189: 591.28 | I189: 600.97 | J189: 617.83 | K189: 584.1 | L189: 557.55 | M189: 19.93394
A190: 181 | B190: TATACHEM | C190: 927.25 | D190: 920.37 | E190: 910.93 | F190: 894.62 | G190: 885.18 | H190: 936.68 | I190: 946.12 | J190: 962.43 | K190: 929.8 | L190: 904.05 | M190: 12.96404
A191: 182 | B191: TATACOMM | C191: 1146.65 | D191: 1153.12 | E191: 1136.58 | F191: 1126.52 | G191: 1109.98 | H191: 1163.18 | I191: 1179.72 | J191: 1189.78 | K191: 1169.65 | L191: 1143.05 | M191: 2.67547
A192: 183 | B192: TCS | C192: 3599.15 | D192: 3610.62 | E192: 3581.38 | F192: 3563.62 | G192: 3534.38 | H192: 3628.38 | I192: 3657.62 | J192: 3675.38 | K192: 3639.85 | L192: 3592.85 | M192: 16.23423
A193: 184 | B193: TATACONSUM | C193: 716.45 | D193: 716.65 | E193: 707.25 | F193: 698.05 | G193: 688.65 | H193: 725.85 | I193: 735.25 | J193: 744.45 | K193: 726.05 | L193: 707.45 | M193: 23.05707
A194: 185 | B194: TATAELXSI | C194: 7121.2 | D194: 7075.50 | E194: 6971.00 | F194: 6820.80 | G194: 6716.30 | H194: 7225.70 | I194: 7330.20 | J194: 7480.40 | K194: 7180 | L194: 6925.3 | M194: 1.97254
A195: 186 | B195: TATAMOTORS | C195: 418.15 | D195: 415.57 | E195: 409.98 | F195: 401.82 | G195: 396.23 | H195: 423.73 | I195: 429.32 | J195: 437.48 | K195: 421.15 | L195: 407.4 | M195: 515.10243
A196: 187 | B196: TATAPOWER | C196: 233.15 | D196: 232.57 | E196: 230.88 | F196: 228.62 | G196: 226.93 | H196: 234.83 | I196: 236.52 | J196: 238.78 | K196: 234.25 | L196: 230.3 | M196: 181.63055
A197: 188 | B197: TATASTEEL | C197: 1301.7 | D197: 1312.60 | E197: 1285.30 | F197: 1268.90 | G197: 1241.60 | H197: 1329.00 | I197: 1356.30 | J197: 1372.70 | K197: 1339.9 | L197: 1296.2 | M197: 118.82299
A198: 189 | B198: TECHM | C198: 1486.8 | D198: 1483.72 | E198: 1475.58 | F198: 1464.37 | G198: 1456.23 | H198: 1494.93 | I198: 1503.07 | J198: 1514.28 | K198: 1491.85 | L198: 1472.5 | M198: 11.16432
A199: 190 | B199: RAMCOCEM | C199: 737.15 | D199: 733.95 | E199: 725.20 | F199: 713.25 | G199: 704.50 | H199: 745.90 | I199: 754.65 | J199: 766.60 | K199: 742.7 | L199: 722 | M199: 3.08683
A200: 191 | B200: TITAN | C200: 2493.6 | D200: 2480.22 | E200: 2462.23 | F200: 2430.87 | G200: 2412.88 | H200: 2511.58 | I200: 2529.57 | J200: 2560.93 | K200: 2498.2 | L200: 2448.85 | M200: 8.1233
A201: 192 | B201: TORNTPHARM | C201: 2823.25 | D201: 2805.83 | E201: 2769.97 | F201: 2716.68 | G201: 2680.82 | H201: 2859.12 | I201: 2894.98 | J201: 2948.27 | K201: 2841.7 | L201: 2752.55 | M201: 0.96883
A202: 193 | B202: TORNTPOWER | C202: 480.85 | D202: 483.58 | E202: 476.77 | F202: 472.68 | G202: 465.87 | H202: 487.67 | I202: 494.48 | J202: 498.57 | K202: 490.4 | L202: 479.5 | M202: 11.60192
A203: 194 | B203: TRENT | C203: 1168.8 | D203: 1160.52 | E203: 1139.28 | F203: 1109.77 | G203: 1088.53 | H203: 1190.03 | I203: 1211.27 | J203: 1240.78 | K203: 1181.75 | L203: 1131 | M203: 4.76838
A204: 195 | B204: UPL | C204: 725.45 | D204: 723.55 | E204: 718.10 | F204: 710.75 | G204: 705.30 | H204: 730.90 | I204: 736.35 | J204: 743.70 | K204: 729 | L204: 716.2 | M204: 25.59363
A205: 196 | B205: ULTRACEMCO | C205: 6021 | D205: 6040.32 | E205: 5960.68 | F205: 5900.37 | G205: 5820.73 | H205: 6100.63 | I205: 6180.27 | J205: 6240.58 | K205: 6119.95 | L205: 5980 | M205: 5.33023
... 29 more rows

Sheet MidCap Intra
L5: Back To Main Page
A6: FOR INTRA DAY TRADING | K6: =Main!B10 -> 2022-03-14
A9: Sr.no | B9: Scrip | C9: CLOSE RATE | D9: Pivot Point | E9: Supports | H9: Resistances
E10: S1 | F10: S2 | G10: S3 | H10: R1 | I10: R2 | J10: R3 | K10: HIGH | L10: LOW | M10: Total Trade Quanity in Lakhs
A11: 1 | B11: 3MINDIA | C11: 19897.4 | D11: 19958.53 | E11: 19818.92 | F11: 19740.43 | G11: 19600.82 | H11: 20037.02 | I11: 20176.63 | J11: 20255.12 | K11: 20098.15 | L11: 19880.05 | M11: 0.0539
A12: 2 | B12: AARTIDRUGS | C12: 466.2 | D12: 465.93 | E12: 460.47 | F12: 454.73 | G12: 449.27 | H12: 471.67 | I12: 477.13 | J12: 482.87 | K12: 471.4 | L12: 460.2 | M12: 0.87424
A13: 3 | B13: AARTIIND | C13: 845.2 | D13: 837.07 | E13: 826.13 | F13: 807.07 | G13: 796.13 | H13: 856.13 | I13: 867.07 | J13: 886.13 | K13: 848 | L13: 818 | M13: 9.51265
A14: 4 | B14: AAVAS | C14: 2546.15 | D14: 2552.72 | E14: 2519.43 | F14: 2492.72 | G14: 2459.43 | H14: 2579.43 | I14: 2612.72 | J14: 2639.43 | K14: 2586 | L14: 2526 | M14: 0.94762
A15: 5 | B15: ABB | C15: 2119.95 | D15: 2134.97 | E15: 2094.98 | F15: 2070.02 | G15: 2030.03 | H15: 2159.93 | I15: 2199.92 | J15: 2224.88 | K15: 2174.95 | L15: 2110 | M15: 0.78426
A16: 6 | B16: ABBOTINDIA | C16: 17268.65 | D16: 17347.45 | E16: 17045.20 | F16: 16821.75 | G16: 16519.50 | H16: 17570.90 | I16: 17873.15 | J16: 18096.60 | K16: 17649.7 | L16: 17124 | M16: 0.25377
A17: 7 | B17: ABCAPITAL | C17: 103.45 | D17: 103.63 | E17: 102.82 | F17: 102.18 | G17: 101.37 | H17: 104.27 | I17: 105.08 | J17: 105.72 | K17: 104.45 | L17: 103 | M17: 20.84612
A18: 8 | B18: ABFRL | C18: 279.35 | D18: 276.67 | E18: 271.38 | F18: 263.42 | G18: 258.13 | H18: 284.63 | I18: 289.92 | J18: 297.88 | K18: 281.95 | L18: 268.7 | M18: 12.20006
A19: 9 | B19: ACC | C19: 2041.9 | D19: 2039.92 | E19: 2017.98 | F19: 1994.07 | G19: 1972.13 | H19: 2063.83 | I19: 2085.77 | J19: 2109.68 | K19: 2061.85 | L19: 2016 | M19: 3.7213
A20: 10 | B20: ADANIENT | C20: 1734.1 | D20: 1737.43 | E20: 1717.87 | F20: 1701.63 | G20: 1682.07 | H20: 1753.67 | I20: 1773.23 | J20: 1789.47 | K20: 1757 | L20: 1721.2 | M20: 13.54129
A21: 11 | B21: ADANIGREEN | C21: 1860.05 | D21: 1869.40 | E21: 1840.90 | F21: 1821.75 | G21: 1793.25 | H21: 1888.55 | I21: 1917.05 | J21: 1936.20 | K21: 1897.9 | L21: 1850.25 | M21: 3.82512
A22: 12 | B22: ADANIPORTS | C22: 729.45 | D22: 727.83 | E22: 723.92 | F22: 718.38 | G22: 714.47 | H22: 733.37 | I22: 737.28 | J22: 742.82 | K22: 731.75 | L22: 722.3 | M22: 28.64685
A23: 13 | B23: ADANITRANS | C23: 2307.25 | D23: 2280.67 | E23: 2237.63 | F23: 2168.02 | G23: 2124.98 | H23: 2350.28 | I23: 2393.32 | J23: 2462.93 | K23: 2323.7 | L23: 2211.05 | M23: 1.63758
A24: 14 | B24: ADVENZYMES | C24: 303.3 | D24: 304.43 | E24: 299.87 | F24: 296.43 | G24: 291.87 | H24: 307.87 | I24: 312.43 | J24: 315.87 | K24: 309 | L24: 301 | M24: 0.78013
A25: 15 | B25: AEGISCHEM | C25: 195.65 | D25: 196.05 | E25: 192.80 | F25: 189.95 | G25: 186.70 | H25: 198.90 | I25: 202.15 | J25: 205.00 | K25: 199.3 | L25: 193.2 | M25: 5.26794
A26: 16 | B26: AFFLE | C26: 1251 | D26: 1255.33 | E26: 1230.67 | F26: 1210.33 | G26: 1185.67 | H26: 1275.67 | I26: 1300.33 | J26: 1320.67 | K26: 1280 | L26: 1235 | M26: 2.59658
A27: 17 | B27: AIAENG | C27: 1684.15 | D27: 1691.13 | E27: 1663.02 | F27: 1641.88 | G27: 1613.77 | H27: 1712.27 | I27: 1740.38 | J27: 1761.52 | K27: 1719.25 | L27: 1670 | M27: 0.1305
A28: 18 | B28: AJANTPHARM | C28: 1731.4 | D28: 1745.22 | E28: 1702.43 | F28: 1673.47 | G28: 1630.68 | H28: 1774.18 | I28: 1816.97 | J28: 1845.93 | K28: 1788 | L28: 1716.25 | M28: 0.90996
A29: 19 | B29: ALEMBICLTD | C29: 84.05 | D29: 84.03 | E29: 83.07 | F29: 82.08 | G29: 81.12 | H29: 85.02 | I29: 85.98 | J29: 86.97 | K29: 85 | L29: 83.05 | M29: 1.28407
A30: 20 | B30: ALKEM | C30: 3381 | D30: 3353.62 | E30: 3317.43 | F30: 3253.87 | G30: 3217.68 | H30: 3417.18 | I30: 3453.37 | J30: 3516.93 | K30: 3389.8 | L30: 3290.05 | M30: 0.76836
A31: 21 | B31: ALKYLAMINE | C31: 3009.75 | D31: 3022.60 | E31: 2967.05 | F31: 2924.35 | G31: 2868.80 | H31: 3065.30 | I31: 3120.85 | J31: 3163.55 | K31: 3078.15 | L31: 2979.9 | M31: 0.50874
A32: 22 | B32: ALOKINDS | C32: 24.4 | D32: 24.40 | E32: 24.10 | F32: 23.80 | G32: 23.50 | H32: 24.70 | I32: 25.00 | J32: 25.30 | K32: 24.7 | L32: 24.1 | M32: 89.66107
A33: 23 | B33: AMARAJABAT | C33: 575.25 | D33: 575.73 | E33: 569.57 | F33: 563.88 | G33: 557.72 | H33: 581.42 | I33: 587.58 | J33: 593.27 | K33: 581.9 | L33: 570.05 | M33: 3.80271
A34: 24 | B34: AMBER | C34: 3573.2 | D34: 3582.23 | E34: 3529.47 | F34: 3485.73 | G34: 3432.97 | H34: 3625.97 | I34: 3678.73 | J34: 3722.47 | K34: 3635 | L34: 3538.5 | M34: 0.91844
A35: 25 | B35: AMBUJACEM | C35: 293.45 | D35: 293.25 | E35: 290.50 | F35: 287.55 | G35: 284.80 | H35: 296.20 | I35: 298.95 | J35: 301.90 | K35: 296 | L35: 290.3 | M35: 43.57253
A36: 26 | B36: ANGELONE | C36: 1296 | D36: 1302.07 | E36: 1283.18 | F36: 1270.37 | G36: 1251.48 | H36: 1314.88 | I36: 1333.77 | J36: 1346.58 | K36: 1320.95 | L36: 1289.25 | M36: 5.56778
A37: 27 | B37: ANURAS | C37: 869 | D37: 875.37 | E37: 858.73 | F37: 848.47 | G37: 831.83 | H37: 885.63 | I37: 902.27 | J37: 912.53 | K37: 892 | L37: 865.1 | M37: 2.21581
A38: 28 | B38: APLAPOLLO | C38: 900.1 | D38: 888.98 | E38: 872.97 | F38: 845.83 | G38: 829.82 | H38: 916.12 | I38: 932.13 | J38: 959.27 | K38: 905 | L38: 861.85 | M38: 4.49275
A39: 29 | B39: APLLTD | C39: 733.8 | D39: 729.05 | E39: 722.30 | F39: 710.80 | G39: 704.05 | H39: 740.55 | I39: 747.30 | J39: 758.80 | K39: 735.8 | L39: 717.55 | M39: 2.02266
A40: 30 | B40: APOLLOHOSP | C40: 4854.1 | D40: 4817.45 | E40: 4771.90 | F40: 4689.70 | G40: 4644.15 | H40: 4899.65 | I40: 4945.20 | J40: 5027.40 | K40: 4863 | L40: 4735.25 | M40: 4.36703
A41: 31 | B41: APOLLOTYRE | C41: 184.25 | D41: 183.78 | E41: 181.77 | F41: 179.28 | G41: 177.27 | H41: 186.27 | I41: 188.28 | J41: 190.77 | K41: 185.8 | L41: 181.3 | M41: 24.4388
A42: 32 | B42: ASAHIINDIA | C42: 422.85 | D42: 419.07 | E42: 410.13 | F42: 397.42 | G42: 388.48 | H42: 431.78 | I42: 440.72 | J42: 453.43 | K42: 428 | L42: 406.35 | M42: 1.64823
A43: 33 | B43: ASHOKA | C43: 91.05 | D43: 90.92 | E43: 90.18 | F43: 89.32 | G43: 88.58 | H43: 91.78 | I43: 92.52 | J43: 93.38 | K43: 91.65 | L43: 90.05 | M43: 6.13151
A44: 34 | B44: ASHOKLEY | C44: 105.9 | D44: 105.55 | E44: 104.10 | F44: 102.30 | G44: 100.85 | H44: 107.35 | I44: 108.80 | J44: 110.60 | K44: 107 | L44: 103.75 | M44: 225.92586
A45: 35 | B45: ASIANPAINT | C45: 2932 | D45: 2918.10 | E45: 2896.25 | F45: 2860.50 | G45: 2838.65 | H45: 2953.85 | I45: 2975.70 | J45: 3011.45 | K45: 2939.95 | L45: 2882.35 | M45: 12.65493
A46: 36 | B46: ASTERDM | C46: 173.8 | D46: 172.58 | E46: 170.72 | F46: 167.63 | G46: 165.77 | H46: 175.67 | I46: 177.53 | J46: 180.62 | K46: 174.45 | L46: 169.5 | M46: 3.46085
A47: 37 | B47: ASTRAL | C47: 1955.7 | D47: 1940.68 | E47: 1912.37 | F47: 1869.03 | G47: 1840.72 | H47: 1984.02 | I47: 2012.33 | J47: 2055.67 | K47: 1969 | L47: 1897.35 | M47: 3.32671
A48: 38 | B48: ASTRAZEN | C48: 2707.2 | D48: 2693.17 | E48: 2659.33 | F48: 2611.47 | G48: 2577.63 | H48: 2741.03 | I48: 2774.87 | J48: 2822.73 | K48: 2727 | L48: 2645.3 | M48: 0.13912
A49: 39 | B49: ATGL | C49: 1661.85 | D49: 1675.03 | E49: 1636.07 | F49: 1610.28 | G49: 1571.32 | H49: 1700.82 | I49: 1739.78 | J49: 1765.57 | K49: 1714 | L49: 1649.25 | M49: 1.35449
A50: 40 | B50: ATUL | C50: 9537.3 | D50: 9346.53 | E50: 9093.07 | F50: 8648.83 | G50: 8395.37 | H50: 9790.77 | I50: 10044.23 | J50: 10488.47 | K50: 9600 | L50: 8902.3 | M50: 0.71842
A51: 41 | B51: AUBANK | C51: 1193.05 | D51: 1178.37 | E51: 1160.73 | F51: 1128.42 | G51: 1110.78 | H51: 1210.68 | I51: 1228.32 | J51: 1260.63 | K51: 1196 | L51: 1146.05 | M51: 12.65589
A52: 42 | B52: AUROPHARMA | C52: 642.25 | D52: 636.48 | E52: 627.97 | F52: 613.68 | G52: 605.17 | H52: 650.77 | I52: 659.28 | J52: 673.57 | K52: 645 | L52: 622.2 | M52: 23.10876
A53: 43 | B53: AVANTIFEED | C53: 425.25 | D53: 429.42 | E53: 415.83 | F53: 406.42 | G53: 392.83 | H53: 438.83 | I53: 452.42 | J53: 461.83 | K53: 443 | L53: 420 | M53: 5.56518
A54: 44 | B54: AXISBANK | C54: 690.85 | D54: 694.98 | E54: 683.32 | F54: 675.78 | G54: 664.12 | H54: 702.52 | I54: 714.18 | J54: 721.72 | K54: 706.65 | L54: 687.45 | M54: 142.24356
A55: 45 | B55: BAJAJ-AUTO | C55: 3423 | D55: 3418.32 | E55: 3391.13 | F55: 3359.27 | G55: 3332.08 | H55: 3450.18 | I55: 3477.37 | J55: 3509.23 | K55: 3445.5 | L55: 3386.45 | M55: 1.56038
A56: 46 | B56: BAJAJCON | C56: 163.75 | D56: 164.37 | E56: 161.78 | F56: 159.82 | G56: 157.23 | H56: 166.33 | I56: 168.92 | J56: 170.88 | K56: 166.95 | L56: 162.4 | M56: 4.54414
A57: 47 | B57: BAJAJELEC | C57: 1026.1 | D57: 1018.02 | E57: 999.58 | F57: 973.07 | G57: 954.63 | H57: 1044.53 | I57: 1062.97 | J57: 1089.48 | K57: 1036.45 | L57: 991.5 | M57: 1.54515
A58: 48 | B58: BAJAJFINSV | C58: 15569 | D58: 15533.00 | E58: 15316.00 | F58: 15063.00 | G58: 14846.00 | H58: 15786.00 | I58: 16003.00 | J58: 16256.00 | K58: 15750 | L58: 15280 | M58: 3.29632
A59: 49 | B59: BAJAJHLDNG | C59: 4916.55 | D59: 4948.82 | E59: 4846.83 | F59: 4777.12 | G59: 4675.13 | H59: 5018.53 | I59: 5120.52 | J59: 5190.23 | K59: 5050.8 | L59: 4879.1 | M59: 0.8803
A60: 50 | B60: BAJFINANCE | C60: 6628 | D60: 6601.02 | E60: 6517.03 | F60: 6406.07 | G60: 6322.08 | H60: 6711.98 | I60: 6795.97 | J60: 6906.93 | K60: 6685 | L60: 6490.05 | M60: 12.64771
A61: 51 | B61: BALAMINES | C61: 2882.4 | D61: 2899.50 | E61: 2854.05 | F61: 2825.70 | G61: 2780.25 | H61: 2927.85 | I61: 2973.30 | J61: 3001.65 | K61: 2944.95 | L61: 2871.15 | M61: 0.39748
A62: 52 | B62: BALKRISIND | C62: 1970.25 | D62: 1958.33 | E62: 1938.67 | F62: 1907.08 | G62: 1887.42 | H62: 1989.92 | I62: 2009.58 | J62: 2041.17 | K62: 1978 | L62: 1926.75 | M62: 1.65045
A63: 53 | B63: BALRAMCHIN | C63: 487.35 | D63: 475.47 | E63: 459.63 | F63: 431.92 | G63: 416.08 | H63: 503.18 | I63: 519.02 | J63: 546.73 | K63: 491.3 | L63: 447.75 | M63: 134.41617
A64: 54 | B64: BANDHANBNK | C64: 262.9 | D64: 263.15 | E64: 258.95 | F64: 255.00 | G64: 250.80 | H64: 267.10 | I64: 271.30 | J64: 275.25 | K64: 267.35 | L64: 259.2 | M64: 94.29721
A65: 55 | B65: BANKBARODA | C65: 104.4 | D65: 103.35 | E65: 102.00 | F65: 99.60 | G65: 98.25 | H65: 105.75 | I65: 107.10 | J65: 109.50 | K65: 104.7 | L65: 100.95 | M65: 407.67554
A66: 56 | B66: BANKINDIA | C66: 48.7 | D66: 48.70 | E66: 48.30 | F66: 47.90 | G66: 47.50 | H66: 49.10 | I66: 49.50 | J66: 49.90 | K66: 49.1 | L66: 48.3 | M66: 28.35461
A67: 57 | B67: BASF | C67: 2897.25 | D67: 2886.13 | E67: 2852.27 | F67: 2807.28 | G67: 2773.42 | H67: 2931.12 | I67: 2964.98 | J67: 3009.97 | K67: 2920 | L67: 2841.15 | M67: 0.50759
A68: 58 | B68: BATAINDIA | C68: 1807.8 | D68: 1811.28 | E68: 1792.57 | F68: 1777.33 | G68: 1758.62 | H68: 1826.52 | I68: 1845.23 | J68: 1860.47 | K68: 1830 | L68: 1796.05 | M68: 4.35213
A69: 59 | B69: BAYERCROP | C69: 4461.35 | D69: 4478.20 | E69: 4423.15 | F69: 4384.95 | G69: 4329.90 | H69: 4516.40 | I69: 4571.45 | J69: 4609.65 | K69: 4533.25 | L69: 4440 | M69: 0.30242
A70: 60 | B70: BBTC | C70: 922.55 | D70: 924.95 | E70: 914.90 | F70: 907.25 | G70: 897.20 | H70: 932.60 | I70: 942.65 | J70: 950.30 | K70: 935 | L70: 917.3 | M70: 0.50651
A71: 61 | B71: BDL | C71: 492.55 | D71: 487.00 | E71: 479.00 | F71: 465.45 | G71: 457.45 | H71: 500.55 | I71: 508.55 | J71: 522.10 | K71: 495 | L71: 473.45 | M71: 7.0192
A72: 62 | B72: BEL | C72: 214.8 | D72: 215.90 | E72: 213.00 | F72: 211.20 | G72: 208.30 | H72: 217.70 | I72: 220.60 | J72: 222.40 | K72: 218.8 | L72: 214.1 | M72: 97.82797
A73: 63 | B73: BEML | C73: 1482 | D73: 1486.70 | E73: 1468.50 | F73: 1455.00 | G73: 1436.80 | H73: 1500.20 | I73: 1518.40 | J73: 1531.90 | K73: 1504.9 | L73: 1473.2 | M73: 1.51819
A74: 64 | B74: BERGEPAINT | C74: 679.25 | D74: 678.48 | E74: 670.77 | F74: 662.28 | G74: 654.57 | H74: 686.97 | I74: 694.68 | J74: 703.17 | K74: 686.2 | L74: 670 | M74: 4.77733
A75: 65 | B75: BHARATFORG | C75: 632.35 | D75: 634.13 | E75: 627.37 | F75: 622.38 | G75: 615.62 | H75: 639.12 | I75: 645.88 | J75: 650.87 | K75: 640.9 | L75: 629.15 | M75: 13.94422
A76: 66 | B76: BHARATRAS | C76: 13254.25 | D76: 13364.25 | E76: 13078.50 | F76: 12902.75 | G76: 12617.00 | H76: 13540.00 | I76: 13825.75 | J76: 14001.50 | K76: 13650 | L76: 13188.5 | M76: 0.05888
A77: 67 | B77: BHARTIARTL | C77: 694.85 | D77: 696.25 | E77: 690.10 | F77: 685.35 | G77: 679.20 | H77: 701.00 | I77: 707.15 | J77: 711.90 | K77: 702.4 | L77: 691.5 | M77: 33.5388
A78: 68 | B78: BHEL | C78: 51.9 | D78: 51.63 | E78: 51.12 | F78: 50.33 | G78: 49.82 | H78: 52.42 | I78: 52.93 | J78: 53.72 | K78: 52.15 | L78: 50.85 | M78: 233.8687
A79: 69 | B79: BIOCON | C79: 331.95 | D79: 331.73 | E79: 328.22 | F79: 324.48 | G79: 320.97 | H79: 335.47 | I79: 338.98 | J79: 342.72 | K79: 335.25 | L79: 328 | M79: 49.55659
A80: 70 | B80: BIRLACORPN | C80: 1150.15 | D80: 1134.27 | E80: 1113.53 | F80: 1076.92 | G80: 1056.18 | H80: 1170.88 | I80: 1191.62 | J80: 1228.23 | K80: 1155 | L80: 1097.65 | M80: 1.96262
A81: 71 | B81: BLUEDART | C81: 6047 | D81: 6020.38 | E81: 5970.77 | F81: 5894.53 | G81: 5844.92 | H81: 6096.62 | I81: 6146.23 | J81: 6222.47 | K81: 6070 | L81: 5944.15 | M81: 0.07036
A82: 72 | B82: BLUESTARCO | C82: 982.95 | D82: 984.38 | E82: 970.67 | F82: 958.38 | G82: 944.67 | H82: 996.67 | I82: 1010.38 | J82: 1022.67 | K82: 998.1 | L82: 972.1 | M82: 0.50921
A83: 73 | B83: BOSCHLTD | C83: 14213.9 | D83: 14230.02 | E83: 14136.03 | F83: 14058.17 | G83: 13964.18 | H83: 14307.88 | I83: 14401.87 | J83: 14479.73 | K83: 14324 | L83: 14152.15 | M83: 0.28496
A84: 74 | B84: BPCL | C84: 362 | D84: 358.65 | E84: 353.60 | F84: 345.20 | G84: 340.15 | H84: 367.05 | I84: 372.10 | J84: 380.50 | K84: 363.7 | L84: 350.25 | M84: 82.78802
A85: 75 | B85: BRIGADE | C85: 447.5 | D85: 447.73 | E85: 441.72 | F85: 435.93 | G85: 429.92 | H85: 453.52 | I85: 459.53 | J85: 465.32 | K85: 453.75 | L85: 441.95 | M85: 2.3078
A86: 76 | B86: BRITANNIA | C86: 3199.9 | D86: 3216.43 | E86: 3176.27 | F86: 3152.63 | G86: 3112.47 | H86: 3240.07 | I86: 3280.23 | J86: 3303.87 | K86: 3256.6 | L86: 3192.8 | M86: 3.62091
A87: 77 | B87: BSE | C87: 2691.25 | D87: 2739.30 | E87: 2610.60 | F87: 2529.95 | G87: 2401.25 | H87: 2819.95 | I87: 2948.65 | J87: 3029.30 | K87: 2868 | L87: 2658.65 | M87: 96.70252
A88: 78 | B88: BSOFT | C88: 453.25 | D88: 451.73 | E88: 445.62 | F88: 437.98 | G88: 431.87 | H88: 459.37 | I88: 465.48 | J88: 473.12 | K88: 457.85 | L88: 444.1 | M88: 16.98204
A89: 79 | B89: INTELLECT | C89: 737.85 | D89: 730.25 | E89: 713.25 | F89: 688.65 | G89: 671.65 | H89: 754.85 | I89: 771.85 | J89: 796.45 | K89: 747.25 | L89: 705.65 | M89: 3.95348
A90: 80 | B90: CAMS | C90: 2494.15 | D90: 2490.62 | E90: 2456.43 | F90: 2418.72 | G90: 2384.53 | H90: 2528.33 | I90: 2562.52 | J90: 2600.23 | K90: 2524.8 | L90: 2452.9 | M90: 2.52428
A91: 81 | B91: CANBK | C91: 217.95 | D91: 216.62 | E91: 213.83 | F91: 209.72 | G91: 206.93 | H91: 220.73 | I91: 223.52 | J91: 227.63 | K91: 219.4 | L91: 212.5 | M91: 109.60139
A92: 82 | B92: CANFINHOME | C92: 586.9 | D92: 587.47 | E92: 577.43 | F92: 567.97 | G92: 557.93 | H92: 596.93 | I92: 606.97 | J92: 616.43 | K92: 597.5 | L92: 578 | M92: 4.95078
A93: 83 | B93: CAPLIPOINT | C93: 736.7 | D93: 734.95 | E93: 726.90 | F93: 717.10 | G93: 709.05 | H93: 744.75 | I93: 752.80 | J93: 762.60 | K93: 743 | L93: 725.15 | M93: 0.56923
A94: 84 | B94: CARBORUNIV | C94: 780.2 | D94: 779.73 | E94: 762.57 | F94: 744.93 | G94: 727.77 | H94: 797.37 | I94: 814.53 | J94: 832.17 | K94: 796.9 | L94: 762.1 | M94: 1.06545
A95: 85 | B95: CASTROLIND | C95: 109.05 | D95: 109.08 | E95: 108.62 | F95: 108.18 | G95: 107.72 | H95: 109.52 | I95: 109.98 | J95: 110.42 | K95: 109.55 | L95: 108.65 | M95: 6.53703
A96: 86 | B96: CCL | C96: 378 | D96: 382.00 | E96: 372.00 | F96: 366.00 | G96: 356.00 | H96: 388.00 | I96: 398.00 | J96: 404.00 | K96: 392 | L96: 376 | M96: 2.5818
A97: 87 | B97: CDSL | C97: 1518.9 | D97: 1519.63 | E97: 1469.27 | F97: 1419.63 | G97: 1369.27 | H97: 1569.27 | I97: 1619.63 | J97: 1669.27 | K97: 1570 | L97: 1470 | M97: 53.11743
A98: 88 | B98: CEATLTD | C98: 1007.8 | D98: 1017.27 | E98: 990.53 | F98: 973.27 | G98: 946.53 | H98: 1034.53 | I98: 1061.27 | J98: 1078.53 | K98: 1044 | L98: 1000 | M98: 0.95515
A99: 89 | B99: CENTRALBK | C99: 18.7 | D99: 18.73 | E99: 18.52 | F99: 18.33 | G99: 18.12 | H99: 18.92 | I99: 19.13 | J99: 19.32 | K99: 18.95 | L99: 18.55 | M99: 19.32003
A100: 90 | B100: CENTURYPLY | C100: 607.05 | D100: 609.55 | E100: 596.50 | F100: 585.95 | G100: 572.90 | H100: 620.10 | I100: 633.15 | J100: 643.70 | K100: 622.6 | L100: 599 | M100: 2.8664
A101: 91 | B101: CENTURYTEX | C101: 771.2 | D101: 777.43 | E101: 757.77 | F101: 744.33 | G101: 724.67 | H101: 790.87 | I101: 810.53 | J101: 823.97 | K101: 797.1 | L101: 764 | M101: 5.6726
A102: 92 | B102: CERA | C102: 4474.8 | D102: 4493.82 | E102: 4397.63 | F102: 4320.47 | G102: 4224.28 | H102: 4570.98 | I102: 4667.17 | J102: 4744.33 | K102: 4590 | L102: 4416.65 | M102: 0.189
A103: 93 | B103: CESC | C103: 77.5 | D103: 77.87 | E103: 76.48 | F103: 75.47 | G103: 74.08 | H103: 78.88 | I103: 80.27 | J103: 81.28 | K103: 79.25 | L103: 76.85 | M103: 22.56628
A104: 94 | B104: CGCL | C104: 610.55 | D104: 611.05 | E104: 602.10 | F104: 593.65 | G104: 584.70 | H104: 619.50 | I104: 628.45 | J104: 636.90 | K104: 620 | L104: 602.6 | M104: 4.06183
A105: 95 | B105: CGPOWER | C105: 171.4 | D105: 170.35 | E105: 167.80 | F105: 164.20 | G105: 161.65 | H105: 173.95 | I105: 176.50 | J105: 180.10 | K105: 172.9 | L105: 166.75 | M105: 6.88981
A106: 96 | B106: CHALET | C106: 265.7 | D106: 267.48 | E106: 262.57 | F106: 259.43 | G106: 254.52 | H106: 270.62 | I106: 275.53 | J106: 278.67 | K106: 272.4 | L106: 264.35 | M106: 3.43255
A107: 97 | B107: CHAMBLFERT | C107: 423 | D107: 422.72 | E107: 414.73 | F107: 406.47 | G107: 398.48 | H107: 430.98 | I107: 438.97 | J107: 447.23 | K107: 430.7 | L107: 414.45 | M107: 52.37215
A108: 98 | B108: CHOLAFIN | C108: 671.45 | D108: 669.17 | E108: 663.33 | F108: 655.22 | G108: 649.38 | H108: 677.28 | I108: 683.12 | J108: 691.23 | K108: 675 | L108: 661.05 | M108: 14.52682
A109: 99 | B109: CHOLAHLDNG | C109: 591.6 | D109: 597.52 | E109: 580.08 | F109: 568.57 | G109: 551.13 | H109: 609.03 | I109: 626.47 | J109: 637.98 | K109: 614.95 | L109: 586 | M109: 0.7225
A110: 100 | B110: CIPLA | C110: 1043.95 | D110: 1026.35 | E110: 998.95 | F110: 953.95 | G110: 926.55 | H110: 1071.35 | I110: 1098.75 | J110: 1143.75 | K110: 1053.75 | L110: 981.35 | M110: 111.06725
A111: 101 | B111: COALINDIA | C111: 181.75 | D111: 181.17 | E111: 179.83 | F111: 177.92 | G111: 176.58 | H111: 183.08 | I111: 184.42 | J111: 186.33 | K111: 182.5 | L111: 179.25 | M111: 146.63558
A112: 102 | B112: COCHINSHIP | C112: 304.6 | D112: 302.03 | E112: 297.72 | F112: 290.83 | G112: 286.52 | H112: 308.92 | I112: 313.23 | J112: 320.12 | K112: 306.35 | L112: 295.15 | M112: 2.43612
A113: 103 | B113: COFORGE | C113: 4298.3 | D113: 4287.67 | E113: 4245.83 | F113: 4193.37 | G113: 4151.53 | H113: 4340.13 | I113: 4381.97 | J113: 4434.43 | K113: 4329.5 | L113: 4235.2 | M113: 7.71438
A114: 104 | B114: COLPAL | C114: 1498.5 | D114: 1503.42 | E114: 1481.83 | F114: 1465.17 | G114: 1443.58 | H114: 1520.08 | I114: 1541.67 | J114: 1558.33 | K114: 1525 | L114: 1486.75 | M114: 7.85111
A115: 105 | B115: CONCOR | C115: 596.4 | D115: 593.07 | E115: 584.28 | F115: 572.17 | G115: 563.38 | H115: 605.18 | I115: 613.97 | J115: 626.08 | K115: 601.85 | L115: 580.95 | M115: 11.35613
A116: 106 | B116: COROMANDEL | C116: 778.15 | D116: 774.48 | E116: 762.97 | F116: 747.78 | G116: 736.27 | H116: 789.67 | I116: 801.18 | J116: 816.37 | K116: 786 | L116: 759.3 | M116: 6.50333
A117: 107 | B117: CREDITACC | C117: 701.95 | D117: 699.82 | E117: 687.18 | F117: 672.42 | G117: 659.78 | H117: 714.58 | I117: 727.22 | J117: 741.98 | K117: 712.45 | L117: 685.05 | M117: 0.59476
A118: 108 | B118: CRISIL | C118: 2776.95 | D118: 2806.67 | E118: 2728.83 | F118: 2680.72 | G118: 2602.88 | H118: 2854.78 | I118: 2932.62 | J118: 2980.73 | K118: 2884.5 | L118: 2758.55 | M118: 0.47235
A119: 109 | B119: CROMPTON | C119: 403.7 | D119: 400.70 | E119: 396.75 | F119: 389.80 | G119: 385.85 | H119: 407.65 | I119: 411.60 | J119: 418.55 | K119: 404.65 | L119: 393.75 | M119: 16.64103
A120: 110 | B120: CSBBANK | C120: 212.1 | D120: 212.38 | E120: 209.72 | F120: 207.33 | G120: 204.67 | H120: 214.77 | I120: 217.43 | J120: 219.82 | K120: 215.05 | L120: 210 | M120: 1.20948
A121: 111 | B121: CUB | C121: 123.1 | D121: 123.22 | E121: 121.73 | F121: 120.37 | G121: 118.88 | H121: 124.58 | I121: 126.07 | J121: 127.43 | K121: 124.7 | L121: 121.85 | M121: 21.67812
A122: 112 | B122: CUMMINSIND | C122: 995.65 | D122: 994.98 | E122: 981.97 | F122: 968.28 | G122: 955.27 | H122: 1008.67 | I122: 1021.68 | J122: 1035.37 | K122: 1008 | L122: 981.3 | M122: 4.24501
A123: 113 | B123: CYIENT | C123: 886.5 | D123: 889.52 | E123: 876.03 | F123: 865.57 | G123: 852.08 | H123: 899.98 | I123: 913.47 | J123: 923.93 | K123: 903 | L123: 879.05 | M123: 1.69326
A124: 114 | B124: DABUR | C124: 547.55 | D124: 545.98 | E124: 542.42 | F124: 537.28 | G124: 533.72 | H124: 551.12 | I124: 554.68 | J124: 559.82 | K124: 549.55 | L124: 540.85 | M124: 12.38386
A125: 115 | B125: DALBHARAT | C125: 1429.85 | D125: 1437.28 | E125: 1394.57 | F125: 1359.28 | G125: 1316.57 | H125: 1472.57 | I125: 1515.28 | J125: 1550.57 | K125: 1480 | L125: 1402 | M125: 4.49351
A126: 116 | B126: DBL | C126: 260.55 | D126: 260.37 | E126: 256.88 | F126: 253.22 | G126: 249.73 | H126: 264.03 | I126: 267.52 | J126: 271.18 | K126: 263.85 | L126: 256.7 | M126: 4.7302
A127: 117 | B127: DCBBANK | C127: 71.75 | D127: 71.42 | E127: 70.53 | F127: 69.32 | G127: 68.43 | H127: 72.63 | I127: 73.52 | J127: 74.73 | K127: 72.3 | L127: 70.2 | M127: 3.99432
A128: 118 | B128: DCMSHRIRAM | C128: 1032.2 | D128: 1019.37 | E128: 993.83 | F128: 955.47 | G128: 929.93 | H128: 1057.73 | I128: 1083.27 | J128: 1121.63 | K128: 1044.9 | L128: 981 | M128: 1.7533
A129: 119 | B129: DEEPAKNTR | C129: 2050.65 | D129: 2033.52 | E129: 2007.03 | F129: 1963.42 | G129: 1936.93 | H129: 2077.13 | I129: 2103.62 | J129: 2147.23 | K129: 2060 | L129: 1989.9 | M129: 5.76754
A130: 120 | B130: DELTACORP | C130: 282 | D130: 279.80 | E130: 273.60 | F130: 265.20 | G130: 259.00 | H130: 288.20 | I130: 294.40 | J130: 302.80 | K130: 286 | L130: 271.4 | M130: 82.14707
A131: 121 | B131: DHANI | C131: 78.8 | D131: 77.73 | E131: 74.47 | F131: 70.13 | G131: 66.87 | H131: 82.07 | I131: 85.33 | J131: 89.67 | K131: 81 | L131: 73.4 | M131: 54.23438
A132: 122 | B132: DHANUKA | C132: 723.7 | D132: 728.20 | E132: 717.50 | F132: 711.30 | G132: 700.60 | H132: 734.40 | I132: 745.10 | J132: 751.30 | K132: 738.9 | L132: 722 | M132: 0.19982
A133: 123 | B133: DIVISLAB | C133: 4339.4 | D133: 4314.13 | E133: 4275.27 | F133: 4211.13 | G133: 4172.27 | H133: 4378.27 | I133: 4417.13 | J133: 4481.27 | K133: 4353 | L133: 4250 | M133: 3.52915
A134: 124 | B134: DIXON | C134: 4153.95 | D134: 4147.97 | E134: 4100.98 | F134: 4048.02 | G134: 4001.03 | H134: 4200.93 | I134: 4247.92 | J134: 4300.88 | K134: 4194.95 | L134: 4095 | M134: 1.84965
A135: 125 | B135: DLF | C135: 353.75 | D135: 353.27 | E135: 349.63 | F135: 345.52 | G135: 341.88 | H135: 357.38 | I135: 361.02 | J135: 365.13 | K135: 356.9 | L135: 349.15 | M135: 38.91664
A136: 126 | B136: DMART | C136: 4198.95 | D136: 4172.73 | E136: 4135.47 | F136: 4071.98 | G136: 4034.72 | H136: 4236.22 | I136: 4273.48 | J136: 4336.97 | K136: 4210 | L136: 4109.25 | M136: 3.87534
A137: 127 | B137: DRREDDY | C137: 3975.6 | D137: 3948.20 | E137: 3900.40 | F137: 3825.20 | G137: 3777.40 | H137: 4023.40 | I137: 4071.20 | J137: 4146.40 | K137: 3996 | L137: 3873 | M137: 11.13263
A138: 128 | B138: ECLERX | C138: 2509.45 | D138: 2493.13 | E138: 2436.37 | F138: 2363.28 | G138: 2306.52 | H138: 2566.22 | I138: 2622.98 | J138: 2696.07 | K138: 2549.9 | L138: 2420.05 | M138: 1.12686
A139: 129 | B139: EDELWEISS | C139: 54.2 | D139: 53.92 | E139: 53.23 | F139: 52.27 | G139: 51.58 | H139: 54.88 | I139: 55.57 | J139: 56.53 | K139: 54.6 | L139: 52.95 | M139: 11.08963
A140: 130 | B140: EICHERMOT | C140: 2290.75 | D140: 2286.97 | E140: 2258.93 | F140: 2227.12 | G140: 2199.08 | H140: 2318.78 | I140: 2346.82 | J140: 2378.63 | K140: 2315 | L140: 2255.15 | M140: 6.2107
A141: 131 | B141: EIDPARRY | C141: 426.05 | D141: 422.70 | E141: 410.70 | F141: 395.35 | G141: 383.35 | H141: 438.05 | I141: 450.05 | J141: 465.40 | K141: 434.7 | L141: 407.35 | M141: 18.22799
A142: 132 | B142: EIHOTEL | C142: 123.45 | D142: 124.45 | E142: 121.60 | F142: 119.75 | G142: 116.90 | H142: 126.30 | I142: 129.15 | J142: 131.00 | K142: 127.3 | L142: 122.6 | M142: 4.9069
A143: 133 | B143: ELGIEQUIP | C143: 306.8 | D143: 307.70 | E143: 301.35 | F143: 295.90 | G143: 289.55 | H143: 313.15 | I143: 319.50 | J143: 324.95 | K143: 314.05 | L143: 302.25 | M143: 4.81307
A144: 134 | B144: EMAMILTD | C144: 483.95 | D144: 482.00 | E144: 477.50 | F144: 471.05 | G144: 466.55 | H144: 488.45 | I144: 492.95 | J144: 499.40 | K144: 486.5 | L144: 475.55 | M144: 11.48489
A145: 135 | B145: ENDURANCE | C145: 1175.6 | D145: 1177.03 | E145: 1154.32 | F145: 1133.03 | G145: 1110.32 | H145: 1198.32 | I145: 1221.03 | J145: 1242.32 | K145: 1199.75 | L145: 1155.75 | M145: 0.71011
A146: 136 | B146: ENGINERSIN | C146: 65.05 | D146: 65.10 | E146: 64.45 | F146: 63.85 | G146: 63.20 | H146: 65.70 | I146: 66.35 | J146: 66.95 | K146: 65.75 | L146: 64.5 | M146: 7.27738
A147: 137 | B147: EPL | C147: 168.2 | D147: 169.55 | E147: 164.10 | F147: 160.00 | G147: 154.55 | H147: 173.65 | I147: 179.10 | J147: 183.20 | K147: 175 | L147: 165.45 | M147: 9.42386
A148: 138 | B148: EQUITAS | C148: 106.35 | D148: 106.95 | E148: 105.10 | F148: 103.85 | G148: 102.00 | H148: 108.20 | I148: 110.05 | J148: 111.30 | K148: 108.8 | L148: 105.7 | M148: 3.82816
A149: 139 | B149: EQUITASBNK | C149: 53 | D149: 52.62 | E149: 51.88 | F149: 50.77 | G149: 50.03 | H149: 53.73 | I149: 54.47 | J149: 55.58 | K149: 53.35 | L149: 51.5 | M149: 2.86488
A150: 140 | B150: ERIS | C150: 721.2 | D150: 720.98 | E150: 712.52 | F150: 703.83 | G150: 695.37 | H150: 729.67 | I150: 738.13 | J150: 746.82 | K150: 729.45 | L150: 712.3 | M150: 0.47086
A151: 141 | B151: ESCORTS | C151: 1818.2 | D151: 1813.43 | E151: 1806.87 | F151: 1795.53 | G151: 1788.97 | H151: 1824.77 | I151: 1831.33 | J151: 1842.67 | K151: 1820 | L151: 1802.1 | M151: 5.53138
A152: 142 | B152: EXIDEIND | C152: 153.65 | D152: 154.08 | E152: 151.82 | F152: 149.98 | G152: 147.72 | H152: 155.92 | I152: 158.18 | J152: 160.02 | K152: 156.35 | L152: 152.25 | M152: 42.55136
A153: 143 | B153: FACT | C153: 127.1 | D153: 124.08 | E153: 118.62 | F153: 110.13 | G153: 104.67 | H153: 132.57 | I153: 138.03 | J153: 146.52 | K153: 129.55 | L153: 115.6 | M153: 31.85302
A154: 144 | B154: FDC | C154: 271.6 | D154: 272.27 | E154: 265.58 | F154: 259.57 | G154: 252.88 | H154: 278.28 | I154: 284.97 | J154: 290.98 | K154: 278.95 | L154: 266.25 | M154: 1.28204
A155: 145 | B155: FEDERALBNK | C155: 95.3 | D155: 94.95 | E155: 94.15 | F155: 93.00 | G155: 92.20 | H155: 96.10 | I155: 96.90 | J155: 98.05 | K155: 95.75 | L155: 93.8 | M155: 150.23756
A156: 146 | B156: FINCABLES | C156: 388.2 | D156: 390.78 | E156: 383.47 | F156: 378.73 | G156: 371.42 | H156: 395.52 | I156: 402.83 | J156: 407.57 | K156: 398.1 | L156: 386.05 | M156: 1.45911
A157: 147 | B157: FINEORG | C157: 4062.4 | D157: 4084.23 | E157: 4023.47 | F157: 3984.53 | G157: 3923.77 | H157: 4123.17 | I157: 4183.93 | J157: 4222.87 | K157: 4145 | L157: 4045.3 | M157: 0.17367
A158: 148 | B158: FINPIPE | C158: 156.2 | D158: 156.73 | E158: 154.47 | F158: 152.73 | G158: 150.47 | H158: 158.47 | I158: 160.73 | J158: 162.47 | K158: 159 | L158: 155 | M158: 3.87338
A159: 149 | B159: FLUOROCHEM | C159: 2691.15 | D159: 2673.38 | E159: 2647.77 | F159: 2604.38 | G159: 2578.77 | H159: 2716.77 | I159: 2742.38 | J159: 2785.77 | K159: 2699 | L159: 2630 | M159: 0.15728
A160: 150 | B160: FORTIS | C160: 262.4 | D160: 261.67 | E160: 257.33 | F160: 252.27 | G160: 247.93 | H160: 266.73 | I160: 271.07 | J160: 276.13 | K160: 266 | L160: 256.6 | M160: 8.85731
A161: 151 | B161: FRETAIL | C161: 46.3 | D161: 46.53 | E161: 45.57 | F161: 44.83 | G161: 43.87 | H161: 47.27 | I161: 48.23 | J161: 48.97 | K161: 47.5 | L161: 45.8 | M161: 49.29419
A162: 152 | B162: FSL | C162: 124.15 | D162: 125.65 | E162: 122.30 | F162: 120.45 | G162: 117.10 | H162: 127.50 | I162: 130.85 | J162: 132.70 | K162: 129 | L162: 123.8 | M162: 34.06853
A163: 153 | B163: GAEL | C163: 238.45 | D163: 233.32 | E163: 222.33 | F163: 206.22 | G163: 195.23 | H163: 249.43 | I163: 260.42 | J163: 276.53 | K163: 244.3 | L163: 217.2 | M163: 54.08767
A164: 154 | B164: GAIL | C164: 152.4 | D164: 151.50 | E164: 148.90 | F164: 145.40 | G164: 142.80 | H164: 155.00 | I164: 157.60 | J164: 161.10 | K164: 154.1 | L164: 148 | M164: 179.45413
A165: 155 | B165: GALAXYSURF | C165: 2850.3 | D165: 2829.32 | E165: 2763.93 | F165: 2677.57 | G165: 2612.18 | H165: 2915.68 | I165: 2981.07 | J165: 3067.43 | K165: 2894.7 | L165: 2742.95 | M165: 0.1061
A166: 156 | B166: GARFIBRES | C166: 2846 | D166: 2832.90 | E166: 2805.80 | F166: 2765.60 | G166: 2738.50 | H166: 2873.10 | I166: 2900.20 | J166: 2940.40 | K166: 2860 | L166: 2792.7 | M166: 0.04674
A167: 157 | B167: GESHIP | C167: 343 | D167: 340.82 | E167: 337.18 | F167: 331.37 | G167: 327.73 | H167: 346.63 | I167: 350.27 | J167: 356.08 | K167: 344.45 | L167: 335 | M167: 1.5794
A168: 158 | B168: GICRE | C168: 115.7 | D168: 115.93 | E168: 114.97 | F168: 114.23 | G168: 113.27 | H168: 116.67 | I168: 117.63 | J168: 118.37 | K168: 116.9 | L168: 115.2 | M168: 2.40984
A169: 159 | B169: GILLETTE | C169: 5037.95 | D169: 5028.93 | E169: 4990.87 | F169: 4943.78 | G169: 4905.72 | H169: 5076.02 | I169: 5114.08 | J169: 5161.17 | K169: 5067 | L169: 4981.85 | M169: 0.03262
A170: 160 | B170: GLAND | C170: 3329.4 | D170: 3333.95 | E170: 3302.90 | F170: 3276.40 | G170: 3245.35 | H170: 3360.45 | I170: 3391.50 | J170: 3418.00 | K170: 3365 | L170: 3307.45 | M170: 0.93725
A171: 161 | B171: GLAXO | C171: 1544.3 | D171: 1548.25 | E171: 1529.35 | F171: 1514.40 | G171: 1495.50 | H171: 1563.20 | I171: 1582.10 | J171: 1597.05 | K171: 1567.15 | L171: 1533.3 | M171: 0.23053
A172: 162 | B172: GLENMARK | C172: 453.3 | D172: 449.68 | E172: 442.62 | F172: 431.93 | G172: 424.87 | H172: 460.37 | I172: 467.43 | J172: 478.12 | K172: 456.75 | L172: 439 | M172: 10.97206
A173: 163 | B173: GMMPFAUDLR | C173: 4376.85 | D173: 4380.60 | E173: 4344.20 | F173: 4311.55 | G173: 4275.15 | H173: 4413.25 | I173: 4449.65 | J173: 4482.30 | K173: 4417 | L173: 4347.95 | M173: 0.07533
A174: 164 | B174: GNFC | C174: 708.85 | D174: 684.20 | E174: 652.65 | F174: 596.45 | G174: 564.90 | H174: 740.40 | I174: 771.95 | J174: 828.15 | K174: 715.75 | L174: 628 | M174: 134.94174
A175: 165 | B175: GODFRYPHLP | C175: 1025 | D175: 1019.97 | E175: 1008.88 | F175: 992.77 | G175: 981.68 | H175: 1036.08 | I175: 1047.17 | J175: 1063.28 | K175: 1031.05 | L175: 1003.85 | M175: 0.13771
A176: 166 | B176: GODREJAGRO | C176: 482.45 | D176: 483.72 | E176: 480.28 | F176: 478.12 | G176: 474.68 | H176: 485.88 | I176: 489.32 | J176: 491.48 | K176: 487.15 | L176: 481.55 | M176: 0.84433
A177: 167 | B177: GODREJCP | C177: 709.45 | D177: 706.83 | E177: 701.62 | F177: 693.78 | G177: 688.57 | H177: 714.67 | I177: 719.88 | J177: 727.72 | K177: 712.05 | L177: 699 | M177: 16.91259
A178: 168 | B178: GODREJIND | C178: 500.15 | D178: 503.68 | E178: 491.37 | F178: 482.58 | G178: 470.27 | H178: 512.47 | I178: 524.78 | J178: 533.57 | K178: 516 | L178: 494.9 | M178: 2.65226
A179: 169 | B179: GODREJPROP | C179: 1492.8 | D179: 1488.58 | E179: 1475.22 | F179: 1457.63 | G179: 1444.27 | H179: 1506.17 | I179: 1519.53 | J179: 1537.12 | K179: 1501.95 | L179: 1471 | M179: 5.70819
A180: 170 | B180: GPPL | C180: 84 | D180: 83.93 | E180: 83.07 | F180: 82.13 | G180: 81.27 | H180: 84.87 | I180: 85.73 | J180: 86.67 | K180: 84.8 | L180: 83 | M180: 5.95522
A181: 171 | B181: GRANULES | C181: 308.2 | D181: 302.97 | E181: 296.43 | F181: 284.67 | G181: 278.13 | H181: 314.73 | I181: 321.27 | J181: 333.03 | K181: 309.5 | L181: 291.2 | M181: 27.37826
A182: 172 | B182: GRAPHITE | C182: 504.2 | D182: 503.38 | E182: 492.77 | F182: 481.33 | G182: 470.72 | H182: 514.82 | I182: 525.43 | J182: 536.87 | K182: 514 | L182: 491.95 | M182: 9.95249
A183: 173 | B183: GRASIM | C183: 1566.25 | D183: 1561.05 | E183: 1546.20 | F183: 1526.15 | G183: 1511.30 | H183: 1581.10 | I183: 1595.95 | J183: 1616.00 | K183: 1575.9 | L183: 1541 | M183: 12.02172
A184: 174 | B184: GREAVESCOT | C184: 168.95 | D184: 169.47 | E184: 166.38 | F184: 163.82 | G184: 160.73 | H184: 172.03 | I184: 175.12 | J184: 177.68 | K184: 172.55 | L184: 166.9 | M184: 17.85934
A185: 175 | B185: GRINDWELL | C185: 1793.05 | D185: 1785.82 | E185: 1766.33 | F185: 1739.62 | G185: 1720.13 | H185: 1812.53 | I185: 1832.02 | J185: 1858.73 | K185: 1805.3 | L185: 1759.1 | M185: 1.44931
A186: 176 | B186: GSFC | C186: 139.15 | D186: 137.30 | E186: 131.40 | F186: 123.65 | G186: 117.75 | H186: 145.05 | I186: 150.95 | J186: 158.70 | K186: 143.2 | L186: 129.55 | M186: 156.33512
A187: 177 | B187: GSPL | C187: 267.55 | D187: 267.23 | E187: 265.47 | F187: 263.38 | G187: 261.62 | H187: 269.32 | I187: 271.08 | J187: 273.17 | K187: 269 | L187: 265.15 | M187: 6.20728
A188: 178 | B188: GUJALKALI | C188: 710.1 | D188: 694.35 | E188: 674.00 | F188: 637.90 | G188: 617.55 | H188: 730.45 | I188: 750.80 | J188: 786.90 | K188: 714.7 | L188: 658.25 | M188: 5.83132
A189: 179 | B189: GUJGASLTD | C189: 510.7 | D189: 511.92 | E189: 504.03 | F189: 497.37 | G189: 489.48 | H189: 518.58 | I189: 526.47 | J189: 533.13 | K189: 519.8 | L189: 505.25 | M189: 19.22581
A190: 180 | B190: HAL | C190: 1385.1 | D190: 1386.05 | E190: 1366.10 | F190: 1347.10 | G190: 1327.15 | H190: 1405.05 | I190: 1425.00 | J190: 1444.00 | K190: 1406 | L190: 1367.05 | M190: 5.9012
A191: 181 | B191: HAPPSTMNDS | C191: 1017.4 | D191: 1017.90 | E191: 1005.85 | F191: 994.30 | G191: 982.25 | H191: 1029.45 | I191: 1041.50 | J191: 1053.05 | K191: 1029.95 | L191: 1006.35 | M191: 1.91749
A192: 182 | B192: HATHWAY | C192: 18.85 | D192: 18.85 | E192: 18.65 | F192: 18.45 | G192: 18.25 | H192: 19.05 | I192: 19.25 | J192: 19.45 | K192: 19.05 | L192: 18.65 | M192: 18.87278
A193: 183 | B193: HATSUN | C193: 1089.75 | D193: 1082.40 | E193: 1070.80 | F193: 1051.85 | G193: 1040.25 | H193: 1101.35 | I193: 1112.95 | J193: 1131.90 | K193: 1094 | L193: 1063.45 | M193: 0.23231
A194: 184 | B194: HAVELLS | C194: 1092.6 | D194: 1101.23 | E194: 1079.67 | F194: 1066.73 | G194: 1045.17 | H194: 1114.17 | I194: 1135.73 | J194: 1148.67 | K194: 1122.8 | L194: 1088.3 | M194: 13.9542
A195: 185 | B195: HCLTECH | C195: 1193.45 | D195: 1192.30 | E195: 1177.45 | F195: 1161.45 | G195: 1146.60 | H195: 1208.30 | I195: 1223.15 | J195: 1239.15 | K195: 1207.15 | L195: 1176.3 | M195: 27.70879
A196: 186 | B196: HDFC | C196: 2230 | D196: 2226.58 | E196: 2193.32 | F196: 2156.63 | G196: 2123.37 | H196: 2263.27 | I196: 2296.53 | J196: 2333.22 | K196: 2259.85 | L196: 2189.9 | M196: 25.32517
A197: 187 | B197: HDFCAMC | C197: 2167.8 | D197: 2162.27 | E197: 2145.53 | F197: 2123.27 | G197: 2106.53 | H197: 2184.53 | I197: 2201.27 | J197: 2223.53 | K197: 2179 | L197: 2140 | M197: 2.84426
A198: 188 | B198: HDFCBANK | C198: 1396.8 | D198: 1392.82 | E198: 1376.68 | F198: 1356.57 | G198: 1340.43 | H198: 1412.93 | I198: 1429.07 | J198: 1449.18 | K198: 1408.95 | L198: 1372.7 | M198: 75.7539
A199: 189 | B199: HDFCLIFE | C199: 518.8 | D199: 519.25 | E199: 514.30 | F199: 509.80 | G199: 504.85 | H199: 523.75 | I199: 528.70 | J199: 533.20 | K199: 524.2 | L199: 514.75 | M199: 29.24919
A200: 190 | B200: HEG | C200: 1378.2 | D200: 1381.95 | E200: 1341.50 | F200: 1304.80 | G200: 1264.35 | H200: 1418.65 | I200: 1459.10 | J200: 1495.80 | K200: 1422.4 | L200: 1345.25 | M200: 5.52869
A201: 191 | B201: HEIDELBERG | C201: 194.3 | D201: 196.05 | E201: 190.50 | F201: 186.70 | G201: 181.15 | H201: 199.85 | I201: 205.40 | J201: 209.20 | K201: 201.6 | L201: 192.25 | M201: 1.82748
A202: 192 | B202: HEMIPROP | C202: 116.2 | D202: 116.77 | E202: 113.68 | F202: 111.17 | G202: 108.08 | H202: 119.28 | I202: 122.37 | J202: 124.88 | K202: 119.85 | L202: 114.25 | M202: 9.98717
A203: 193 | B203: HEROMOTOCO | C203: 2331.2 | D203: 2321.10 | E203: 2297.20 | F203: 2263.20 | G203: 2239.30 | H203: 2355.10 | I203: 2379.00 | J203: 2413.00 | K203: 2345 | L203: 2287.1 | M203: 4.67988
A204: 194 | B204: HFCL | C204: 72.9 | D204: 73.12 | E204: 72.28 | F204: 71.67 | G204: 70.83 | H204: 73.73 | I204: 74.57 | J204: 75.18 | K204: 73.95 | L204: 72.5 | M204: 55.32757
A205: 195 | B205: HGS | C205: 1160.5 | D205: 1161.03 | E205: 1148.52 | F205: 1136.53 | G205: 1124.02 | H205: 1173.02 | I205: 1185.53 | J205: 1197.52 | K205: 1173.55 | L205: 1149.05 | M205: 0.48446
A206: 196 | B206: HIKAL | C206: 377.5 | D206: 379.07 | E206: 373.38 | F206: 369.27 | G206: 363.58 | H206: 383.18 | I206: 388.87 | J206: 392.98 | K206: 384.75 | L206: 374.95 | M206: 0.76807
... 320 more rows

Sheet Bulk Deals
E6: Back To Main Page
A7: Subject : | B7: BULK DEAL | D7: =Main!B10 -> 2022-03-14
A9: Date | B9: Scrip code | C9: Scrip Name | D9: Client Name | E9: Buy / Sell | F9: Quantity Traded | G9: Trade Price / Wt.Avg.trade price | H9: Exchange
A10: 2022-03-11 | B10: 542579 | C10: AGOL | D10: AFFLUENCE GEMS PRIVATELIMITED | E10: SELL | F10: 184,984 | G10: 72.17 | H10: BSE
A11: 2022-03-11 | B11: 537492 | C11: AGRIMONY | D11: SHRI RUSHABH ASHWIN CHOKSI | E11: BUY | F11: 120,000 | G11: 12.25 | H11: BSE
A12: 2022-03-11 | B12: 537492 | C12: AGRIMONY | D12: SHRI RUSHABH ASHWIN CHOKSI | E12: SELL | F12: 120,000 | G12: 12.32 | H12: BSE
A13: 2022-03-11 | B13: 531752 | C13: BIOGEN | D13: TOPGAIN FINANCE PRIVATE LIMITED | E13: BUY | F13: 177,474 | G13: 1.61 | H13: BSE
A14: 2022-03-11 | B14: 531752 | C14: BIOGEN | D14: TOPGAIN FINANCE PRIVATE LIMITED | E14: SELL | F14: 3,700,000 | G14: 1.53 | H14: BSE
A15: 2022-03-11 | B15: 539546 | C15: BNL | D15: PUJA BAJORIA | E15: BUY | F15: 50,000 | G15: 7.8 | H15: BSE
A16: 2022-03-11 | B16: 539546 | C16: BNL | D16: SUNITA AGARWAL | E16: SELL | F16: 42,123 | G16: 7.8 | H16: BSE
A17: 2022-03-11 | B17: 539546 | C17: BNL | D17: GITA DEVI SODHANI | E17: SELL | F17: 40,000 | G17: 7.36 | H17: BSE
A18: 2022-03-11 | B18: 526731 | C18: BRIGHTBR | D18: ARCH FINANCE LIMITED | E18: BUY | F18: 32,642 | G18: 162.14 | H18: BSE
A19: 2022-03-11 | B19: 526731 | C19: BRIGHTBR | D19: NISHU FINLEASE PVT. LTD. | E19: SELL | F19: 32,520 | G19: 162.15 | H19: BSE
A20: 2022-03-11 | B20: 540681 | C20: CHOTHANI | D20: SUJIT RAMDEV DAS | E20: SELL | F20: 30,000 | G20: 16.36 | H20: BSE
A21: 2022-03-11 | B21: 526737 | C21: CORPOCO | D21: B.W.TRADERS | E21: BUY | F21: 45,000 | G21: 22.85 | H21: BSE
A22: 2022-03-11 | B22: 512379 | C22: CRESSAN | D22: ORANGE MIST PRODUCTIONS PRIVATE LIMITED | E22: SELL | F22: 1,853,677 | G22: 10.63 | H22: BSE
A23: 2022-03-11 | B23: 524752 | C23: DECIPHER | D23: JANAKIRAM AJJARAPU | E23: SELL | F23: 80,803 | G23: 70.26 | H23: BSE
A24: 2022-03-11 | B24: 532839 | C24: DISHTV | D24: UNO METALS LIMITED | E24: SELL | F24: 11,680,000 | G24: 15.79 | H24: BSE
A25: 2022-03-11 | B25: 539405 | C25: DITCO | D25: KAUSHIK KANTILAL CHOTALIA | E25: BUY | F25: 17,850 | G25: 19.4 | H25: BSE
A26: 2022-03-11 | B26: 539405 | C26: DITCO | D26: ANSHUL JAIN | E26: SELL | F26: 25,000 | G26: 19.4 | H26: BSE
A27: 2022-03-11 | B27: 542724 | C27: EARUM | D27: KALPESH JAVERILAL OSWAL | E27: BUY | F27: 633,995 | G27: 6.1 | H27: BSE
A28: 2022-03-11 | B28: 542724 | C28: EARUM | D28: KALPESH JAVERILAL OSWAL | E28: SELL | F28: 633,995 | G28: 6.2 | H28: BSE
A29: 2022-03-11 | B29: 542724 | C29: EARUM | D29: BHUMISHTH NARENDRABHAI PATEL | E29: SELL | F29: 750,000 | G29: 6.1 | H29: BSE
A30: 2022-03-11 | B30: 542724 | C30: EARUM | D30: PAYAL BHUMISHTH PATEL | E30: SELL | F30: 750,000 | G30: 6.1 | H30: BSE
A31: 2022-03-11 | B31: 542724 | C31: EARUM | D31: AMITA DAGA | E31: BUY | F31: 500,000 | G31: 6.16 | H31: BSE
A32: 2022-03-11 | B32: 542724 | C32: EARUM | D32: ALPHA LEON ENTERPRISES LLP | E32: BUY | F32: 358,420 | G32: 6.1 | H32: BSE
A33: 2022-03-11 | B33: 542724 | C33: EARUM | D33: ALPHA LEON ENTERPRISES LLP | E33: SELL | F33: 82,934 | G33: 6.1 | H33: BSE
A34: 2022-03-11 | B34: 514167 | C34: GANECOS | D34: ESSEL INDUSTRIES PVT LTD | E34: SELL | F34: 200,000 | G34: 700.61 | H34: BSE
A35: 2022-03-11 | B35: 504397 | C35: GANHOLD | D35: INFINITY JEANS PRIVATE LIMITED | E35: SELL | F35: 11,000 | G35: 83.05 | H35: BSE
A36: 2022-03-11 | B36: 540614 | C36: GGENG | D36: ANUSTUP TRADING PRIVATE LIMITED | E36: BUY | F36: 143,628 | G36: 7.45 | H36: BSE
A37: 2022-03-11 | B37: 540614 | C37: GGENG | D37: ANUSTUP TRADING PRIVATE LIMITED | E37: SELL | F37: 427,007 | G37: 7.33 | H37: BSE
A38: 2022-03-11 | B38: 540936 | C38: GGL | D38: YACOOBALI AIYUB MOHAMMED | E38: BUY | F38: 51,392 | G38: 15.49 | H38: BSE
A39: 2022-03-11 | B39: 540936 | C39: GGL | D39: YACOOBALI AIYUB MOHAMMED | E39: SELL | F39: 69,832 | G39: 15.9 | H39: BSE
A40: 2022-03-11 | B40: 530317 | C40: GODAVARI | D40: MOHIT JAJU | E40: BUY | F40: 37,900 | G40: 59.4 | H40: BSE
A41: 2022-03-11 | B41: 539692 | C41: IFINSER | D41: UDAYAN KANUBHAI MANDAVIA | E41: SELL | F41: 202,644 | G41: 9.88 | H41: BSE
A42: 2022-03-11 | B42: 539692 | C42: IFINSER | D42: NNM SECURITIES PVT LTD | E42: BUY | F42: 100,000 | G42: 9.88 | H42: BSE
A43: 2022-03-11 | B43: 539692 | C43: IFINSER | D43: SUNCARE TRADERS LIMITED | E43: BUY | F43: 100,000 | G43: 9.88 | H43: BSE
A44: 2022-03-11 | B44: 540377 | C44: IFL | D44: SHARMA DIPAK SURESHBHAI | E44: BUY | F44: 12,000 | G44: 28 | H44: BSE
A45: 2022-03-11 | B45: 540377 | C45: IFL | D45: KIRTAN GOPALBHAI DHOLA | E45: BUY | F45: 18,000 | G45: 28.03 | H45: BSE
A46: 2022-03-11 | B46: 540377 | C46: IFL | D46: SHARMA DIPAK SURESHBHAI | E46: SELL | F46: 18,000 | G46: 28 | H46: BSE
A47: 2022-03-11 | B47: 540377 | C47: IFL | D47: VISHAL K SHETH | E47: BUY | F47: 30,000 | G47: 28 | H47: BSE
A48: 2022-03-11 | B48: 540377 | C48: IFL | D48: TARUNABEN LALJIBHAI TRIVEDI | E48: BUY | F48: 12,000 | G48: 28.05 | H48: BSE
A49: 2022-03-11 | B49: 540377 | C49: IFL | D49: LALJIBHAI TRIVEDI | E49: BUY | F49: 18,000 | G49: 28 | H49: BSE
A50: 2022-03-11 | B50: 540377 | C50: IFL | D50: TARUNABEN LALJIBHAI TRIVEDI | E50: SELL | F50: 30,000 | G50: 28 | H50: BSE
A51: 2022-03-11 | B51: 540377 | C51: IFL | D51: KUNALBHAI RAMESHBHAI DANTANI | E51: SELL | F51: 36,000 | G51: 28 | H51: BSE
A52: 2022-03-11 | B52: 540377 | C52: IFL | D52: PRIYANSHU JAIN | E52: SELL | F52: 24,000 | G52: 28.4 | H52: BSE
A53: 2022-03-11 | B53: 540134 | C53: IISL | D53: SUREKHA CHAUDHARY | E53: BUY | F53: 32,554 | G53: 3.74 | H53: BSE
A54: 2022-03-11 | B54: 541983 | C54: INNOVATIVE | D54: SUNILMARKFERNANDES | E54: SELL | F54: 66,000 | G54: 11.99 | H54: BSE
A55: 2022-03-11 | B55: 541983 | C55: INNOVATIVE | D55: AJAY MEENA | E55: BUY | F55: 125,000 | G55: 11.96 | H55: BSE
A56: 2022-03-11 | B56: 513693 | C56: KAJARIR | D56: MARYADA BARTER PRIVATE LIMITED | E56: SELL | F56: 222,143 | G56: 56.09 | H56: BSE
A57: 2022-03-11 | B57: 539767 | C57: MNIL | D57: NIKHIL SIPANI | E57: SELL | F57: 24,000 | G57: 13.4 | H57: BSE
A58: 2022-03-11 | B58: 539767 | C58: MNIL | D58: KABIR SHRAN DAGAR HUF | E58: BUY | F58: 23,024 | G58: 13.3 | H58: BSE
A59: 2022-03-11 | B59: 543262 | C59: MRP | D59: ABHIAMANYU JAIN | E59: SELL | F59: 18,000 | G59: 42.6 | H59: BSE
A60: 2022-03-11 | B60: 539598 | C60: ORACLECR | D60: MANDEEP SINGH | E60: SELL | F60: 52,563 | G60: 64.39 | H60: BSE
A61: 2022-03-11 | B61: 539598 | C61: ORACLECR | D61: NAYNA DILIP CHHEDA | E61: BUY | F61: 31,511 | G61: 63.97 | H61: BSE
A62: 2022-03-11 | B62: 538647 | C62: PURSHOTTAM | D62: CLARITY ROADLINK PVT LTD | E62: BUY | F62: 48,826 | G62: 19.58 | H62: BSE
A63: 2022-03-11 | B63: 538647 | C63: PURSHOTTAM | D63: JITENDERA BANTHIA | E63: SELL | F63: 50,100 | G63: 19.55 | H63: BSE
A64: 2022-03-11 | B64: 539673 | C64: RCL | D64: TANTRADI SUBRAHMANYA SHANBHOGUE | E64: SELL | F64: 14,600 | G64: 14.01 | H64: BSE
A65: 2022-03-11 | B65: 539673 | C65: RCL | D65: SAMUELKALLOORMATHEW | E65: BUY | F65: 9,888 | G65: 14.03 | H65: BSE
A66: 2022-03-11 | B66: 534708 | C66: RCRL | D66: RATANCHAND LODHA * | E66: SELL | F66: 63,000 | G66: 4.91 | H66: BSE
A67: 2022-03-11 | B67: 516110 | C67: SCANDENT | D67: SHREE BALAJI ENTERPRISES | E67: SELL | F67: 200,000 | G67: 21.5 | H67: BSE
A68: 2022-03-11 | B68: 542753 | C68: SEACOAST | D68: SHAH NISHITH | E68: SELL | F68: 1,947,127 | G68: 14.3 | H68: BSE
A69: 2022-03-11 | B69: 532217 | C69: SIELFNS | D69: ALPHA LEON ENTERPRISES LLP | E69: SELL | F69: 60,741 | G69: 13.9 | H69: BSE
A70: 2022-03-11 | B70: 539310 | C70: THINKINK | D70: VISHNU SHANTIBHAI PARMAR | E70: BUY | F70: 104,811 | G70: 54.55 | H70: BSE
A71: 2022-03-11 | B71: 539310 | C71: THINKINK | D71: VISHNU SHANTIBHAI PARMAR | E71: SELL | F71: 152,918 | G71: 55.39 | H71: BSE
A72: 2022-03-11 | B72: 531411 | C72: TUNITEX | D72: ALPHA LEON ENTERPRISES LLP | E72: SELL | F72: 1,700,000 | G72: 4.34 | H72: BSE
A73: 2022-03-11 | B73: 512229 | C73: VERITAS | D73: SURYAKANCHAN VINIMAY PRIVATE LTD | E73: BUY | F73: 469,900 | G73: 126 | H73: BSE
A74: 2022-03-11 | B74: 512229 | C74: VERITAS | D74: NITI NITINKUMAR DIDWANIA | E74: SELL | F74: 500,000 | G74: 126 | H74: BSE
A75: 2022-03-11 | B75: ASTRAMICRO | C75: Astra Microwave Products | D75: TIKRI INVESTMENTS | E75: BUY | F75: 500,000 | G75: 216.29 | H75: NSE
A76: 2022-03-11 | B76: BALRAMCHIN | C76: Balrampur Chini Mills | D76: GRAVITON RESEARCH CAPITAL LLP | E76: BUY | F76: 1,158,335 | G76: 474.12 | H76: NSE
A77: 2022-03-11 | B77: BANARBEADS | C77: Banaras Beads Ltd | D77: MI LIFESTYLE MARKETING GLOBAL PRIVATE LIMITED | E77: BUY | F77: 37,000 | G77: 106.47 | H77: NSE
A78: 2022-03-11 | B78: BSE | C78: BSE Limited | D78: XTX MARKETS LLP | E78: BUY | F78: 673,444 | G78: 2776.9 | H78: NSE
A79: 2022-03-11 | B79: BSE | C79: BSE Limited | D79: GRAVITON RESEARCH CAPITAL LLP | E79: BUY | F79: 526,230 | G79: 2781.43 | H79: NSE
A80: 2022-03-11 | B80: BSE | C80: BSE Limited | D80: NK SECURITIES RESEARCH PRIVATE LIMITED | E80: BUY | F80: 357,770 | G80: 2776.45 | H80: NSE
A81: 2022-03-11 | B81: GNFC | C81: Gujarat Narm Fert Co. | D81: GRAVITON RESEARCH CAPITAL LLP | E81: BUY | F81: 1,107,561 | G81: 684.53 | H81: NSE
A82: 2022-03-11 | B82: HINDCON | C82: Hindcon Chemicals Limited | D82: AMRITA JAIN | E82: BUY | F82: 60,309 | G82: 75 | H82: NSE
A83: 2022-03-11 | B83: ICEMAKE | C83: Ice Make Refrigerat Ltd | D83: XTX MARKETS LLP | E83: BUY | F83: 106,635 | G83: 109.29 | H83: NSE
A84: 2022-03-11 | B84: ICEMAKE | C84: Ice Make Refrigerat Ltd | D84: GRAVITON RESEARCH CAPITAL LLP | E84: BUY | F84: 91,167 | G84: 109.31 | H84: NSE
A85: 2022-03-11 | B85: JKPAPER | C85: JK Paper Limited | D85: QE SECURITIES | E85: BUY | F85: 835,470 | G85: 263.54 | H85: NSE
A86: 2022-03-11 | B86: REPL | C86: Rudrabhishek Enterp Ltd | D86: NEW MODERN BUILDWELL PRIVATE LIMITED | E86: BUY | F86: 100,000 | G86: 211.25 | H86: NSE
A87: 2022-03-11 | B87: SHIGAN | C87: Shigan Quantum Tech Ltd | D87: CNETLINGO MARKETING PRIVATE LIMITED | E87: BUY | F87: 99,000 | G87: 63.19 | H87: NSE
A88: 2022-03-11 | B88: VAISHALI | C88: Vaishali Pharma Limited | D88: PAYAL YAYESH JHAVERI | E88: BUY | F88: 57,000 | G88: 56 | H88: NSE
A89: 2022-03-11 | B89: VAISHALI | C89: Vaishali Pharma Limited | D89: ASHISH SHARADKUMAR NEMANI | E89: BUY | F89: 500,000 | G89: 55.03 | H89: NSE
A90: 2022-03-11 | B90: VAISHALI | C90: Vaishali Pharma Limited | D90: GEETABEN VINOD JHAVERI | E90: BUY | F90: 57,000 | G90: 56 | H90: NSE
A91: 2022-03-11 | B91: VAISHALI | C91: Vaishali Pharma Limited | D91: NEHA PARAG JHAVERI | E91: BUY | F91: 57,000 | G91: 56 | H91: NSE
A92: 2022-03-11 | B92: VAISHALI | C92: Vaishali Pharma Limited | D92: DEVDIP BUILDERS PRIVATE LIMITED | E92: BUY | F92: 390,000 | G92: 55 | H92: NSE
A93: 2022-03-11 | B93: VAISHALI | C93: Vaishali Pharma Limited | D93: VEENA RAJESH SHAH | E93: BUY | F93: 55,000 | G93: 56.83 | H93: NSE
A94: 2022-03-11 | B94: VISESHINFO | C94: Visesh Infotecnics Limite | D94: TOPGAIN FINANCE PRIVATE LIMITED | E94: BUY | F94: 387,531 | G94: 1.07 | H94: NSE
A95: 2022-03-11 | B95: VIVO | C95: Vivo Collab Solutions Ltd | D95: O J FINANCIAL SERVICES LTD | E95: BUY | F95: 1,600 | G95: 148.7 | H95: NSE
A96: 2022-03-11 | B96: ASTRAMICRO | C96: Astra Microwave Products | D96: ADHUNIK RESIDENCY PRIVATE LIMITED | E96: SELL | F96: 500,000 | G96: 216.26 | H96: NSE
A97: 2022-03-11 | B97: BALRAMCHIN | C97: Balrampur Chini Mills | D97: GRAVITON RESEARCH CAPITAL LLP | E97: SELL | F97: 1,051,877 | G97: 474.93 | H97: NSE
A98: 2022-03-11 | B98: BSE | C98: BSE Limited | D98: NK SECURITIES RESEARCH PRIVATE LIMITED | E98: SELL | F98: 357,770 | G98: 2777.5 | H98: NSE
A99: 2022-03-11 | B99: BSE | C99: BSE Limited | D99: GRAVITON RESEARCH CAPITAL LLP | E99: SELL | F99: 526,230 | G99: 2782.85 | H99: NSE
A100: 2022-03-11 | B100: BSE | C100: BSE Limited | D100: XTX MARKETS LLP | E100: SELL | F100: 673,439 | G100: 2780.34 | H100: NSE
A101: 2022-03-11 | B101: GNFC | C101: Gujarat Narm Fert Co. | D101: GRAVITON RESEARCH CAPITAL LLP | E101: SELL | F101: 1,107,796 | G101: 684.96 | H101: NSE
A102: 2022-03-11 | B102: HINDCON | C102: Hindcon Chemicals Limited | D102: AMRITA JAIN | E102: SELL | F102: 54,609 | G102: 74.99 | H102: NSE
A103: 2022-03-11 | B103: HINDNATGLS | C103: Hind Natl Glass & Ind Ltd | D103: EARC TRUST SC 404 | E103: SELL | F103: 817,594 | G103: 11.93 | H103: NSE
A104: 2022-03-11 | B104: ICEMAKE | C104: Ice Make Refrigerat Ltd | D104: GRAVITON RESEARCH CAPITAL LLP | E104: SELL | F104: 91,167 | G104: 109.66 | H104: NSE
A105: 2022-03-11 | B105: ICEMAKE | C105: Ice Make Refrigerat Ltd | D105: XTX MARKETS LLP | E105: SELL | F105: 106,063 | G105: 109.76 | H105: NSE
A106: 2022-03-11 | B106: JKPAPER | C106: JK Paper Limited | D106: QE SECURITIES | E106: SELL | F106: 853,444 | G106: 263.81 | H106: NSE
A107: 2022-03-11 | B107: SILLYMONKS | C107: Silly Monks Entertain Ltd | D107: EKTHA COM PRIVATE LIMITED | E107: SELL | F107: 80,000 | G107: 25.7 | H107: NSE
A108: 2022-03-11 | B108: VAISHALI | C108: Vaishali Pharma Limited | D108: VASANI ATUL ARVINDBHAI | E108: SELL | F108: 1,500,000 | G108: 55.18 | H108: NSE
A109: 2022-03-11 | B109: VISESHINFO | C109: Visesh Infotecnics Limite | D109: TOPGAIN FINANCE PRIVATE LIMITED | E109: SELL | F109: 38,500,000 | G109: 1.14 | H109: NSE
A110: 2022-03-11 | B110: VIVO | C110: Vivo Collab Solutions Ltd | D110: O J FINANCIAL SERVICES LTD | E110: SELL | F110: 11,200 | G110: 148.9 | H110: NSE

Sheet Call Tracker (Equity & F&O)
M5: Back To Main Page
A6: Retail Research Technical Calls & Fundamental Performance Report for the month of Mar-2022
M7: =Main!B10 -> 2022-03-14
B8: Positional Call
A9: Sr.no | B9: Date | D9: Company | E9: Rec | F9: Rec Price | G9: Stop Loss*** | H9: Call Closed At | I9: Target | J9: Remark | K9: Profit / Loss per Share | L9: All charges | M9: Net Gain / Loss % | N9: Status | O9: Closed Date | P9: Market Closing Price
A10: 1 | B10: 2022-01-21 | D10: HCLTECH | E10: Buy | F10: 1160 | G10: 1090 | H10: 1,205.00 | I10: 1250-1300 | J10: Part profit of Rs.45/- | K10: =H10-F10 -> 45 | L10: =(F10*-0.7)/100 -> -8.12 | M10: =(K10+L10)/F10 -> 3.18% | N10: Successful | O10: 2022-03-11 | R10: H
A11: 2 | B11: 2022-01-25 | D11: TRENT | E11: Buy | F11: 1069 | G11: 995 | H11: 1,132.50 | I11: 1150-1200 | J11: Profit of Rs.63.5/- | K11: =H11-F11 -> 63.5 | L11: =(F11*-0.7)/100 -> -7.48 | M11: =(K11+L11)/F11 -> 5.24% | N11: Successful | O11: 2022-03-03 | R11: H
A12: 3 | B12: 2022-02-11 | D12: CARBORUNIV | E12: Buy | F12: 847.5 | G12: 798 | H12: 798.00 | I12: 920-960 | J12: Loss of Rs.49.5/- | K12: =H12-F12 -> -49.5 | L12: =(F12*-0.7)/100 -> -5.93 | M12: =(K12+L12)/F12 -> -6.54% | N12: Unsuccessful | O12: 2022-03-03 | R12: H
A13: 4 | B13: 2022-02-28 | D13: REDINGTON | E13: Buy | F13: 148 | G13: 138 | H13: 156.00 | I13: 160-170 | J13: Profit of Rs.8/- | K13: =H13-F13 -> 8 | L13: =(F13*-0.4)/100 -> -0.59 | M13: =(K13+L13)/F13 -> 5.01% | N13: Successful | O13: 2022-03-03 | R13: H
A14: 5 | B14: 2022-02-28 | D14: HDFC | E14: Buy | F14: 2360 | G14: 2230 | H14: 2,230.00 | I14: 2500-2600 | J14: Loss of Rs.130/- | K14: -130 | L14: =(F14*-0.7)/100 -> -16.52 | M14: -6.21% | N14: Unsuccessful | O14: 2022-03-04 | R14: H
A15: 6 | B15: 2022-02-28 | D15: ICICIBANK | E15: Buy | F15: 715 | G15: 675 | H15: =(675+738.5)/2 -> 706.75 | I15: 750-780 | J15: Loss of Rs.8.25/- | K15: =H15-F15 -> -8.25 | L15: =(F15*-0.4)/100 -> -2.86 | M15: =(K15+L15)/F15 -> -1.55% | N15: Unsuccessful | O15: 2022-03-08 | R15: H
A16: 7 | B16: 2022-02-28 | D16: AARTIIND | E16: Buy | F16: 925 | G16: 860 | H16: 860.00 | I16: 1000-1050 | J16: Loss of Rs.65/- | K16: -65 | L16: =(F16*-0.7)/100 -> -6.48 | M16: -7.73% | N16: Unsuccessful | O16: 2022-03-04 | R16: H
A17: 8 | B17: 2022-03-02 | D17: BHARTIARTL | E17: Buy | F17: 669 | G17: 618 | H17: 696.00 | I17: 740-780 | J17: Part profit of Rs.27/- | K17: 27 | L17: =(F17*-0.7)/100 -> -4.68 | M17: 3.34% | N17: Successful | O17: 2022-03-09 | P17: =VLOOKUP(D17,'MidCap Intra'!B13:C568,2,0) -> 694.85 | R17: H
A18: 9 | B18: 2022-03-03 | D18: ACC | E18: Buy | F18: 1990-2005 | G18: 1870 | I18: 2150-2250 | J18: Open | P18: =VLOOKUP(D18,'MidCap Intra'!B14:C569,2,0) -> 2041.9 | R18: H
A19: 10 | B19: 2022-03-07 | D19: TRENT | E19: Buy | F19: 1070 | G19: 990 | H19: 1,132.50 | I19: 1140-1200 | J19: Profit of Rs.62.5/- | K19: =H19-F19 -> 62.5 | L19: =(F19*-0.7)/100 -> -7.49 | M19: =(K19+L19)/F19 -> 5.14% | N19: Successful | O19: 2022-03-09 | R19: H
A20: 11 | B20: 2022-03-07 | D20: REDINGTON | E20: Buy | F20: 146.5 | G20: 135 | H20: 153.50 | I20: 160-170 | J20: Part profit of Rs.7/- | K20: 7 | L20: =(F20*-0.7)/100 -> -1.03 | M20: 4.08% | N20: Successful | O20: 2022-03-10 | P20: =VLOOKUP(D20,'MidCap Intra'!B16:C571,2,0) -> 149 | R20: H
A21: 12 | B21: 2022-03-07 | D21: RELIANCE | E21: Buy | F21: 2280 | G21: 2170 | H21: 2,410.00 | I21: 2450-2550 | J21: Profit of Rs.130/- | K21: 130 | L21: -15.96 | M21: 5.00% | N21: Successful | O21: 2022-03-11 | R21: H
A22: 13 | B22: 2022-03-09 | D22: IRCTC | E22: Buy | F22: 733 | G22: 690 | H22: 763.00 | I22: 790-820 | J22: Part profit of Rs.30/- | K22: 30 | L22: -5.13 | M22: 3.39% | N22: Successful | O22: 2022-03-10 | P22: =VLOOKUP(D22,'MidCap Intra'!B18:C573,2,0) -> 757.75 | R22: H
A27: CLBS = Closing Basis ***
A28: Dividend adjusted <> | F28: Reinitiated $
A29: Part book {} | D29: s | F29: Revised stoploss #
B31: Momentum Call
A32: Sr.no | B32: Date | D32: Company | E32: Rec | F32: Rec Price | G32: Stop Loss | H32: Call Closed At | I32: Target | J32: Remark | K32: Profit / Loss per Share/Lot | L32: All charges | M32: Net Gain / Loss % | N32: Status | O32: Closed Date
A33: 1 | B33: 2022-02-28 | D33: BALKRISIND | E33: Buy | F33: 1812.5 | G33: 1750 | H33: 1862 | I33: 1880-1920 | J33: Profit of Rs.49.5/- | K33: =H33-F33 -> 49.5 | L33: =(F33*-0.7)/100 -> -12.69 | M33: =(K33+L33)/F33 -> 2.03% | N33: Successful | O33: 2022-03-08 | R33: H
A34: 2 | B34: 2022-03-02 | D34: JSWSTEEL | E34: Buy | F34: 642 | G34: 618 | H34: 661 | I34: 680-690 | J34: Profit of Rs.19/- | K34: =H34-F34 -> 19 | L34: =(F34*-0.7)/100 -> -4.49 | M34: =(K34+L34)/F34 -> 2.26% | N34: Successful | O34: 2022-02-28 | R34: N
A35: 3 | B35: 2022-03-03 | D35: CROMPTON | E35: Buy | F35: 411 | G35: 398 | H35: 398 | I35: 430-440 | J35: Loss of Rs.13/- | K35: -13 | L35: =(F35*-0.07)/100 -> -0.29 | M35: -3.23% | N35: Unsuccessful | O35: 2022-03-04 | R35: N
A36: 4 | B36: 2022-03-03 | D36: BRITANNIA | E36: Buy | F36: 3405 | G36: 3290 | H36: 3290 | I36: 3550-3600 | J36: Loss of Rs.115/- | K36: -115 | L36: =(F36*-0.07)/100 -> -2.38 | M36: -3.45% | N36: Unsuccessful | O36: 2022-03-07 | R36: H
A37: 5 | B37: 2022-03-03 | D37: LT | E37: Buy | F37: 1775 | G37: 1730 | H37: 1730 | I37: 1850-1900 | J37: Loss of Rs.45/- | K37: =H37-F37 -> -45 | L37: =(F37*-0.07)/100 -> -1.24 | M37: =(K37+L37)/F37 -> -2.61% | N37: Unsuccessful | O37: 2022-03-04 | R37: H
A38: 6 | B38: 2022-03-04 | D38: MAXHEALTH | E38: Buy | F38: 364 | G38: 354 | H38: 354 | I38: 380-385 | J38: Loss of Rs.10/- | K38: =H38-F38 -> -10 | L38: =(F38*-0.07)/100 -> -0.25 | M38: =(K38+L38)/F38 -> -2.82% | N38: Unsuccessful | O38: 2022-03-04 | R38: H
A39: 7 | B39: 2022-03-04 | D39: AMBUJACEM | E39: Buy | F39: 288.5 | G39: 278 | H39: 295.5 | I39: 300-310 | J39: Profit of Rs.7/- | K39: =H39-F39 -> 7 | L39: =(F39*-0.07)/100 -> -0.20 | M39: =(K39+L39)/F39 -> 2.36% | N39: Successful | O39: 2022-03-04 | R39: H
A40: 8 | B40: 2022-03-04 | D40: INDIGO | E40: Buy | F40: 1730 | G40: 1675 | H40: 1675 | I40: 1800-1820 | J40: Loss of Rs.55/- | K40: -55 | L40: =(F40*-0.07)/100 -> -1.21 | M40: -3.25% | N40: Unsuccessful | O40: 2022-03-07 | R40: H
A41: 9 | B41: 2022-03-04 | D41: BAJFINANCE | E41: Buy | F41: 6650 | G41: 6490 | H41: 6490 | I41: 6900-7000 | J41: Loss of Rs.160/- | K41: -160 | L41: -4.66 | M41: -2.48% | N41: Unsuccessful | O41: 2022-03-07 | R41: H
A42: 10 | B42: 2022-03-07 | D42: ROUTE | E42: Buy | F42: 1520 | G42: 1460 | H42: 1537.5 | I42: 1570-1600 | J42: Profit of Rs.17.5/- | K42: =H42-F42 -> 17.5 | L42: =(F42*-0.07)/100 -> -1.06 | M42: =(K42+L42)/F42 -> 1.08% | N42: Successful | O42: 2022-03-07 | R42: H
A43: 11 | B43: 2022-03-08 | D43: MAXHEALTH | E43: Buy | F43: 347.5 | G43: 337 | H43: 362 | I43: 365-370 | J43: Profit of Rs.14.5/- | K43: =H43-F43 -> 14.5 | L43: =(F43*-0.7)/100 -> -2.43 | M43: =(K43+L43)/F43 -> 3.47% | N43: Successful | O43: 2022-03-10 | R43: N
A44: 12 | B44: 2022-03-08 | D44: ICICIBANK | E44: Buy | F44: 658.5 | G44: 640 | H44: 692.5 | I44: 690-700 | J44: Profit of Rs.14.5/- | K44: =H44-F44 -> 34 | L44: =(F44*-0.7)/100 -> -4.61 | M44: =(K44+L44)/F44 -> 4.46% | N44: Successful | O44: 2022-03-10 | R44: H
A45: 13 | B45: 2022-03-08 | D45: SBILIFE | E45: Buy | F45: 1028 | G45: 997 | H45: 1056 | I45: 1070-1090 | J45: Profit of Rs.14.5/- | K45: 28 | L45: -7.20 | M45: 2.02% | N45: Successful | O45: 2022-03-10 | R45: H
A46: 14 | B46: 2022-03-09 | D46: TATACOMM | E46: Buy | F46: 1132.5 | G46: 1097 | H46: 1154 | I46: 1180-1200 | J46: Profit of Rs.21.5/- | K46: =H46-F46 -> 21.5 | L46: =(F46*-0.07)/100 -> -0.79 | M46: =(K46+L46)/F46 -> 1.83% | N46: Successful | O46: 2022-03-09 | R46: H
A47: 15 | B47: 2022-03-09 | D47: PIDILITIND | E47: Buy | F47: 2175 | G47: 2120 | H47: 2240 | I47: 2280-2300 | J47: Profit of Rs.65/- | K47: =H47-F47 -> 65 | L47: =(F47*-0.07)/100 -> -1.52 | M47: =(K47+L47)/F47 -> 2.92% | N47: Successful | O47: 2022-03-09 | R47: H
A48: 16 | B48: 2022-03-09 | D48: AMBUJACEM | E48: Buy | F48: 282.5 | G48: 273 | H48: 288.5 | I48: 295-300 | J48: Profit of Rs.6/- | K48: =H48-F48 -> 6 | L48: =(F48*-0.07)/100 -> -0.20 | M48: =(K48+L48)/F48 -> 2.05% | N48: Successful | O48: 2022-03-09 | R48: H
A49: 17 | B49: 2022-03-09 | D49: SBIN | E49: Buy | F49: 441.5 | G49: 428 | H49: 449 | I49: 460-465 | J49: Profit of Rs.7.5/- | K49: 7.5 | L49: -0.31 | M49: 1.63% | N49: Successful | O49: 2022-03-09 | R49: H
A50: 18 | B50: 2022-03-10 | D50: SUPREMEIND | E50: Buy | F50: 1990-2000 | G50: 1935 | I50: 2080-2120 | J50: Open | R50: H
A51: 19 | B51: 2022-03-10 | D51: EXIDEIND | E51: Buy | F51: 152.5-153.5 | G51: 148 | I51: 158-160 | J51: Open | R51: H
A52: 20 | B52: 2022-03-11 | D52: HINDALCO | E52: Sell | F52: 603 | G52: 622 | H52: 590.5 | I52: 580-570 | J52: Profit of Rs.12.5/- | K52: =F52-H52 -> 12.5 | L52: =(F52*-0.07)/100 -> -0.42 | M52: =(K52+L52)/F52 -> 2.00% | N52: Successful | O52: 2022-03-11
A53: 21 | B53: 2022-03-11 | D53: BEL | E53: Buy | F53: 214.5 | G53: 207 | H53: 215 | I53: 222-225 | J53: Profit of Rs.0.5/- | K53: =H53-F53 -> 0.5 | L53: -0.15 | M53: 0.16% | N53: Neutral | O53: 2022-03-11
A54: 22 | B54: 2022-03-11 | D54: MAXHEALTH | E54: Buy | F54: 349-351 | G54: 338 | I54: 365-370 | J54: Open
A57: CLBS = Closing Basis *** | H57: *
A58: Dividend adjusted <> | F58: Reinitiated $
F59: Revised stoploss #
A61: Master Trade High Risk
A62: Sr.no | B62: Date | D62: Company | E62: Rec | F62: Rec Price | G62: Stop Loss | H62: Call Closed At | I62: Target | J62: Remark | K62: Profit / Loss per share | L62: All charges | M62: Gain / Loss per Lot | N62: Lot | O62: Status | P62: Closed Date
A63: 1 | B63: 2022-02-28 | D63: HDFCBANK MAR FUT | E63: Buy | F63: 1436 | G63: 1414 | H63: 1414 | I63: 1470-1480 | J63: Loss of Rs.22/- | K63: =H63-F63 -> -22 | L63: =(H63*N63)*0.07% -> 544.39 | M63: =(K63*N63)-L63 -> -12644.4 | N63: 550 | O63: Unsuccessful | P63: 2022-03-02 | R63: H
A64: 2 | B64: 2022-02-28 | D64: SIEMENS MAR FUT | E64: Buy | F64: 2342.5 | G64: 2300 | H64: 2368 | I64: 2400-2450 | J64: Profit of Rs.25.5/- | K64: 25.5 | L64: 455.84 | M64: 6556.7 | N64: 275 | O64: Successful | P64: 2021-03-02 | R64: N
A65: 3 | B65: 2022-03-02 | D65: BHARATFORG MAR FUT | E65: Buy | F65: 661 | G65: 642 | H65: 644 | I65: 680-695 | J65: Loss of Rs.17/- | K65: =H65-F65 -> -17 | L65: =(H65*N65)*0.07% -> 338.10 | M65: =(K65*N65)-L65 -> -13088.1 | N65: 750 | O65: Unsuccessful | P65: 2022-03-03 | R65: N
A66: 4 | B66: 2022-03-02 | D66: INFY MAR FUT | E66: Buy | F66: 1702.5 | G66: 1662 | H66: 1730 | I66: 1750-1780 | J66: Profit of Rs.27.5/- | K66: =H66-F66 -> 27.5 | L66: =(H66*N66)*0.07% -> 363.30 | M66: =(K66*N66)-L66 -> 7886.7 | N66: 300 | O66: Successful | P66: 2021-03-03 | R66: H
A67: 5 | B67: 2022-03-02 | D67: SRF MAR FUT | E67: Buy | F67: 2342.5 | G67: 2305 | H67: 2387.5 | I67: 2380-2420 | J67: Profit of Rs.45/- | K67: 45 | L67: 626.72 | M67: 16248.3 | N67: 375 | O67: Successful | P67: 2021-03-03 | R67: N
A68: 6 | B68: 2022-03-02 | D68: GSPL MAR FUT | E68: Buy | F68: 280.5 | G68: 274 | H68: 285.5 | I68: 290-295 | J68: Profit of Rs.5/- | K68: 5 | L68: 339.75 | M68: 8160.3 | N68: 1700 | O68: Successful | P68: 2021-03-03 | R68: N
A69: 7 | B69: 2022-03-03 | D69: SRF MAR FUT | E69: Buy | F69: 2337.5 | G69: 2300 | H69: 2300 | I69: 2380-2420 | J69: Loss of Rs.37.5/- | K69: -37.5 | L69: 603.75 | M69: -14666.3 | N69: 375 | O69: Unsuccessful | P69: 2022-03-04 | R69: N
A70: 8 | B70: 2022-03-03 | D70: GSPL MAR FUT | E70: Buy | F70: 276.5 | G70: 269 | H70: 281.5 | I70: 285-295 | J70: Profit of Rs.5/- | K70: =H70-F70 -> 5 | L70: =(H70*N70)*0.07% -> 334.99 | M70: =(K70*N70)-L70 -> 8165.0 | N70: 1700 | O70: Successful | P70: 2021-03-04 | R70: N
A71: 9 | B71: 2021-03-04 | D71: SBIN MAR FUT | E71: Buy | F71: 459.5 | G71: 451 | H71: 465.5 | I71: 470-480 | J71: Profit of Rs.6/- | K71: =H71-F71 -> 6 | L71: =(H71*N71)*0.07% -> 488.78 | M71: =(K71*N71)-L71 -> 8511.2 | N71: 1500 | O71: Successful | P71: 2021-03-04 | R71: H
A72: 10 | B72: 2021-03-04 | D72: MPHASIS MAR FUT | E72: Buy | F72: 3105 | G72: 3030 | H72: 3165 | I72: 3200-3250 | J72: Profit of Rs.60/- | K72: =H72-F72 -> 60 | L72: =(H72*N72)*0.07% -> 387.71 | M72: =(K72*N72)-L72 -> 10112.3 | N72: 175 | O72: Successful | P72: 2021-03-04 | R72: N
A73: 11 | B73: 2021-03-04 | D73: INFY MAR FUT | E73: Buy | F73: 1698 | G73: 1658 | H73: 1731 | I73: 1750-1780 | J73: Profit of Rs.33/- | K73: 33 | L73: 363.51 | M73: 9536.5 | N73: 300 | O73: Successful | P73: 2021-03-04 | R73: H
A74: 12 | B74: 2021-03-04 | D74: TECHM MAR FUT | E74: Buy | F74: 1422.5 | G74: 1400 | H74: 1437 | I74: 1450-1470 | J74: Profit of Rs.14.5/- | K74: 14.5 | L74: 653.84 | M74: 8771.2 | N74: 650 | O74: Successful | P74: 2021-03-04 | R74: N
A75: 13 | B75: 2021-03-04 | D75: SIEMENS MAR FUT | E75: Buy | F75: 2322 | G75: 2275 | H75: 2275 | I75: 2370-2430 | J75: Loss of Rs.47/- | K75: -47 | L75: 437.94 | M75: -13362.9 | N75: 275 | O75: Unsuccessful | P75: 2022-03-07 | R75: N
A76: 14 | B76: 2022-03-07 | D76: HCLTECH MAR FUT | E76: Buy | F76: 1137 | G76: 1120 | H76: 1151 | I76: 1160-1175 | J76: Profit of Rs.14/- | K76: =H76-F76 -> 14 | L76: =(H76*N76)*0.07% -> 563.99 | M76: =(K76*N76)-L76 -> 9236.0 | N76: 700 | O76: Successful | P76: 2021-03-07 | R76: N
A77: 15 | B77: 2022-03-07 | D77: APOLLOTYRE MAR FUT | E77: Buy | F77: 173 | G77: 167.5 | H77: 167.5 | I77: 180-185 | J77: Loss of Rs.5.5/- | K77: -5.5 | L77: 293.13 | M77: -14043.1 | N77: 2500 | O77: Unsuccessful | P77: 2022-03-07 | R77: H
A78: 16 | B78: 2022-03-07 | D78: GSPL MAR FUT | E78: Buy | F78: 270.5 | G78: 263 | H78: 275.5 | I78: 280-285 | J78: Profit of Rs.5/- | K78: 5 | L78: 327.85 | M78: 8172.2 | N78: 1700 | O78: Successful | P78: 2021-03-07 | R78: N
A79: 17 | B79: 2022-03-08 | D79: COLPAL MAR FUT | E79: Buy | F79: 1399 | G79: 1362 | H79: 1424 | I79: 1440-1470 | J79: Profit of Rs.25/- | K79: 25 | L79: 1495.20 | M79: 36004.8 | N79: 1500 | O79: Successful | P79: 2021-03-09 | R79: N
A80: 18 | B80: 2022-03-08 | D80: HDFC MAR FUT | E80: Buy | F80: 2110 | G80: 2065 | H80: 2065 | I80: 2160-2200 | J80: Loss of Rs.45/- | K80: =H80-F80 -> -45 | L80: =(H80*N80)*0.07% -> 433.65 | M80: =(K80*N80)-L80 -> -13933.7 | N80: 300 | O80: Unsuccessful | P80: 2022-03-08 | R80: H
A81: 19 | B81: 2022-03-08 | D81: AMBUJACEM MAR FUT | E81: Buy | F81: 273.5 | G81: 265 | H81: 279.5 | I81: 285-290 | J81: Profit of Rs.6/- | K81: 6 | L81: 293.48 | M81: 8706.5 | N81: 1500 | O81: Successful | P81: 2021-03-09 | R81: H
A82: 20 | B82: 2022-03-08 | D82: GSPL MAR FUT | E82: Buy | F82: 263 | G82: 255 | H82: 268.5 | I82: 275-285 | J82: Profit of Rs.5.5/- | K82: =H82-F82 -> 5.5 | L82: =(H82*N82)*0.07% -> 319.52 | M82: =(K82*N82)-L82 -> 9030.5 | N82: 1700 | O82: Successful | P82: 2021-03-08 | R82: N
A83: 21 | B83: 2022-03-08 | D83: M&M MAR FUT | E83: Buy | F83: 695 | G83: 675 | H83: 709 | I83: 720-730 | J83: Profit of Rs.14/- | K83: 14 | L83: 372.23 | M83: 10127.8 | N83: 750 | O83: Successful | P83: 2021-03-09 | R83: H
A84: 22 | B84: 2022-03-08 | D84: MPHASIS MAR FUT | E84: Buy | F84: 3195 | G84: 3120 | H84: 3250 | I84: 3270-3350 | J84: Profit of Rs.55/- | K84: 55 | L84: 398.13 | M84: 9226.9 | N84: 175 | O84: Successful | P84: 2021-03-09 | R84: N
A85: 23 | B85: 2022-03-08 | D85: TRENT MAR FUT | E85: Buy | F85: 1068 | G85: 1050 | H85: 1092 | I85: 1090-1110 | J85: Profit of Rs.24/- | K85: =H85-F85 -> 24 | L85: =(H85*N85)*0.07% -> 554.19 | M85: =(K85*N85)-L85 -> 16845.8 | N85: 725 | O85: Successful | P85: 2021-03-09 | R85: N
A86: 24 | B86: 2022-03-09 | D86: GSPL MAR FUT | E86: Buy | F86: 264.5 | G86: 257 | H86: 270 | I86: 275-280 | J86: Profit of Rs.5.5/- | K86: =H86-F86 -> 5.5 | L86: =(H86*N86)*0.07% -> 321.30 | M86: =(K86*N86)-L86 -> 9028.7 | N86: 1700 | O86: Successful | P86: 2021-03-09 | R86: N
A87: 25 | B87: 2022-03-09 | D87: COFORGE MAR FUT | E87: Buy | F87: 4700 | G87: 4570 | H87: 4615 | I87: 4850-4950 | J87: Loss of Rs.85/- | K87: -85 | L87: 323.05 | M87: -8823.1 | N87: 100 | O87: Unsuccessful | P87: 2021-03-09 | R87: N
A88: 26 | B88: 2022-03-10 | D88: HCLTECH MAR FUT | E88: Buy | F88: 1186.5 | G88: 1168 | H88: 1200.5 | I88: 1220 | J88: Profit of Rs.14/- | K88: 14 | L88: 588.25 | M88: 9211.8 | N88: 700 | O88: Successful | P88: 2021-03-11 | R88: N
A89: 27 | B89: 2022-03-10 | D89: HINDCOPPER MAR FUT | E89: Buy | F89: 123.75 | G89: 120 | H89: 126.5 | I89: 130-132 | J89: Profit of Rs.2.75/- | K89: =H89-F89 -> 2.75 | L89: =(H89*N89)*0.07% -> 380.77 | M89: =(K89*N89)-L89 -> 11444.2 | N89: 4300 | O89: Successful | P89: 2021-03-11 | R89: N
A90: 28 | B90: 2022-03-10 | D90: AMBUJACEM MAR FUT | E90: Buy | F90: 287-288 | G90: 278.5 | I90: 300-310 | J90: Open | R90: H
A91: 29 | B91: 2022-03-10 | D91: VEDL MAR FUT | E91: Buy | F91: 376.5 | G91: 372.5 | H91: 380.5 | I91: 382-387 | J91: Profit of Rs.4/- | K91: =H91-F91 -> 4 | L91: =(H91*N91)*0.07% -> 825.69 | M91: =(K91*N91)-L91 -> 11574.3 | N91: 3100 | O91: Successful | P91: 2022-03-10 | R91: H
A92: 30 | B92: 2022-03-10 | D92: PIDILITIND MAR FUT | E92: Buy | F92: 2350-2360 | G92: 2300 | I92: 2450 | J92: Open | R92: H
A93: 31 | B93: 2022-03-11 | D93: SRF MAR FUT | E93: Buy | F93: 2260-2265 | G93: 2228 | I93: 2300-2340 | J93: Open
A94: 32 | B94: 2022-03-11 | D94: GSPL MAR FUT | E94: Buy | F94: 266-267 | G94: 259 | I94: 275-280 | J94: Open
A95: 33 | B95: 2022-03-11 | D95: COROMANDEL MAR FUT | E95: Buy | F95: 784-786 | G95: 770 | I95: 810-820 | J95: Open
A103: Master Trade Medium Risk
A104: Sr.no | B104: Date | D104: Company | E104: Rec | F104: Rec Price | G104: Stop Loss | H104: Call Closed At | I104: Target | J104: Remark | K104: Profit/ Loss per lot | L104: All charges | M104: Gain / Loss per Lot | N104: Lot | O104: Status | P104: Closed Date
A105: 1 | B105: 2022-03-02 | D105: RELIANCE 2420 CE MAR | E105: Buy | F105: 49.5 | G105: 30 | H105: 61 | I105: 70-90 | J105: Profit of Rs.11.5/- | K105: =H105-F105 -> 11.5 | L105: 100.00 | M105: =(K105*N105)-L105 -> 2775.0 | N105: 250 | O105: Successful | P105: 2021-03-02 | R105: H
A106: 2 | B106: 2022-03-02 | D106: NIFTY 16750 CE 03-MAR | E106: Buy | F106: 82.5 | G106: 35 | H106: 88.5 | I106: 150-200 | J106: Profit of Rs.6/- | K106: 6 | L106: 100.00 | M106: 200.0 | N106: 50 | O106: Neutral | P106: 2021-03-03 | R106: H
A107: 3 | B107: 2022-03-02 | D107: ASIANPAINT 3100 CE MAR | E107: Buy | F107: 85 | G107: 45 | H107: 49 | I107: 140-160 | J107: Loss of Rs.36/- | K107: =H107-F107 -> -36 | L107: 100.00 | M107: =(K107*N107)-L107 -> -5500.0 | N107: 150 | O107: Unsuccessful | P107: 2022-03-03 | R107: H
A108: 4 | B108: 2022-03-03 | D108: INFY 1740 CE MAR | E108: Buy | F108: 42 | G108: 26 | H108: 49.5 | I108: 60-75 | J108: Profit of Rs.7.5/- | K108: 7.5 | L108: 100.00 | M108: 2150.0 | N108: 300 | O108: Successful | P108: 2021-03-04 | R108: H
A109: 5 | B109: 2022-03-03 | D109: RELIANCE 2420 CE MAR | E109: Buy | F109: 55 | G109: 35 | H109: 35 | I109: 80-90 | J109: Loss of Rs.20/- | K109: =H109-F109 -> -20 | L109: 100.00 | M109: =(K109*N109)-L109 -> -5100.0 | N109: 250 | O109: Unsuccessful | P109: 2022-03-07 | R109: H
A110: 6 | B110: 2022-03-03 | D110: NIFTY 16500 CE 03-MAR | E110: Buy | F110: 51.5 | G110: 17 | H110: 71 | I110: 80-100 | J110: Profit of Rs.19.5/- | K110: =H110-F110 -> 19.5 | L110: 100.00 | M110: =(K110*N110)-L110 -> 875.0 | N110: 50 | O110: Successful | P110: 2021-03-03 | R110: H
A111: 7 | B111: 2022-03-04 | D111: HDFC 2300 CE MAR | E111: Buy | F111: 55 | G111: 38 | H111: 38 | I111: 80-90 | J111: Loss of Rs.17/- | K111: -17 | L111: 100.00 | M111: -5200.0 | N111: 300 | O111: Unsuccessful | P111: 2022-03-07 | R111: H
A112: 8 | B112: 2022-03-08 | D112: INFY 1760 CE MAR | E112: Buy | F112: 47 | G112: 32 | H112: 55 | I112: 65-75 | J112: Profit of Rs.8/- | K112: 8 | L112: 100.00 | M112: 2300.0 | N112: 300 | O112: Successful | P112: 2021-03-08 | R112: N
A113: 9 | B113: 2022-03-08 | D113: RELIANCE 2300 CE MAR | E113: Buy | F113: 53.5 | G113: 34 | H113: 64 | I113: 80-90 | J113: Profit of Rs.10.5/- | K113: =H113-F113 -> 10.5 | L113: 100.00 | M113: =(K113*N113)-L113 -> 2525.0 | N113: 250 | O113: Successful | P113: 2021-03-09 | R113: H
A114: 10 | B114: 2022-03-10 | D114: NIFTY 16700 PE 10-MAR | E114: Buy | F114: 47.5 | G114: 10 | H114: 67.5 | I114: 90-110 | J114: Profit of Rs.20/- | K114: =H114-F114 -> 20 | L114: 100.00 | M114: =(K114*N114)-L114 -> 900.0 | N114: 50 | O114: Successful | P114: 2022-03-10 | R114: N
A115: 11 | B115: 2022-03-10 | D115: NIFTY 16500 CE 10 MAR | E115: Buy | F115: 32.5 | H115: 55.5 | I115: 80-90 | J115: Profit of Rs.23/- | K115: 23 | L115: 100.00 | M115: 1050.0 | N115: 50 | O115: Successful | P115: 2022-03-10 | R115: N
A116: 12 | B116: 2022-03-11 | D116: HDFC 2200 PE MAR | E116: Buy | F116: 44 | G116: 29 | H116: 50.5 | I116: 65-75 | J116: Profit of Rs.6.5/- | K116: =H116-F116 -> 6.5 | L116: 100.00 | M116: =(K116*N116)-L116 -> 1850.0 | N116: 300 | O116: Successful | P116: 2022-03-11
A121: Techno -Funda (positional)
A122: Sr.no | B122: Date | D122: Company | E122: Rec | F122: Rec Price | G122: Stop Loss*** | H122: Call Closed At | I122: Target | J122: Remark | K122: Profit / Loss per Share/Lot | L122: All charges | M122: Net Gain / Loss % | N122: Status | O122: Closed Date | P122: Market Closing Price
A123: 1 | B123: 2021-10-19 | D123: ITC | E123: Buy | F123: 230-251 | G123: 198 | I123: 320-340 | J123: Open | R123: H
A124: 2 | B124: 2022-02-07 | D124: BEL | E124: Buy | F124: 200 | G124: 183 | H124: 224.00 | I124: 230-240 | J124: Profit of Rs.24/- | K124: =H124-F124 -> 24 | L124: =(F124*-0.7)/100 -> -1.40 | M124: =(K124+L124)/F124 -> 11.30% | N124: Successful | O124: 2022-03-04 | R124: H
A126: CLBS = Closing Basis *** | F126: Reinitiated $
A127: Dividend adjusted <> | F127: Revised stoploss # | H127: .................
B129: Intrday Call
A130: Sr.no | B130: Date | D130: Company | E130: Rec | F130: Rec Price | G130: Stop Loss | H130: Call Closed At | I130: Target | J130: Remark | K130: Profit / Loss per Share/Lot | L130: Gain / Loss per Lot | M130: Lot | N130: All charges | O130: Net Gain / Loss % | P130: Status | Q130: Closed Date
B143: Investment Idea
A144: Sr.no | B144: Date | D144: Company | E144: Rec | F144: Rec Price | G144: Point of Review | H144: Close Rate | I144: Target | J144: Remark | K144: Profit / Loss per Share | L144: Gain / Loss % | M144: Status | N144: Closed Date
A145: 1 | B145: 2013-11-01 | D145: L&T Finance Holding | E145: Accu | F145: 82.00 | G145: - | H145: 100 | I145: 100.00 | J145: Target Achieved | K145: =H145-F145 -> 18.00 | L145: =K145/F145 -> 21.95% | M145: Successful | N145: 2016-10-14
A146: 2 | B146: 2014-06-04 | D146: Finolex Inds | E146: Buy | F146: 257.00 | G146: - | H146: 300 | I146: 300.00 | J146: Target Achieved | K146: 43.00 | L146: 16.73% | M146: Successful | N146: 2014-07-02
A147: 3 | B147: 2014-07-08 | D147: JK Cement | E147: Buy | F147: 393.00 | G147: - | H147: 468 | I147: 468.00 | J147: Target Achieved | K147: 75.00 | L147: 19.08% | M147: Successful | N147: 2014-08-12
A148: 4 | B148: 2014-08-06 | D148: Finolex Cables | E148: Buy | F148: 205.00 | G148: - | H148: 275 | I148: 250.00 | J148: Target Achieved | K148: 70.00 | L148: 34.15% | M148: Successful | N148: 2014-11-19
A149: 5 | B149: 2014-09-04 | D149: Exide Inds | E149: Buy | F149: 162.00 | G149: - | H149: 190 | I149: 190.00 | J149: Target Achieved | K149: 28.00 | L149: 17.28% | M149: Successful | N149: 2015-01-02
A150: 6 | B150: 2014-09-04 | D150: Deepak Nitrite | E150: Buy | F150: 75.00 | G150: - | H150: 91.5 | I150: 95-100 | J150: Profit of Rs.16.50/- | K150: 16.50 | L150: 22.00% | M150: Successful | N150: 2014-11-11
A151: 7 | B151: 2014-10-01 | D151: Mercks | E151: Buy | F151: 850.00 | G151: - | H151: 982.5 | I151: 1050.00 | J151: Profit of Rs.132.50/- | K151: 132.50 | L151: 15.59% | M151: Successful | N151: 2015-02-04
A152: 8 | B152: 2014-10-01 | D152: Grindwell Norton | E152: Buy | F152: 475.00 | G152: - | H152: 515 | I152: 600.00 | J152: Profit of Rs.40/- | K152: 40.00 | L152: 8.42% | M152: Successful | N152: 2014-10-27
A153: 9 | B153: 2014-10-01 | D153: Snowman Logistics | E153: Buy | F153: 86.00 | G153: - | H153: 99 | I153: 140.00 | J153: Profit of Rs.13.00/- | K153: 13.00 | L153: 15.12% | M153: Successful | N153: 2014-10-27
A154: 10 | B154: 2014-10-14 | D154: Birla Corp | E154: Buy | F154: 496.60 | G154: - | H154: 621 | I154: 580.00 | J154: Target Achieved | K154: 124.40 | L154: 25.05% | M154: Successful | N154: 2016-08-23
A155: 11 | B155: 2014-10-14 | D155: Ultratech Cem | E155: Buy | F155: 2481.90 | G155: - | H155: 2840 | I155: 2870.00 | J155: Profit of Rs.358.10/- | K155: 358.10 | L155: 14.43% | M155: Successful | N155: 2015-01-13
A156: 12 | B156: 2014-10-16 | D156: Sintex Inds | E156: Buy | F156: 84.50 | G156: - | H156: 93 | I156: 110.00 | J156: Profit of Rs.8.50/- | K156: 8.50 | L156: 10.06% | M156: Successful | N156: 2014-10-27
A157: 13 | B157: 2014-10-16 | D157: HSIL | E157: Buy | F157: 401.00 | G157: - | H157: 428 | I157: 450.00 | J157: Profit of Rs.27.00/- | K157: 27.00 | L157: 6.73% | M157: Successful | N157: 2015-01-16
A158: 14 | B158: 2014-10-16 | D158: Eveready Inds | E158: Buy | F158: 101.00 | G158: - | H158: 112 | I158: 120.00 | J158: Profit of Rs.11.00/- | K158: 11.00 | L158: 10.89% | M158: Successful | N158: 2014-10-27
A159: 15 | B159: 2014-11-11 | D159: Pennar Inds | E159: Buy | F159: 59.00 | G159: - | H159: 76 | I159: 76.00 | J159: Target Achieved | K159: 17.00 | L159: 28.81% | M159: Successful | N159: 2017-10-24
A160: 16 | B160: 2014-11-11 | D160: Snowman Logistics | E160: Buy | F160: 99.00 | G160: - | H160: 120 | I160: 120.00 | J160: Profit of Rs.21/- | K160: 21.00 | L160: 21.21% | M160: Successful | N160: 2014-11-17
A161: 17 | B161: 2014-11-13 | D161: Dharamsi Morarji Chem | E161: Buy | F161: 22.00 | G161: - | H161: 33.55 | I161: 32.00 | J161: Profit of Rs 11.55/- | K161: 11.55 | L161: 52.50% | M161: Successful | N161: 2015-07-03
A162: 18 | B162: 2014-12-03 | D162: Tatachem | E162: Buy | F162: 440.00 | G162: - | H162: 520 | I162: 520.00 | J162: Profit of Rs 80.00/- | K162: 80.00 | L162: 18.18% | M162: Successful | N162: 2015-07-23
A163: 19 | B163: 2014-12-03 | D163: Advanta | E163: Buy | F163: 360.00 | G163: - | H163: 427 | I163: 425.00 | J163: Profit of Rs.67.00/- | K163: 67.00 | L163: 18.61% | M163: Successful | N163: 2015-02-23
A164: 20 | B164: 2015-01-08 | D164: GDL | E164: Buy | F164: 360.00 | G164: - | H164: 455 | I164: 420.00 | J164: Profit of Rs.95.00/- | K164: 95.00 | L164: 26.39% | M164: Successful | N164: 2015-01-20
A165: 21 | B165: 2015-01-08 | D165: NRB Bearing | E165: Buy | F165: 130.00 | H165: 175.5 | I165: 165.00 | J165: Profit of Rs 45.50/- | K165: 45.50 | L165: 35.00% | M165: Successful | N165: 2017-12-19
A166: 22 | B166: 2015-02-05 | D166: GSFC | E166: Accu | F166: 98.00 | H166: 120 | I166: 120.00 | J166: Target Achieved | K166: 22.00 | L166: 22.45% | M166: Successful | N166: 2017-01-18
A167: 23 | B167: 2015-02-05 | D167: Sundrmfast | E167: Accu | F167: 196.00 | H167: 262 | I167: 255.00 | J167: Target Achieved | K167: 66.00 | L167: 33.67% | M167: Successful | N167: 2016-08-17
A168: 24 | B168: 2015-03-04 | D168: GPPL | E168: Accu | F168: 235 | H168: 77.00 | I168: 280-285 | J168: Loss of Rs.158/- | K168: -158.00 | L168: -67.23% | M168: Unsuccessful | N168: 2019-02-26
A169: 25 | B169: 2015-03-04 | D169: ORIENTCEM | E169: Accu | F169: 185.00 | H169: 224 | I169: 220-225 | J169: Target Achieved | K169: 39.00 | L169: 21.08% | M169: Successful | N169: 2016-10-04
A170: 26 | B170: 2015-03-27 | D170: PFS | E170: Accu | F170: 49.5 | H170: 15.85 | I170: 67.00 | J170: Loss of Rs.33.65/- | K170: -33.65 | L170: -68% | M170: Unsuccessful | N170: 2019-06-11
A171: 27 | B171: 2015-03-30 | D171: Walchandnagar Ind Ltd | E171: Accu | F171: 183.50 | H171: 219 | I171: 218.00 | J171: Profit of Rs.35.50/- | K171: 35.50 | L171: 19.35% | M171: Successful | N171: 2015-04-09
A172: 28 | B172: 2015-04-20 | D172: Kalpataru Power Transmission Ltd | E172: Accu | F172: =(227+237)/2 -> 232.00 | H172: 298 | I172: 298.00 | J172: Target Achieved | K172: 66.00 | L172: 28.45% | M172: Successful | N172: 2017-03-29
A173: 29 | B173: 2015-05-04 | D173: Mastek Ltd | E173: Buy | F173: 385.00 | H173: =212.5+331 -> 543.5 | I173: 510.00 | J173: Profit of Rs 158.50/- | K173: 158.50 | L173: 41.17% | M173: Successful | N173: 2015-08-19
A174: 30 | B174: 2015-05-04 | D174: Suprajit Eng | E174: Buy | F174: 115.50 | H174: 146 | I174: 142.00 | J174: Profit of Rs 30.50/- | K174: 30.50 | L174: 26.41% | M174: Successful | N174: 2015-07-17
A175: 31 | B175: 2015-05-27 | D175: TCI | E175: Buy | F175: 237.50 | H175: 279.5 | I175: 278.00 | J175: Target Achieved | K175: 42.00 | L175: 17.68% | M175: Successful | N175: 2015-08-06
A176: 32 | B176: 2015-06-19 | D176: HSIL | E176: Accu | F176: 340.00 | H176: 448 | I176: 448.00 | J176: Target Achieved | K176: 108.00 | L176: 31.76% | M176: Successful | N176: 2017-10-10
A177: 33 | B177: 2015-07-06 | D177: Capital First | E177: Accu | F177: 390.00 | H177: 460 | I177: 460.00 | J177: Target Achieved | K177: 70.00 | L177: 17.95% | M177: Successful | N177: 2016-04-18
A178: 34 | B178: 2015-07-10 | D178: Dolphin OffShore | E178: Accu | F178: 122.5 | H178: 61.00 | I178: 172.00 | J178: Loss of Rs.61.50/- | K178: -61.50 | L178: -50.20% | M178: Unsuccessful | N178: 2018-08-21
A179: 35 | B179: 2015-08-03 | D179: Allcargo logistics | E179: Accu | F179: 297.50 | H179: 350 | I179: 360.00 | J179: Profit of Rs 52.50/- | K179: 52.50 | L179: 17.65% | M179: Successful | N179: 2015-08-16
A180: 36 | B180: 2015-08-03 | D180: Camline Fine | E180: Accu | F180: 115.50 | H180: 149 | I180: 140.00 | J180: Profit of Rs 33.50/- | K180: 33.50 | L180: 29.00% | M180: Successful | N180: 2017-01-05
A181: 37 | B181: 2015-09-04 | D181: TCI | E181: Accu | F181: 226.00 | H181: 292 | I181: 292.00 | J181: Target Achieved | K181: 66.00 | L181: 29.20% | M181: Successful | N181: 2015-10-09
A182: 38 | B182: 2015-09-07 | D182: Kalpataru Power Transmission Ltd | E182: Accu | F182: 232.50 | H182: 312.5 | I182: 310.00 | J182: Target Achieved | K182: 80.00 | L182: 34.41% | M182: Successful | N182: 2017-03-29
A183: 39 | B183: 2015-09-21 | D183: LLOYD ELECTRIC & ENG LTD | E183: Accu | F183: 196.50 | H183: 238 | I183: 238.00 | J183: Target Achieved | K183: 41.50 | L183: 21.12% | M183: Successful | N183: 2015-10-14
A184: 40 | B184: 2015-09-24 | D184: L&T Finance Holding | E184: Accu | F184: 65.00 | H184: 82 | I184: 82.00 | J184: Target Achieved | K184: 17.00 | L184: 26.15% | M184: Successful | N184: 2016-07-27
A185: 41 | B185: 2015-10-14 | D185: KEC International ltd | E185: Accu | F185: 144.00 | H185: 182.5 | I185: 181.00 | J185: Target Achieved | K185: 38.50 | L185: 26.74% | M185: Successful | N185: 2017-03-23
A186: 42 | B186: 2015-10-14 | D186: Gruh Finance | E186: Accu | F186: 264.00 | H186: 311 | I186: 311.00 | J186: Target Achieved | K186: 47.00 | L186: 17.80% | M186: Successful | N186: 2016-08-22
A187: 43 | B187: 2015-11-10 | D187: Pidilitind | E187: Buy | F187: 549.50 | H187: 630 | I187: 630.00 | J187: Target Achieved | K187: 80.50 | L187: 14.65% | M187: Successful | N187: 2016-02-19
A188: 44 | B188: 2015-12-04 | D188: Zensar Technology | E188: Accu | F188: 1027.50 | H188: 1315 | I188: 1250.00 | J188: Target Achieved | K188: 287.50 | L188: 27.98% | M188: Successful | N188: 2018-05-24
A189: 45 | B189: 2015-12-29 | D189: Vinati Organics Ltd | E189: Accu | F189: 465.00 | H189: 540 | I189: 540.00 | J189: Target Achieved | K189: 75.00 | L189: 16.13% | M189: Successful | N189: 2016-06-09
A190: 46 | B190: 2016-01-11 | D190: GSFC | E190: Buy | F190: 81.00 | H190: 110 | I190: 110.00 | J190: Target Achieved | K190: 29.00 | L190: 35.80% | M190: Successful | N190: 2017-01-10
A191: 47 | B191: 2016-01-13 | D191: SSWL | E191: Buy | F191: 417.50 | H191: 547 | I191: 535.00 | J191: Target Achieved | K191: 129.50 | L191: 31.02% | M191: Successful | N191: 2016-07-27
A192: 48 | B192: 2016-02-08 | D192: Persistent System Ltd | E192: Accu | F192: 650.00 | H192: 800 | I192: 800.00 | J192: Target Achieved | K192: 150.00 | L192: 23.08% | M192: Successful | N192: 2018-02-23
A193: 49 | B193: 2016-03-04 | D193: UPL | E193: Accu | F193: 437.50 | H193: 504.5 | I193: 522.00 | J193: Profit of Rs.67/- | K193: 67.00 | L193: 15.31% | M193: Successful | N193: 2016-04-20
A194: 50 | B194: 2016-03-09 | D194: Ashoka Buildcon Ltd | E194: Accu | F194: 189.50 | H194: 218 | I194: 218.00 | J194: Target Achieved | K194: 28.50 | L194: 15.04% | M194: Successful | N194: 2017-10-26
A195: 51 | B195: 2016-04-11 | D195: PTC INDIA FIN SERV LTD | E195: Accu | F195: 36.5 | H195: 15.85 | I195: 60.00 | J195: Loss of Rs.20.65/- | K195: -20.65 | L195: -56.58% | M195: Unsuccessful | N195: 2019-06-11
A196: 52 | B196: 2016-04-12 | D196: CAMLINFINE $ | E196: Accu | F196: 93.00 | H196: 149 | I196: 140.00 | J196: Profit of Rs 56/- | K196: 56.00 | L196: 60.22% | M196: Successful | N196: 2017-01-05
A197: 53 | B197: 2016-04-12 | D197: Greaves Cotton Ltd. | E197: Accu | F197: 130.00 | H197: 150 | I197: 150-155 | J197: Target Achieved | K197: 20.00 | L197: 15.38% | M197: Successful | N197: 2016-07-13
A198: 54 | B198: 2016-04-13 | D198: DHFL | E198: Accu | F198: 196.00 | H198: 299 | I198: 299.00 | J198: Target Achieved | K198: 103.00 | L198: 52.55% | M198: Successful | N198: 2016-09-07
A199: 55 | B199: 2016-04-13 | D199: Magma | E199: Accu | F199: 88.00 | H199: 103 | I199: 103.00 | J199: Target Achieved | K199: 15.00 | L199: 17.05% | M199: Successful | N199: 2016-06-09
A200: 56 | B200: 2016-05-02 | D200: KEC International ltd $ | E200: Accu | F200: 127.50 | H200: 148 | I200: 148-150 | J200: Target Achieved | K200: =H200-F200 -> 20.50 | L200: =K200/F200 -> 16.08% | M200: Successful | N200: 2016-07-13
A201: 57 | B201: 2016-05-03 | D201: Mindtree | E201: Accu | F201: 675.00 | H201: 815 | I201: 790-800 | J201: Target Achieved | K201: 140.00 | L201: 20.74% | M201: Successful | N201: 2018-02-23
A202: 58 | B202: 2016-06-01 | D202: Atulauto | E202: Accu | F202: 500 | H202: 232.50 | I202: 565-570 | J202: Loss of Rs.267.50 /- | K202: -267.50 | L202: -53.50% | M202: Unsuccessful | N202: 2019-09-27
A203: 59 | B203: 2016-06-06 | D203: TRITURBINE | E203: Accu | F203: 110.00 | H203: 126.5 | I203: 125.00 | J203: Profit of Rs.16.50/- | K203: 16.50 | L203: 15.00% | M203: Successful | N203: 2016-07-01
A204: 60 | B204: 2016-06-17 | D204: Pennar Industries Ltd | E204: Accu | F204: 44.00 | H204: 69.5 | I204: 69.50 | J204: Profit of Rs.25.50/- | K204: 25.50 | L204: 57.95% | M204: Successful | N204: 2017-08-30
A205: 61 | B205: 2016-06-28 | D205: EVEREADY | E205: Accu | F205: 262.50 | H205: 340 | I205: 333.00 | J205: Profit of Rs.77.50/- | K205: 77.50 | L205: 29.52% | M205: Successful | N205: 2017-10-09
A206: 62 | B206: 2016-06-28 | D206: FIEMIND | E206: Accu | F206: 840.00 | H206: 1230 | I206: 1230.00 | J206: Target Achieved | K206: 390.00 | L206: 46.43% | M206: Successful | N206: 2016-10-06
A207: 63 | B207: 2016-07-05 | D207: Bajaj Corp Ltd | E207: Accu | F207: 395 | H207: =(468.5+342.5)/2 -> 405.50 | I207: 510.00 | J207: Profit of Rs.10.50/- | K207: =H207-F207 -> 10.50 | L207: =K207/F207 -> 3% | M207: Neutral | N207: 2019-05-21
A208: 64 | B208: 2016-08-02 | D208: GPPL $ | E208: Buy | F208: =169.5-12.8 -> 156.7 | H208: 77.00 | I208: 198-200 | J208: Loss of Rs.79.7/- | K208: -79.70 | L208: -50.86% | M208: Unsuccessful | N208: 2019-02-26
A209: 65 | B209: 2016-08-04 | D209: WONDERLA HOLIDAYS LTD | E209: Accu | F209: 400 | H209: 305.00 | I209: 475.00 | J209: Loss of Rs.95/- | K209: -95.00 | L209: -23.75% | M209: Unsuccessful | N209: 2019-05-21
A210: 66 | B210: 2016-08-11 | D210: CAMLINFINE | E210: Accu | F210: 86.50 | H210: 130 | I210: 130.00 | J210: Profit of Rs.43.50/- | K210: 43.50 | L210: 50.29% | M210: Successful | N210: 2017-12-22
A211: 67 | B211: 2016-08-18 | D211: GRANULES | E211: Accu | F211: 133.5 | H211: 126.50 | I211: 178.00 | J211: Exit | K211: -7.00 | L211: -5.24% | M211: Unsuccessful | N211: 2016-09-02
A212: 68 | B212: 2016-08-31 | D212: VA TECH WABAG | E212: Accu | F212: 560.00 | H212: 725 | I212: 725.00 | J212: Target Achieved | K212: 165.00 | L212: 29.46% | M212: Successful | N212: 2016-03-27
A213: 69 | B213: 2016-09-01 | D213: SKIPPER LIMITED | E213: Accu | F213: 160.50 | H213: 210 | I213: 210.00 | J213: Target Achieved | K213: 49.50 | L213: 30.84% | M213: Successful | N213: 2017-05-16
A214: 70 | B214: 2016-10-03 | D214: IFBIND | E214: Accu | F214: 430.00 | H214: 596 | I214: 575.00 | J214: Profit of Rs.166/- | K214: 166.00 | L214: 38.60% | M214: Successful | N214: 2017-02-03
A215: 71 | B215: 2016-10-14 | D215: ASIANTILES | E215: Accu | F215: 280.00 | H215: 345 | I215: 345.00 | J215: Target Achieved | K215: =H215-F215 -> 65.00 | L215: =K215/F215 -> 23.21% | M215: Successful | N215: 2017-03-20
A216: 72 | B216: 2016-10-14 | D216: DEEPIND | E216: Accu | F216: 245.00 | H216: 325.5 | I216: 330.00 | J216: Profit of Rs.80.5/- | K216: 80.50 | L216: 32.86% | M216: Successful | N216: 2017-02-03
A217: 73 | B217: 2016-10-17 | D217: DCBBANK | E217: Accu | F217: 125.00 | H217: 160 | I217: 160.00 | J217: Target Achieved | K217: 35.00 | L217: 28.00% | M217: Successful | N217: 2017-03-09
A218: 74 | B218: 2016-10-17 | D218: ORIENTREF | E218: Accu | F218: 114.00 | H218: 145 | I218: 145.00 | J218: Target Achieved | K218: 31.00 | L218: =K218/F218 -> 27.19% | M218: Successful | N218: 2017-05-04
A219: 75 | B219: 2016-10-17 | D219: GANECOS | E219: Accu | F219: 212.00 | H219: 280 | I219: 276.00 | J219: Profit of Rs.68/- | K219: 68.00 | L219: 32.08% | M219: Successful | N219: 2017-05-03
A220: 76 | B220: 2016-11-04 | D220: NBCC | E220: Accu | F220: 155.00 | H220: 210 | I220: 210.00 | J220: Profit of Rs.55/- | K220: 55.00 | L220: 35.48% | M220: Successful | N220: 2017-07-28
A221: 77 | B221: 2016-12-06 | D221: PRECAM | E221: Accu | F221: 150.5 | H221: 72.50 | I221: 174.00 | J221: Loss of Rs.78/- | K221: -78.00 | L221: -51.83% | M221: Unsuccessful | N221: 2018-08-21
A222: 78 | B222: 2016-12-08 | D222: INFRATEL | E222: Accu | F222: 380.00 | H222: 478 | I222: 468.00 | J222: Target Achieved | K222: =H222-F222 -> 98.00 | L222: =K222/F222 -> 25.79% | M222: Successful | N222: 2017-10-17
A223: 79 | B223: 2016-12-30 | D223: GODREJPROP | E223: Accu | F223: 305.00 | H223: 375 | I223: 375.00 | J223: Target Achieved | K223: 70.00 | L223: 22.95% | M223: Successful | N223: 2017-02-02
A224: 80 | B224: 2017-01-04 | D224: DEEPAKNTR | E224: Accu | F224: 99.50 | H224: 158 | I224: 158.00 | J224: Target Achieved | K224: 58.50 | L224: 58.79% | M224: Successful | N224: 2017-06-12
A225: 81 | B225: 2017-01-04 | D225: DEEPAKNTR | E225: Accu | F225: 99.50 | H225: 158 | I225: 158.00 | J225: Target Achieved | K225: 58.50 | L225: 58.79% | M225: Successful | N225: 2017-06-12
A226: 82 | B226: 2017-02-20 | D226: RECLTD | E226: Accu | F226: 140.50 | H226: 220 | I226: 220.00 | J226: Target Achieved | K226: =H226-F226 -> 79.50 | L226: =K226/F226 -> 56.58% | M226: Successful | N226: 2017-05-09
A227: 83 | B227: 2017-02-20 | D227: SUBROS | E227: Accu | F227: 202.50 | H227: 234 | I227: 234.00 | J227: Target Achieved | K227: 31.50 | L227: 15.56% | M227: Successful | N227: 2017-04-11
A228: 84 | B228: 2017-03-24 | D228: VRLLOG | E228: Accu | F228: 300.50 | H228: 417.5 | I228: 420.00 | J228: Profit of Rs.117/- | K228: =H228-F228 -> 117.00 | L228: =K228/F228 -> 38.94% | M228: Successful | N228: 2017-12-01
A229: 85 | B229: 2017-03-24 | D229: FIEMIND | E229: Accu | F229: 850.00 | H229: 1042.5 | I229: 1023.00 | J229: Profit of Rs 192.50/- | K229: 192.50 | L229: 22.65% | M229: Successful | N229: 2017-04-05
A230: 86 | B230: 2017-04-05 | D230: RATNAMANI | E230: Accu | F230: 785.00 | H230: 930 | I230: 920.00 | J230: Profit of Rs.145/- | K230: =H230-F230 -> 145.00 | L230: =K230/F230 -> 18.47% | M230: Successful | N230: 2017-08-29
A231: 87 | B231: 2017-04-06 | D231: ZEEMEDIA | E231: Accu | F231: 40 | H231: 13.10 | I231: 60.00 | J231: Loss of Rs.26.9/- | K231: -26.90 | L231: -67.25% | M231: Unsuccessful | N231: 2018-02-07
A232: 88 | B232: 2017-04-12 | D232: DABUR | E232: Accu | F232: 289.50 | H232: 354 | I232: 360.00 | J232: Profit of Rs.64.5/- | K232: =H232-F232 -> 64.50 | L232: =K232/F232 -> 22.28% | M232: Successful | N232: 2017-11-01
A233: 89 | B233: 2017-04-20 | D233: KPRMILL | E233: Accu | F233: 700.00 | H233: 840 | I233: 840.00 | J233: Profit of Rs.140/- | K233: 140.00 | L233: 20.00% | M233: Successful | N233: 2017-06-07
A234: 90 | B234: 2017-06-01 | D234: ESSELPACK | E234: Accu | F234: 130.00 | H234: 144.25 | I234: 170.00 | J234: Profit of Rs.14.25/- | K234: 14.25 | L234: 10.96% | M234: Successful | N234: 2019-07-29
A235: 91 | B235: 2017-06-15 | D235: KEI | E235: Accu | F235: 214.50 | H235: 262 | I235: 262.00 | J235: Profit of Rs.47.5/- | K235: 47.50 | L235: 22.14% | M235: Successful | N235: 2017-08-30
A236: 92 | B236: 2017-07-17 | D236: MAYURUNIQ | E236: Accu | F236: 370.00 | H236: 447.5 | I236: 450.00 | J236: Target Achieved | K236: 77.50 | L236: 20.95% | M236: Successful | N236: 2017-10-27
A237: 93 | B237: 2017-07-27 | D237: RAMCOCEM | E237: Accu | F237: 657.50 | H237: 825 | I237: 820.00 | J237: Target Achieved | K237: 167.50 | L237: 25.48% | M237: Successful | N237: 2017-12-21
... 83 more rows
